Workbook

Sheet HFVsf-_-4 - Kühlen
B1: Tel. +49 (0)711 8201-180 Fax: -720 | Z1: eMail: | AD1: Raumluft@LTG-AG.de
B2: =IF(Sprache="Deutsch",VLOOKUP("Induktionsgerät HFVsf - System smart flow, 4-Leiter-System",Legende!$B$3:$E$83,1,FALSE),IF(Sprache="English",VLOOKUP("Induktionsgerät HFVsf - System smart flow, 4-Leiter-System",Legende!$B$3:$E$83,2,FALSE),IF(Sprache="Francais",VLOOKUP("Induktionsgerät HFVsf - System smart flow, 4-Leiter-System",Legende!$B$3:$E$83,3,FALSE),0))) -> Induktionsgerät HFVsf - System smart flow, 4-Leiter-System | V2: =IF(Sprache="Deutsch",VLOOKUP("Sprache:",Legende!$B$3:$E$83,1,FALSE),IF(Sprache="English",VLOOKUP("Sprache:",Legende!$B$3:$E$83,2,FALSE),IF(Sprache="Francais",VLOOKUP("Sprache:",Legende!$B$3:$E$83,3,FALSE),0))) -> Sprache: | AD2: LTG Aktiengesellschaft
AH3: Deutsch
AH4: =Legende!B5 -> Deutsch
C5: Foto | G5: Foto | Y5: =IF(Sprache="Deutsch",VLOOKUP("Datum:",Legende!$B$3:$E$83,1,FALSE),IF(Sprache="English",VLOOKUP("Datum:",Legende!$B$3:$E$83,2,FALSE),IF(Sprache="Francais",VLOOKUP("Datum:",Legende!$B$3:$E$83,3,FALSE),0))) -> Datum: | Z5: =TODAY() -> 2026-06-23 | AH5: =Legende!C5 -> English
Y6: =IF(Sprache="Deutsch",VLOOKUP("Bearbeiter:",Legende!$B$3:$E$83,1,FALSE),IF(Sprache="English",VLOOKUP("Bearbeiter:",Legende!$B$3:$E$83,2,FALSE),IF(Sprache="Francais",VLOOKUP("Bearbeiter:",Legende!$B$3:$E$83,3,FALSE),0))) -> Bearbeiter:
Y7: =IF(Sprache="Deutsch",VLOOKUP("Projekt:",Legende!$B$3:$E$83,1,FALSE),IF(Sprache="English",VLOOKUP("Projekt:",Legende!$B$3:$E$83,2,FALSE),IF(Sprache="Francais",VLOOKUP("Projekt:",Legende!$B$3:$E$83,3,FALSE),0))) -> Projekt:
Y8: =IF(Sprache="Deutsch",VLOOKUP("Variante:",Legende!$B$3:$E$83,1,FALSE),IF(Sprache="English",VLOOKUP("Variante:",Legende!$B$3:$E$83,2,FALSE),IF(Sprache="Francais",VLOOKUP("Variante:",Legende!$B$3:$E$83,3,FALSE),0))) -> Variante:
B10: =IF(Sprache="Deutsch",VLOOKUP("Auslegunsbedingungen:",Legende!$B$3:$E$83,1,FALSE),IF(Sprache="English",VLOOKUP("Auslegunsbedingungen:",Legende!$B$3:$E$83,2,FALSE),IF(Sprache="Francais",VLOOKUP("Auslegunsbedingungen:",Legende!$B$3:$E$83,3,FALSE),0))) -> Auslegunsbedingungen: | E10: =IF(Sprache="Deutsch",VLOOKUP("Kühlen",Legende!$B$3:$E$83,1,FALSE),IF(Sprache="English",VLOOKUP("Kühlen",Legende!$B$3:$E$83,2,FALSE),IF(Sprache="Francais",VLOOKUP("Kühlen",Legende!$B$3:$E$83,3,FALSE),0))) -> Kühlen | I10: =IF(Sprache="Deutsch",VLOOKUP("Bemerkungen:",Legende!$B$3:$E$83,1,FALSE),IF(Sprache="English",VLOOKUP("Bemerkungen:",Legende!$B$3:$E$83,2,FALSE),IF(Sprache="Francais",VLOOKUP("Bemerkungen:",Legende!$B$3:$E$83,3,FALSE),0))) -> Bemerkungen: | U10: =IF(Sprache="Deutsch",VLOOKUP("Betriebszustände (Stellung Düsenklappe)",Legende!$B$3:$E$83,1,FALSE),IF(Sprache="English",VLOOKUP("Betriebszustände (Stellung Düsenklappe)",Legende!$B$3:$E$83,2,FALSE),IF(Sprache="Francais",VLOOKUP("Betriebszustände (Stellung Düsenklappe)",Legende!$B$3:$E$83,3,FALSE),0))) -> Betriebszustände (Stellung Düsenklappe)
B11: =IF(Sprache="Deutsch",VLOOKUP("Raumlufttemperatur",Legende!$B$3:$E$83,1,FALSE),IF(Sprache="English",VLOOKUP("Raumlufttemperatur",Legende!$B$3:$E$83,2,FALSE),IF(Sprache="Francais",VLOOKUP("Raumlufttemperatur",Legende!$B$3:$E$83,3,FALSE),0))) -> Raumlufttemperatur | E11: 26 | I11: =IF(Sprache="Deutsch",VLOOKUP(" => Ablufttemperatur",Legende!$B$3:$E$83,1,FALSE),IF(Sprache="English",VLOOKUP(" => Ablufttemperatur",Legende!$B$3:$E$83,2,FALSE),IF(Sprache="Francais",VLOOKUP(" => Ablufttemperatur",Legende!$B$3:$E$83,3,FALSE),0))) -> => Ablufttemperatur | M11: =IF(Sprache="Deutsch",VLOOKUP("Sekundärleistung",Legende!$B$3:$E$83,1,FALSE),IF(Sprache="English",VLOOKUP("Sekundärleistung",Legende!$B$3:$E$83,2,FALSE),IF(Sprache="Francais",VLOOKUP("Sekundärleistung",Legende!$B$3:$E$83,3,FALSE),0))) -> Sekundärleistung | U11: =IF(Sprache="Deutsch",VLOOKUP("V0 - geschlossen",Legende!$B$3:$E$83,1,FALSE),IF(Sprache="English",VLOOKUP("V0 - geschlossen",Legende!$B$3:$E$83,2,FALSE),IF(Sprache="Francais",VLOOKUP("V0 - geschlossen",Legende!$B$3:$E$83,3,FALSE),0))) -> V0 - geschlossen
U12: =IF(Sprache="Deutsch",VLOOKUP("V1 - geringe Primärluftmenge 1, geringe Induktion",Legende!$B$3:$E$83,1,FALSE),IF(Sprache="English",VLOOKUP("V1 - geringe Primärluftmenge 1, geringe Induktion",Legende!$B$3:$E$83,2,FALSE),IF(Sprache="Francais",VLOOKUP("V1 - geringe Primärluftmenge 1, geringe Induktion",Legende!$B$3:$E$83,3,FALSE),0))) -> V1 - geringe Primärluftmenge 1, geringe Induktion
B13: =IF(Sprache="Deutsch",VLOOKUP("relative Feuchte",Legende!$B$3:$E$83,1,FALSE),IF(Sprache="English",VLOOKUP("relative Feuchte",Legende!$B$3:$E$83,2,FALSE),IF(Sprache="Francais",VLOOKUP("relative Feuchte",Legende!$B$3:$E$83,3,FALSE),0))) -> relative Feuchte | E13: 50 | I13: =IF(Sprache="Deutsch",VLOOKUP("Bereich:",Legende!$B$3:$E$83,1,FALSE),IF(Sprache="English",VLOOKUP("Bereich:",Legende!$B$3:$E$83,2,FALSE),IF(Sprache="Francais",VLOOKUP("Bereich:",Legende!$B$3:$E$83,3,FALSE),0))) -> Bereich: | K13: 30-70 % | U13: =IF(Sprache="Deutsch",VLOOKUP("V2 - geringe Primärluftmenge 2, mittlere Induktion",Legende!$B$3:$E$83,1,FALSE),IF(Sprache="English",VLOOKUP("V2 - geringe Primärluftmenge 2, mittlere Induktion",Legende!$B$3:$E$83,2,FALSE),IF(Sprache="Francais",VLOOKUP("V2 - geringe Primärluftmenge 2, mittlere Induktion",Legende!$B$3:$E$83,3,FALSE),0))) -> V2 - geringe Primärluftmenge 2, mittlere Induktion
B14: =IF(Sprache="Deutsch",VLOOKUP("Taupunkttemperatur Raumluft",Legende!$B$3:$E$83,1,FALSE),IF(Sprache="English",VLOOKUP("Taupunkttemperatur Raumluft",Legende!$B$3:$E$83,2,FALSE),IF(Sprache="Francais",VLOOKUP("Taupunkttemperatur Raumluft",Legende!$B$3:$E$83,3,FALSE),0))) -> Taupunkttemperatur Raumluft | E14: =(241.2*LN(E13/100)+4222.03716*E11/(241.2+E11))/(17.5043-LN(E11/100)-17.5043*G18/(241.2+G18)) -> 12.92425018 | U14: =IF(Sprache="Deutsch",VLOOKUP("V3 - mittlere Primärluftmenge 1, mittlere Induktion",Legende!$B$3:$E$83,1,FALSE),IF(Sprache="English",VLOOKUP("V3 - mittlere Primärluftmenge 1, mittlere Induktion",Legende!$B$3:$E$83,2,FALSE),IF(Sprache="Francais",VLOOKUP("V3 - mittlere Primärluftmenge 1, mittlere Induktion",Legende!$B$3:$E$83,3,FALSE),0))) -> V3 - mittlere Primärluftmenge 1, mittlere Induktion
B15: =IF(Sprache="Deutsch",VLOOKUP("Wassergehalt Raumluft",Legende!$B$3:$E$83,1,FALSE),IF(Sprache="English",VLOOKUP("Wassergehalt Raumluft",Legende!$B$3:$E$83,2,FALSE),IF(Sprache="Francais",VLOOKUP("Wassergehalt Raumluft",Legende!$B$3:$E$83,3,FALSE),0))) -> Wassergehalt Raumluft | E15: =(E13/100)*(0.0357*E11^2-0.4941*E11+10.356) -> 10.8213 | U15: =IF(Sprache="Deutsch",VLOOKUP("V4 – mittlere Primärluftmenge 2, mittlere Induktion",Legende!$B$3:$E$83,1,FALSE),IF(Sprache="English",VLOOKUP("V4 – mittlere Primärluftmenge 2, mittlere Induktion",Legende!$B$3:$E$83,2,FALSE),IF(Sprache="Francais",VLOOKUP("V4 – mittlere Primärluftmenge 2, mittlere Induktion",Legende!$B$3:$E$83,3,FALSE),0))) -> V4 – mittlere Primärluftmenge 2, mittlere Induktion
U16: =IF(Sprache="Deutsch",VLOOKUP("V5 - Booststufe 1, hohe Induktion",Legende!$B$3:$E$83,1,FALSE),IF(Sprache="English",VLOOKUP("V5 - Booststufe 1, hohe Induktion",Legende!$B$3:$E$83,2,FALSE),IF(Sprache="Francais",VLOOKUP("V5 - Booststufe 1, hohe Induktion",Legende!$B$3:$E$83,3,FALSE),0))) -> V5 - Booststufe 1, hohe Induktion
B17: =IF(Sprache="Deutsch",VLOOKUP("Primärseite (Luftseite):",Legende!$B$3:$E$83,1,FALSE),IF(Sprache="English",VLOOKUP("Primärseite (Luftseite):",Legende!$B$3:$E$83,2,FALSE),IF(Sprache="Francais",VLOOKUP("Primärseite (Luftseite):",Legende!$B$3:$E$83,3,FALSE),0))) -> Primärseite (Luftseite): | U17: =IF(Sprache="Deutsch",VLOOKUP("V6 - Booststufe 2, hohe Induktion",Legende!$B$3:$E$83,1,FALSE),IF(Sprache="English",VLOOKUP("V6 - Booststufe 2, hohe Induktion",Legende!$B$3:$E$83,2,FALSE),IF(Sprache="Francais",VLOOKUP("V6 - Booststufe 2, hohe Induktion",Legende!$B$3:$E$83,3,FALSE),0))) -> V6 - Booststufe 2, hohe Induktion
B18: =IF(Sprache="Deutsch",VLOOKUP("Primärdruck",Legende!$B$3:$E$83,1,FALSE),IF(Sprache="English",VLOOKUP("Primärdruck",Legende!$B$3:$E$83,2,FALSE),IF(Sprache="Francais",VLOOKUP("Primärdruck",Legende!$B$3:$E$83,3,FALSE),0))) -> Primärdruck | E18: 100 | I18: =IF(Sprache="Deutsch",VLOOKUP("Bereich:",Legende!$B$3:$E$83,1,FALSE),IF(Sprache="English",VLOOKUP("Bereich:",Legende!$B$3:$E$83,2,FALSE),IF(Sprache="Francais",VLOOKUP("Bereich:",Legende!$B$3:$E$83,3,FALSE),0))) -> Bereich: | K18: 50 - 150 Pa
B19: =IF(Sprache="Deutsch",VLOOKUP("Primärlufttemperatur",Legende!$B$3:$E$83,1,FALSE),IF(Sprache="English",VLOOKUP("Primärlufttemperatur",Legende!$B$3:$E$83,2,FALSE),IF(Sprache="Francais",VLOOKUP("Primärlufttemperatur",Legende!$B$3:$E$83,3,FALSE),0))) -> Primärlufttemperatur | E19: 19 | I19: =IF(Sprache="Deutsch",VLOOKUP("Bereich:",Legende!$B$3:$E$83,1,FALSE),IF(Sprache="English",VLOOKUP("Bereich:",Legende!$B$3:$E$83,2,FALSE),IF(Sprache="Francais",VLOOKUP("Bereich:",Legende!$B$3:$E$83,3,FALSE),0))) -> Bereich: | K19: 18 - 30 °C
B21: =IF(Sprache="Deutsch",VLOOKUP("Sekundärseite (Wasserseite):",Legende!$B$3:$E$83,1,FALSE),IF(Sprache="English",VLOOKUP("Sekundärseite (Wasserseite):",Legende!$B$3:$E$83,2,FALSE),IF(Sprache="Francais",VLOOKUP("Sekundärseite (Wasserseite):",Legende!$B$3:$E$83,3,FALSE),0))) -> Sekundärseite (Wasserseite): | T21: =IF(Sprache="Deutsch",VLOOKUP("Einstellung Düsenklappe (Primärluftmenge)",Legende!$B$3:$E$83,1,FALSE),IF(Sprache="English",VLOOKUP("Einstellung Düsenklappe (Primärluftmenge)",Legende!$B$3:$E$83,2,FALSE),IF(Sprache="Francais",VLOOKUP("Einstellung Düsenklappe (Primärluftmenge)",Legende!$B$3:$E$83,3,FALSE),0))) -> Einstellung Düsenklappe (Primärluftmenge)
B22: =IF(Sprache="Deutsch",VLOOKUP("Wasservorlauftemperatur",Legende!$B$3:$E$83,1,FALSE),IF(Sprache="English",VLOOKUP("Wasservorlauftemperatur",Legende!$B$3:$E$83,2,FALSE),IF(Sprache="Francais",VLOOKUP("Wasservorlauftemperatur",Legende!$B$3:$E$83,3,FALSE),0))) -> Wasservorlauftemperatur | E22: 16 | I22: =IF(Sprache="Deutsch",VLOOKUP("Bereich:",Legende!$B$3:$E$83,1,FALSE),IF(Sprache="English",VLOOKUP("Bereich:",Legende!$B$3:$E$83,2,FALSE),IF(Sprache="Francais",VLOOKUP("Bereich:",Legende!$B$3:$E$83,3,FALSE),0))) -> Bereich: | K22: 6 - 32 °C
B23: =IF(Sprache="Deutsch",VLOOKUP("Wassermassenstrom",Legende!$B$3:$E$83,1,FALSE),IF(Sprache="English",VLOOKUP("Wassermassenstrom",Legende!$B$3:$E$83,2,FALSE),IF(Sprache="Francais",VLOOKUP("Wassermassenstrom",Legende!$B$3:$E$83,3,FALSE),0))) -> Wassermassenstrom | E23: 120 | I23: =IF(Sprache="Deutsch",VLOOKUP("Bereich:",Legende!$B$3:$E$83,1,FALSE),IF(Sprache="English",VLOOKUP("Bereich:",Legende!$B$3:$E$83,2,FALSE),IF(Sprache="Francais",VLOOKUP("Bereich:",Legende!$B$3:$E$83,3,FALSE),0))) -> Bereich: | K23: 30 - 300 kg/h
B25: =IF(Sprache="Deutsch",VLOOKUP("Geräte Baugröße",Legende!$B$3:$E$83,1,FALSE),IF(Sprache="English",VLOOKUP("Geräte Baugröße",Legende!$B$3:$E$83,2,FALSE),IF(Sprache="Francais",VLOOKUP("Geräte Baugröße",Legende!$B$3:$E$83,3,FALSE),0))) -> Geräte Baugröße | E25: 630 | N25: 800 | W25: 1000
B26: =IF(Sprache="Deutsch",VLOOKUP("Einstellung Düsenklappe",Legende!$B$3:$E$83,1,FALSE),IF(Sprache="English",VLOOKUP("Einstellung Düsenklappe",Legende!$B$3:$E$83,2,FALSE),IF(Sprache="Francais",VLOOKUP("Einstellung Düsenklappe",Legende!$B$3:$E$83,3,FALSE),0))) -> Einstellung Düsenklappe | E26: V0 | F26: V1 | G26: V2 | H26: V3 | I26: V4 | J26: V5 | K26: V6 | N26: V0 | O26: V1 | P26: V2 | Q26: V3 | R26: V4 | S26: V5 | T26: V6 | W26: V0 | X26: V1 | Y26: V2 | Z26: V3 | AA26: V4 | AB26: V5 | AC26: V6
B27: =IF(Sprache="Deutsch",VLOOKUP("Primärvolumenstrom - Vp",Legende!$B$3:$E$83,1,FALSE),IF(Sprache="English",VLOOKUP("Primärvolumenstrom - Vp",Legende!$B$3:$E$83,2,FALSE),IF(Sprache="Francais",VLOOKUP("Primärvolumenstrom - Vp",Legende!$B$3:$E$83,3,FALSE),0))) -> Primärvolumenstrom - Vp | E27: ='Hinterlegte Gleichungen'!AB42 -> 4.592435366 | F27: ='Hinterlegte Gleichungen'!AB43 -> 12.42246037 | G27: ='Hinterlegte Gleichungen'!AB44 -> 20.15887529 | H27: ='Hinterlegte Gleichungen'!AB46 -> 36.60726 | I27: ='Hinterlegte Gleichungen'!AB47 -> 52.38374312 | J27: ='Hinterlegte Gleichungen'!AB48 -> 58.40905732 | K27: ='Hinterlegte Gleichungen'!AB49 -> 64.29257317 | L27: m³/h | N27: ='Hinterlegte Gleichungen'!G42 -> 7.531594 | O27: ='Hinterlegte Gleichungen'!G43 -> 20.372835 | P27: ='Hinterlegte Gleichungen'!G44 -> 32.564337 | Q27: ='Hinterlegte Gleichungen'!G46 -> 58.571616 | R27: ='Hinterlegte Gleichungen'!G47 -> 83.813989 | S27: ='Hinterlegte Gleichungen'!G48 -> 95.790854 | T27: ='Hinterlegte Gleichungen'!G49 -> 105.43982 | U27: m³/h | W27: ='Hinterlegte Gleichungen'!AW42 -> 9.368568146 | X27: ='Hinterlegte Gleichungen'!AW43 -> 25.34181915 | Y27: ='Hinterlegte Gleichungen'!AW44 -> 40.31775057 | Z27: ='Hinterlegte Gleichungen'!AW46 -> 72.2993385 | AA27: ='Hinterlegte Gleichungen'!AW47 -> 103.4578927 | AB27: ='Hinterlegte Gleichungen'!AW48 -> 119.1544769 | AC27: ='Hinterlegte Gleichungen'!AW49 -> 131.1568493 | AD27: m³/h
B28: =IF(Sprache="Deutsch",VLOOKUP("Primärleistung - Qp",Legende!$B$3:$E$83,1,FALSE),IF(Sprache="English",VLOOKUP("Primärleistung - Qp",Legende!$B$3:$E$83,2,FALSE),IF(Sprache="Francais",VLOOKUP("Primärleistung - Qp",Legende!$B$3:$E$83,3,FALSE),0))) -> Primärleistung - Qp | E28: ='Hinterlegte Gleichungen'!AE42 -> 10.71568252 | F28: ='Hinterlegte Gleichungen'!AE43 -> 28.98574085 | G28: ='Hinterlegte Gleichungen'!AE44 -> 47.03737567 | H28: ='Hinterlegte Gleichungen'!AE46 -> 85.41694 | I28: ='Hinterlegte Gleichungen'!AE47 -> 122.228734 | J28: ='Hinterlegte Gleichungen'!AE48 -> 136.2878004 | K28: ='Hinterlegte Gleichungen'!AE49 -> 150.0160041 | L28: W | N28: ='Hinterlegte Gleichungen'!J42 -> 17.57371933 | O28: ='Hinterlegte Gleichungen'!J43 -> 47.536615 | P28: ='Hinterlegte Gleichungen'!J44 -> 75.983453 | Q28: ='Hinterlegte Gleichungen'!J46 -> 136.667104 | R28: ='Hinterlegte Gleichungen'!J47 -> 195.5659743 | S28: ='Hinterlegte Gleichungen'!J48 -> 223.5119927 | T28: ='Hinterlegte Gleichungen'!J49 -> 246.0262467 | U28: W | W28: ='Hinterlegte Gleichungen'!AZ42 -> 21.85999234 | X28: ='Hinterlegte Gleichungen'!AZ43 -> 59.13091134 | Y28: ='Hinterlegte Gleichungen'!AZ44 -> 94.07475133 | Z28: ='Hinterlegte Gleichungen'!AZ46 -> 168.6984565 | AA28: ='Hinterlegte Gleichungen'!AZ47 -> 241.4017496 | AB28: ='Hinterlegte Gleichungen'!AZ48 -> 278.0271128 | AC28: ='Hinterlegte Gleichungen'!AZ49 -> 306.0326483 | AD28: W
B30: =IF(Sprache="Deutsch",VLOOKUP("Sekundärleistung - Qk",Legende!$B$3:$E$83,1,FALSE),IF(Sprache="English",VLOOKUP("Sekundärleistung - Qk",Legende!$B$3:$E$83,2,FALSE),IF(Sprache="Francais",VLOOKUP("Sekundärleistung - Qk",Legende!$B$3:$E$83,3,FALSE),0))) -> Sekundärleistung - Qk | E30: ='Hinterlegte Gleichungen'!AH42 -> 0 | F30: ='Hinterlegte Gleichungen'!AI43 -> 133.8245942 | G30: ='Hinterlegte Gleichungen'!AI44 -> 198.4193031 | H30: ='Hinterlegte Gleichungen'!AI46 -> 198.4193031 | I30: ='Hinterlegte Gleichungen'!AI47 -> 198.4193031 | J30: ='Hinterlegte Gleichungen'!AI48 -> 232.2781819 | K30: ='Hinterlegte Gleichungen'!AI49 -> 253.1911586 | L30: W | N30: ='Hinterlegte Gleichungen'!N42 -> 0 | O30: ='Hinterlegte Gleichungen'!N43 -> 203.2388397 | P30: ='Hinterlegte Gleichungen'!N44 -> 301.3385482 | Q30: ='Hinterlegte Gleichungen'!N46 -> 301.3385482 | R30: ='Hinterlegte Gleichungen'!N47 -> 301.3385482 | S30: ='Hinterlegte Gleichungen'!N48 -> 352.7598829 | T30: ='Hinterlegte Gleichungen'!N49 -> 384.5203313 | U30: W | W30: ='Hinterlegte Gleichungen'!BD42 -> 0 | X30: ='Hinterlegte Gleichungen'!BD43 -> 250.6691407 | Y30: ='Hinterlegte Gleichungen'!BD44 -> 371.6625968 | Z30: ='Hinterlegte Gleichungen'!BD46 -> 371.6625968 | AA30: ='Hinterlegte Gleichungen'!BD47 -> 371.6625968 | AB30: ='Hinterlegte Gleichungen'!BD48 -> 435.0842429 | AC30: ='Hinterlegte Gleichungen'!BD49 -> 474.256698 | AD30: W
B31: =IF(Sprache="Deutsch",VLOOKUP("Wasserrücklauftemperatur",Legende!$B$3:$E$83,1,FALSE),IF(Sprache="English",VLOOKUP("Wasserrücklauftemperatur",Legende!$B$3:$E$83,2,FALSE),IF(Sprache="Francais",VLOOKUP("Wasserrücklauftemperatur",Legende!$B$3:$E$83,3,FALSE),0))) -> Wasserrücklauftemperatur | E31: ='Hinterlegte Gleichungen'!AL42 -> 16 | F31: ='Hinterlegte Gleichungen'!AL43 -> 16.95817132 | G31: ='Hinterlegte Gleichungen'!AL44 -> 17.42066327 | H31: ='Hinterlegte Gleichungen'!AL46 -> 17.42066327 | I31: ='Hinterlegte Gleichungen'!AL47 -> 17.42066327 | J31: ='Hinterlegte Gleichungen'!AL48 -> 17.66308961 | K31: ='Hinterlegte Gleichungen'!AL49 -> 17.81282452 | L31: K | N31: ='Hinterlegte Gleichungen'!Q42 -> 16 | O31: ='Hinterlegte Gleichungen'!Q43 -> 17.45517069 | P31: ='Hinterlegte Gleichungen'!Q44 -> 18.15755524 | Q31: ='Hinterlegte Gleichungen'!Q46 -> 18.15755524 | R31: ='Hinterlegte Gleichungen'!Q47 -> 18.15755524 | S31: ='Hinterlegte Gleichungen'!Q48 -> 18.52572709 | T31: ='Hinterlegte Gleichungen'!Q49 -> 18.75312886 | U31: K | W31: ='Hinterlegte Gleichungen'!BG42 -> 16 | X31: ='Hinterlegte Gleichungen'!BG43 -> 17.79476712 | Y31: ='Hinterlegte Gleichungen'!BG44 -> 18.66106871 | Z31: ='Hinterlegte Gleichungen'!BG46 -> 18.66106871 | AA31: ='Hinterlegte Gleichungen'!BG47 -> 18.66106871 | AB31: ='Hinterlegte Gleichungen'!BG48 -> 19.11516164 | AC31: ='Hinterlegte Gleichungen'!BG49 -> 19.39563268 | AD31: K
B32: =IF(Sprache="Deutsch",VLOOKUP("Wasserseitiger Druckverlust",Legende!$B$3:$E$83,1,FALSE),IF(Sprache="English",VLOOKUP("Wasserseitiger Druckverlust",Legende!$B$3:$E$83,2,FALSE),IF(Sprache="Francais",VLOOKUP("Wasserseitiger Druckverlust",Legende!$B$3:$E$83,3,FALSE),0))) -> Wasserseitiger Druckverlust | E32: =-0.0000002*E23*E23*E23 + 0.00036147*E23*E23 + 0.0098527*E23 -> 6.041892 | N32: =-0.0000003134*E23*E23*E23 + 0.0004811088*E23*E23 + 0.0098002421*E23 -> 7.562440572 | W32: =-0.0000003531*E23*E23*E23 + 0.0005588302*E23*E23 + 0.0125670904*E23 -> 8.945048928
B34: =IF(Sprache="Deutsch",VLOOKUP("Gesamt Kühlleistung - Q",Legende!$B$3:$E$83,1,FALSE),IF(Sprache="English",VLOOKUP("Gesamt Kühlleistung - Q",Legende!$B$3:$E$83,2,FALSE),IF(Sprache="Francais",VLOOKUP("Gesamt Kühlleistung - Q",Legende!$B$3:$E$83,3,FALSE),0))) -> Gesamt Kühlleistung - Q | E34: ='Hinterlegte Gleichungen'!AJ42 -> 10.71568252 | F34: ='Hinterlegte Gleichungen'!AJ43 -> 162.8103351 | G34: ='Hinterlegte Gleichungen'!AJ44 -> 245.4566788 | H34: ='Hinterlegte Gleichungen'!AJ46 -> 283.8362431 | I34: ='Hinterlegte Gleichungen'!AJ47 -> 320.6480371 | J34: ='Hinterlegte Gleichungen'!AJ48 -> 368.5659823 | K34: ='Hinterlegte Gleichungen'!AJ49 -> 403.2071627 | L34: W | N34: ='Hinterlegte Gleichungen'!O42 -> 17.57371933 | O34: ='Hinterlegte Gleichungen'!O43 -> 250.7754547 | P34: ='Hinterlegte Gleichungen'!O44 -> 377.3220012 | Q34: ='Hinterlegte Gleichungen'!O46 -> 438.0056522 | R34: ='Hinterlegte Gleichungen'!O47 -> 496.9045225 | S34: ='Hinterlegte Gleichungen'!O48 -> 576.2718755 | T34: ='Hinterlegte Gleichungen'!O49 -> 630.5465779 | U34: W | W34: ='Hinterlegte Gleichungen'!BE42 -> 21.85999234 | X34: ='Hinterlegte Gleichungen'!BE43 -> 309.8000521 | Y34: ='Hinterlegte Gleichungen'!BE44 -> 465.7373481 | Z34: ='Hinterlegte Gleichungen'!BE46 -> 540.3610533 | AA34: ='Hinterlegte Gleichungen'!BE47 -> 613.0643464 | AB34: ='Hinterlegte Gleichungen'!BE48 -> 713.1113558 | AC34: ='Hinterlegte Gleichungen'!BE49 -> 780.2893462 | AD34: W
B35: =IF(Sprache="Deutsch",VLOOKUP("Schallleistungspegel - MQ Gerät",Legende!$B$3:$E$83,1,FALSE),IF(Sprache="English",VLOOKUP("Schallleistungspegel - MQ Gerät",Legende!$B$3:$E$83,2,FALSE),IF(Sprache="Francais",VLOOKUP("Schallleistungspegel - MQ Gerät",Legende!$B$3:$E$83,3,FALSE),0))) -> Schallleistungspegel - MQ Gerät | E35: =IF('Hinterlegte Gleichungen'!AC65>28,('Hinterlegte Gleichungen'!AC65),IF('Hinterlegte Gleichungen'!AC65<28,"< 28")) -> < 28 | F35: =IF('Hinterlegte Gleichungen'!AD65>28,('Hinterlegte Gleichungen'!AD65),IF('Hinterlegte Gleichungen'!AD65<28,"< 28")) -> < 28 | G35: =IF('Hinterlegte Gleichungen'!AE65>28,('Hinterlegte Gleichungen'!AE65),IF('Hinterlegte Gleichungen'!AE65<28,"< 28")) -> < 28 | H35: =IF('Hinterlegte Gleichungen'!AF65>28,('Hinterlegte Gleichungen'!AF65),IF('Hinterlegte Gleichungen'!AF65<28,"< 28")) -> 28.90629653 | I35: =IF('Hinterlegte Gleichungen'!AG65>28,('Hinterlegte Gleichungen'!AG65),IF('Hinterlegte Gleichungen'!AG65<28,"< 28")) -> 31.35863893 | J35: =IF('Hinterlegte Gleichungen'!AH65>28,('Hinterlegte Gleichungen'!AH65),IF('Hinterlegte Gleichungen'!AH65<28,"< 28")) -> 31.32777642 | K35: =IF('Hinterlegte Gleichungen'!AI65>28,('Hinterlegte Gleichungen'!AI65),IF('Hinterlegte Gleichungen'!AI65<28,"< 28")) -> 31.09413095 | L35: dB(A) | N35: =IF('Hinterlegte Gleichungen'!H65>28,('Hinterlegte Gleichungen'!H65),IF('Hinterlegte Gleichungen'!H65<28,"< 28")) -> 29.12528343 | O35: =IF('Hinterlegte Gleichungen'!I65>28,('Hinterlegte Gleichungen'!I65),IF('Hinterlegte Gleichungen'!I65<28,"< 28")) -> 28.34103992 | P35: =IF('Hinterlegte Gleichungen'!J65>28,('Hinterlegte Gleichungen'!J65),IF('Hinterlegte Gleichungen'!J65<28,"< 28")) -> 28.34390291 | Q35: =IF('Hinterlegte Gleichungen'!K65>28,('Hinterlegte Gleichungen'!K65),IF('Hinterlegte Gleichungen'!K65<28,"< 28")) -> 30.94749635 | R35: =IF('Hinterlegte Gleichungen'!L65>28,('Hinterlegte Gleichungen'!L65),IF('Hinterlegte Gleichungen'!L65<28,"< 28")) -> 33.39983875 | S35: =IF('Hinterlegte Gleichungen'!M65>28,('Hinterlegte Gleichungen'!M65),IF('Hinterlegte Gleichungen'!M65<28,"< 28")) -> 33.4762149 | T35: =IF('Hinterlegte Gleichungen'!N65>28,('Hinterlegte Gleichungen'!N65),IF('Hinterlegte Gleichungen'!N65<28,"< 28")) -> 33.24256944 | U35: dB(A) | W35: =IF('Hinterlegte Gleichungen'!AX65>28,('Hinterlegte Gleichungen'!AX65),IF('Hinterlegte Gleichungen'!AX65<28,"< 28")) -> 30.07314662 | X35: =IF('Hinterlegte Gleichungen'!AY65>28,('Hinterlegte Gleichungen'!AY65),IF('Hinterlegte Gleichungen'!AY65<28,"< 28")) -> 29.26858045 | Y35: =IF('Hinterlegte Gleichungen'!AZ65>28,('Hinterlegte Gleichungen'!AZ65),IF('Hinterlegte Gleichungen'!AZ65<28,"< 28")) -> 29.27144344 | Z35: =IF('Hinterlegte Gleichungen'!BA65>28,('Hinterlegte Gleichungen'!BA65),IF('Hinterlegte Gleichungen'!BA65<28,"< 28")) -> 31.86196753 | AA35: =IF('Hinterlegte Gleichungen'!BB65>28,('Hinterlegte Gleichungen'!BB65),IF('Hinterlegte Gleichungen'!BB65<28,"< 28")) -> 34.31430993 | AB35: =IF('Hinterlegte Gleichungen'!BC65>28,('Hinterlegte Gleichungen'!BC65),IF('Hinterlegte Gleichungen'!BC65<28,"< 28")) -> 34.4240781 | AC35: =IF('Hinterlegte Gleichungen'!BD65>28,('Hinterlegte Gleichungen'!BD65),IF('Hinterlegte Gleichungen'!BD65<28,"< 28")) -> 34.19043263 | AD35: dB(A)
B36: =IF(Sprache="Deutsch",VLOOKUP("Schallleistungspegel - MQQ Gerät",Legende!$B$3:$E$83,1,FALSE),IF(Sprache="English",VLOOKUP("Schallleistungspegel - MQQ Gerät",Legende!$B$3:$E$83,2,FALSE),IF(Sprache="Francais",VLOOKUP("Schallleistungspegel - MQQ Gerät",Legende!$B$3:$E$83,3,FALSE),0))) -> Schallleistungspegel - MQQ Gerät | E36: =IF('Hinterlegte Gleichungen'!AC66>28,('Hinterlegte Gleichungen'!AC66),IF('Hinterlegte Gleichungen'!AC66<28,"< 28")) -> < 28 | F36: =IF('Hinterlegte Gleichungen'!AD66>28,('Hinterlegte Gleichungen'!AD66),IF('Hinterlegte Gleichungen'!AD66<28,"< 28")) -> < 28 | G36: =IF('Hinterlegte Gleichungen'!AE66>28,('Hinterlegte Gleichungen'!AE66),IF('Hinterlegte Gleichungen'!AE66<28,"< 28")) -> < 28 | H36: =IF('Hinterlegte Gleichungen'!AF66>28,('Hinterlegte Gleichungen'!AF66),IF('Hinterlegte Gleichungen'!AF66<28,"< 28")) -> 29.33960097 | I36: =IF('Hinterlegte Gleichungen'!AG66>28,('Hinterlegte Gleichungen'!AG66),IF('Hinterlegte Gleichungen'!AG66<28,"< 28")) -> 33.53194611 | J36: =IF('Hinterlegte Gleichungen'!AH66>28,('Hinterlegte Gleichungen'!AH66),IF('Hinterlegte Gleichungen'!AH66<28,"< 28")) -> 32.47155802 | K36: =IF('Hinterlegte Gleichungen'!AI66>28,('Hinterlegte Gleichungen'!AI66),IF('Hinterlegte Gleichungen'!AI66<28,"< 28")) -> 32.10799099 | L36: dB(A) | N36: =IF('Hinterlegte Gleichungen'!H66>28,('Hinterlegte Gleichungen'!H66),IF('Hinterlegte Gleichungen'!H66<28,"< 28")) -> 29.12528343 | O36: =IF('Hinterlegte Gleichungen'!I66>28,('Hinterlegte Gleichungen'!I66),IF('Hinterlegte Gleichungen'!I66<28,"< 28")) -> 28.34103992 | P36: =IF('Hinterlegte Gleichungen'!J66>28,('Hinterlegte Gleichungen'!J66),IF('Hinterlegte Gleichungen'!J66<28,"< 28")) -> 28.34390291 | Q36: =IF('Hinterlegte Gleichungen'!K66>28,('Hinterlegte Gleichungen'!K66),IF('Hinterlegte Gleichungen'!K66<28,"< 28")) -> 31.38080079 | R36: =IF('Hinterlegte Gleichungen'!L66>28,('Hinterlegte Gleichungen'!L66),IF('Hinterlegte Gleichungen'!L66<28,"< 28")) -> 35.57314594 | S36: =IF('Hinterlegte Gleichungen'!M66>28,('Hinterlegte Gleichungen'!M66),IF('Hinterlegte Gleichungen'!M66<28,"< 28")) -> 34.6199965 | T36: =IF('Hinterlegte Gleichungen'!N66>28,('Hinterlegte Gleichungen'!N66),IF('Hinterlegte Gleichungen'!N66<28,"< 28")) -> 34.25642947 | U36: dB(A) | W36: =IF('Hinterlegte Gleichungen'!AX66>28,('Hinterlegte Gleichungen'!AX66),IF('Hinterlegte Gleichungen'!AX66<28,"< 28")) -> 30.07314662 | X36: =IF('Hinterlegte Gleichungen'!AY66>28,('Hinterlegte Gleichungen'!AY66),IF('Hinterlegte Gleichungen'!AY66<28,"< 28")) -> 29.26858045 | Y36: =IF('Hinterlegte Gleichungen'!AZ66>28,('Hinterlegte Gleichungen'!AZ66),IF('Hinterlegte Gleichungen'!AZ66<28,"< 28")) -> 29.27144344 | Z36: =IF('Hinterlegte Gleichungen'!BA66>28,('Hinterlegte Gleichungen'!BA66),IF('Hinterlegte Gleichungen'!BA66<28,"< 28")) -> 32.29527197 | AA36: =IF('Hinterlegte Gleichungen'!BB66>28,('Hinterlegte Gleichungen'!BB66),IF('Hinterlegte Gleichungen'!BB66<28,"< 28")) -> 36.48761711 | AB36: =IF('Hinterlegte Gleichungen'!BC66>28,('Hinterlegte Gleichungen'!BC66),IF('Hinterlegte Gleichungen'!BC66<28,"< 28")) -> 35.56785969 | AC36: =IF('Hinterlegte Gleichungen'!BD66>28,('Hinterlegte Gleichungen'!BD66),IF('Hinterlegte Gleichungen'!BD66<28,"< 28")) -> 35.20429267 | AD36: dB(A)
K37: =IF(Sprache="Deutsch",VLOOKUP("Toleranz +/- 3 dB",Legende!$B$3:$E$83,1,FALSE),IF(Sprache="English",VLOOKUP("Toleranz +/- 3 dB",Legende!$B$3:$E$83,2,FALSE),IF(Sprache="Francais",VLOOKUP("Toleranz +/- 3 dB",Legende!$B$3:$E$83,3,FALSE),0))) -> Toleranz +/- 3 dB | T37: =IF(Sprache="Deutsch",VLOOKUP("Toleranz +/- 3 dB",Legende!$B$3:$E$83,1,FALSE),IF(Sprache="English",VLOOKUP("Toleranz +/- 3 dB",Legende!$B$3:$E$83,2,FALSE),IF(Sprache="Francais",VLOOKUP("Toleranz +/- 3 dB",Legende!$B$3:$E$83,3,FALSE),0))) -> Toleranz +/- 3 dB | AC37: =IF(Sprache="Deutsch",VLOOKUP("Toleranz +/- 3 dB",Legende!$B$3:$E$83,1,FALSE),IF(Sprache="English",VLOOKUP("Toleranz +/- 3 dB",Legende!$B$3:$E$83,2,FALSE),IF(Sprache="Francais",VLOOKUP("Toleranz +/- 3 dB",Legende!$B$3:$E$83,3,FALSE),0))) -> Toleranz +/- 3 dB
B39: =IF(Sprache="Deutsch",VLOOKUP("Regelbereich",Legende!$B$3:$E$83,1,FALSE),IF(Sprache="English",VLOOKUP("Regelbereich",Legende!$B$3:$E$83,2,FALSE),IF(Sprache="Francais",VLOOKUP("Regelbereich",Legende!$B$3:$E$83,3,FALSE),0))) -> Regelbereich
C41: =IF(Sprache="Deutsch",VLOOKUP("Leistung [W]",Legende!$B$3:$E$83,1,FALSE),IF(Sprache="English",VLOOKUP("Leistung [W]",Legende!$B$3:$E$83,2,FALSE),IF(Sprache="Francais",VLOOKUP("Leistung [W]",Legende!$B$3:$E$83,3,FALSE),0))) -> Leistung [W] | AD41: =IF(Sprache="Deutsch",VLOOKUP("Schallleistungspegel [dB(A)]",Legende!$B$3:$E$83,1,FALSE),IF(Sprache="English",VLOOKUP("Schallleistungspegel [dB(A)]",Legende!$B$3:$E$83,2,FALSE),IF(Sprache="Francais",VLOOKUP("Schallleistungspegel [dB(A)]",Legende!$B$3:$E$83,3,FALSE),0))) -> Schallleistungspegel [dB(A)]
F51: =IF(Sprache="Deutsch",VLOOKUP("Primärvolumenstrom - Vp [m³/h]",Legende!$B$3:$E$83,1,FALSE),IF(Sprache="English",VLOOKUP("Primärvolumenstrom - Vp [m³/h]",Legende!$B$3:$E$83,2,FALSE),IF(Sprache="Francais",VLOOKUP("Primärvolumenstrom - Vp [m³/h]",Legende!$B$3:$E$83,3,FALSE),0))) -> Primärvolumenstrom - Vp [m³/h] | O51: =IF(Sprache="Deutsch",VLOOKUP("Primärvolumenstrom - Vp [m³/h]",Legende!$B$3:$E$83,1,FALSE),IF(Sprache="English",VLOOKUP("Primärvolumenstrom - Vp [m³/h]",Legende!$B$3:$E$83,2,FALSE),IF(Sprache="Francais",VLOOKUP("Primärvolumenstrom - Vp [m³/h]",Legende!$B$3:$E$83,3,FALSE),0))) -> Primärvolumenstrom - Vp [m³/h] | X51: =IF(Sprache="Deutsch",VLOOKUP("Primärvolumenstrom - Vp [m³/h]",Legende!$B$3:$E$83,1,FALSE),IF(Sprache="English",VLOOKUP("Primärvolumenstrom - Vp [m³/h]",Legende!$B$3:$E$83,2,FALSE),IF(Sprache="Francais",VLOOKUP("Primärvolumenstrom - Vp [m³/h]",Legende!$B$3:$E$83,3,FALSE),0))) -> Primärvolumenstrom - Vp [m³/h]
G53: =IF(Sprache="Deutsch",VLOOKUP("Primärleistung",Legende!$B$3:$E$83,1,FALSE),IF(Sprache="English",VLOOKUP("Primärleistung",Legende!$B$3:$E$83,2,FALSE),IF(Sprache="Francais",VLOOKUP("Primärleistung",Legende!$B$3:$E$83,3,FALSE),0))) -> Primärleistung | P53: =IF(Sprache="Deutsch",VLOOKUP("Primärleistung",Legende!$B$3:$E$83,1,FALSE),IF(Sprache="English",VLOOKUP("Primärleistung",Legende!$B$3:$E$83,2,FALSE),IF(Sprache="Francais",VLOOKUP("Primärleistung",Legende!$B$3:$E$83,3,FALSE),0))) -> Primärleistung | Y53: =IF(Sprache="Deutsch",VLOOKUP("Primärleistung",Legende!$B$3:$E$83,1,FALSE),IF(Sprache="English",VLOOKUP("Primärleistung",Legende!$B$3:$E$83,2,FALSE),IF(Sprache="Francais",VLOOKUP("Primärleistung",Legende!$B$3:$E$83,3,FALSE),0))) -> Primärleistung
G54: =IF(Sprache="Deutsch",VLOOKUP("Sekundärleistung",Legende!$B$3:$E$83,1,FALSE),IF(Sprache="English",VLOOKUP("Sekundärleistung",Legende!$B$3:$E$83,2,FALSE),IF(Sprache="Francais",VLOOKUP("Sekundärleistung",Legende!$B$3:$E$83,3,FALSE),0))) -> Sekundärleistung | P54: =IF(Sprache="Deutsch",VLOOKUP("Sekundärleistung",Legende!$B$3:$E$83,1,FALSE),IF(Sprache="English",VLOOKUP("Sekundärleistung",Legende!$B$3:$E$83,2,FALSE),IF(Sprache="Francais",VLOOKUP("Sekundärleistung",Legende!$B$3:$E$83,3,FALSE),0))) -> Sekundärleistung | Y54: =IF(Sprache="Deutsch",VLOOKUP("Sekundärleistung",Legende!$B$3:$E$83,1,FALSE),IF(Sprache="English",VLOOKUP("Sekundärleistung",Legende!$B$3:$E$83,2,FALSE),IF(Sprache="Francais",VLOOKUP("Sekundärleistung",Legende!$B$3:$E$83,3,FALSE),0))) -> Sekundärleistung
G55: =IF(Sprache="Deutsch",VLOOKUP("Gesamt Kühlleistung",Legende!$B$3:$E$83,1,FALSE),IF(Sprache="English",VLOOKUP("Gesamt Kühlleistung",Legende!$B$3:$E$83,2,FALSE),IF(Sprache="Francais",VLOOKUP("Gesamt Kühlleistung",Legende!$B$3:$E$83,3,FALSE),0))) -> Gesamt Kühlleistung | P55: =IF(Sprache="Deutsch",VLOOKUP("Gesamt Kühlleistung",Legende!$B$3:$E$83,1,FALSE),IF(Sprache="English",VLOOKUP("Gesamt Kühlleistung",Legende!$B$3:$E$83,2,FALSE),IF(Sprache="Francais",VLOOKUP("Gesamt Kühlleistung",Legende!$B$3:$E$83,3,FALSE),0))) -> Gesamt Kühlleistung | Y55: =IF(Sprache="Deutsch",VLOOKUP("Gesamt Kühlleistung",Legende!$B$3:$E$83,1,FALSE),IF(Sprache="English",VLOOKUP("Gesamt Kühlleistung",Legende!$B$3:$E$83,2,FALSE),IF(Sprache="Francais",VLOOKUP("Gesamt Kühlleistung",Legende!$B$3:$E$83,3,FALSE),0))) -> Gesamt Kühlleistung
B58: =IF(Sprache="Deutsch",VLOOKUP("© LTG Aktiengesellschaft - Letzte Änderung: 13.03.2012",Legende!$B$3:$E$83,1,FALSE),IF(Sprache="English",VLOOKUP("© LTG Aktiengesellschaft - Letzte Änderung: 13.03.2012",Legende!$B$3:$E$83,2,FALSE),IF(Sprache="Francais",VLOOKUP("© LTG Aktiengesellschaft - Letzte Änderung: 13.03.2012",Legende!$B$3:$E$83,3,FALSE),0))) -> © LTG Aktiengesellschaft - Letzte Änderung: 13.03.2012
B59: =IF(Sprache="Deutsch",VLOOKUP("Angaben zu Toleranzen sowie weitere Spezifikationen sind der aktuellen LTG Bauteilmappe zu entnehmen.",Legende!$B$3:$E$83,1,FALSE),IF(Sprache="English",VLOOKUP("Angaben zu Toleranzen sowie weitere Spezifikationen sind der aktuellen LTG Bauteilmappe zu entnehmen.",Legende!$B$3:$E$83,2,FALSE),IF(Sprache="Francais",VLOOKUP("Angaben zu Toleranzen sowie weitere Spezifikationen sind der aktuellen LTG Bauteilmappe zu entnehmen.",Legende!$B$3:$E$83,3,FALSE),0))) -> Angaben zu Toleranzen sowie weitere Spezifikationen sind der aktuellen LTG Bauteilmappe zu entnehmen.
B60: =IF(Sprache="Deutsch",VLOOKUP("Eine Fehlerfreiheit des Programms kann nicht zugesichert werden. Im Zweifel gelten die technischen Daten der aktuellen LTG Bauteilmappe.",Legende!$B$3:$E$83,1,FALSE),IF(Sprache="English",VLOOKUP("Eine Fehlerfreiheit des Programms kann nicht zugesichert werden. Im Zweifel gelten die technischen Daten der aktuellen LTG Bauteilmappe.",Legende!$B$3:$E$83,2,FALSE),IF(Sprache="Francais",VLOOKUP("Eine Fehlerfreiheit des Programms kann nicht zugesichert werden. Im Zweifel gelten die technischen Daten der aktuellen LTG Bauteilmappe.",Legende!$B$3:$E$83,3,FALSE),0))) -> Eine Fehlerfreiheit des Programms kann nicht zugesichert werden. Im Zweifel gelten die technischen Daten der aktuellen LTG Bauteilmappe.
B61: =IF(Sprache="Deutsch",VLOOKUP("Aus Programmierfehlern entstandener Schaden geht nicht zu Lasten der LTG. Technische Änderungen im Rahmen der Weiterentwicklung vorbehalten.",Legende!$B$3:$E$83,1,FALSE),IF(Sprache="English",VLOOKUP("Aus Programmierfehlern entstandener Schaden geht nicht zu Lasten der LTG. Technische Änderungen im Rahmen der Weiterentwicklung vorbehalten.",Legende!$B$3:$E$83,2,FALSE),IF(Sprache="Francais",VLOOKUP("Aus Programmierfehlern entstandener Schaden geht nicht zu Lasten der LTG. Technische Änderungen im Rahmen der Weiterentwicklung vorbehalten.",Legende!$B$3:$E$83,3,FALSE),0))) -> Aus Programmierfehlern entstandener Schaden geht nicht zu Lasten der LTG. Technische Änderungen im Rahmen der Weiterentwicklung vorbehalten.

Sheet HFVsf-_-4 - Heizen
B1: Tel. +49 (0)711 8201-180 Fax: -720 | Z1: eMail: | AD1: Raumluft@LTG-AG.de
B2: =IF(Sprache="Deutsch",VLOOKUP("Induktionsgerät HFVsf - System smart flow, 4-Leiter-System",Legende!$B$3:$E$83,1,FALSE),IF(Sprache="English",VLOOKUP("Induktionsgerät HFVsf - System smart flow, 4-Leiter-System",Legende!$B$3:$E$83,2,FALSE),IF(Sprache="Francais",VLOOKUP("Induktionsgerät HFVsf - System smart flow, 4-Leiter-System",Legende!$B$3:$E$83,3,FALSE),0))) -> Induktionsgerät HFVsf - System smart flow, 4-Leiter-System | V2: =IF(Sprache="Deutsch",VLOOKUP("Sprache:",Legende!$B$3:$E$83,1,FALSE),IF(Sprache="English",VLOOKUP("Sprache:",Legende!$B$3:$E$83,2,FALSE),IF(Sprache="Francais",VLOOKUP("Sprache:",Legende!$B$3:$E$83,3,FALSE),0))) -> Sprache: | W2: =Sprache -> Deutsch | AD2: LTG Aktiengesellschaft
Y5: =IF(Sprache="Deutsch",VLOOKUP("Datum:",Legende!$B$3:$E$83,1,FALSE),IF(Sprache="English",VLOOKUP("Datum:",Legende!$B$3:$E$83,2,FALSE),IF(Sprache="Francais",VLOOKUP("Datum:",Legende!$B$3:$E$83,3,FALSE),0))) -> Datum: | Z5: =TODAY() -> 2026-06-23
Y6: =IF(Sprache="Deutsch",VLOOKUP("Bearbeiter:",Legende!$B$3:$E$83,1,FALSE),IF(Sprache="English",VLOOKUP("Bearbeiter:",Legende!$B$3:$E$83,2,FALSE),IF(Sprache="Francais",VLOOKUP("Bearbeiter:",Legende!$B$3:$E$83,3,FALSE),0))) -> Bearbeiter:
Y7: =IF(Sprache="Deutsch",VLOOKUP("Projekt:",Legende!$B$3:$E$83,1,FALSE),IF(Sprache="English",VLOOKUP("Projekt:",Legende!$B$3:$E$83,2,FALSE),IF(Sprache="Francais",VLOOKUP("Projekt:",Legende!$B$3:$E$83,3,FALSE),0))) -> Projekt:
Y8: =IF(Sprache="Deutsch",VLOOKUP("Variante:",Legende!$B$3:$E$83,1,FALSE),IF(Sprache="English",VLOOKUP("Variante:",Legende!$B$3:$E$83,2,FALSE),IF(Sprache="Francais",VLOOKUP("Variante:",Legende!$B$3:$E$83,3,FALSE),0))) -> Variante:
B10: =IF(Sprache="Deutsch",VLOOKUP("Auslegunsbedingungen:",Legende!$B$3:$E$83,1,FALSE),IF(Sprache="English",VLOOKUP("Auslegunsbedingungen:",Legende!$B$3:$E$83,2,FALSE),IF(Sprache="Francais",VLOOKUP("Auslegunsbedingungen:",Legende!$B$3:$E$83,3,FALSE),0))) -> Auslegunsbedingungen: | E10: =IF(Sprache="Deutsch",VLOOKUP("Heizen",Legende!$B$3:$E$83,1,FALSE),IF(Sprache="English",VLOOKUP("Heizen",Legende!$B$3:$E$83,2,FALSE),IF(Sprache="Francais",VLOOKUP("Heizen",Legende!$B$3:$E$83,3,FALSE),0))) -> Heizen | I10: =IF(Sprache="Deutsch",VLOOKUP("Bemerkungen:",Legende!$B$3:$E$83,1,FALSE),IF(Sprache="English",VLOOKUP("Bemerkungen:",Legende!$B$3:$E$83,2,FALSE),IF(Sprache="Francais",VLOOKUP("Bemerkungen:",Legende!$B$3:$E$83,3,FALSE),0))) -> Bemerkungen:
B11: =IF(Sprache="Deutsch",VLOOKUP("Raumlufttemperatur",Legende!$B$3:$E$83,1,FALSE),IF(Sprache="English",VLOOKUP("Raumlufttemperatur",Legende!$B$3:$E$83,2,FALSE),IF(Sprache="Francais",VLOOKUP("Raumlufttemperatur",Legende!$B$3:$E$83,3,FALSE),0))) -> Raumlufttemperatur | E11: 22 | I11: =IF(Sprache="Deutsch",VLOOKUP(" => Ablufttemperatur",Legende!$B$3:$E$83,1,FALSE),IF(Sprache="English",VLOOKUP(" => Ablufttemperatur",Legende!$B$3:$E$83,2,FALSE),IF(Sprache="Francais",VLOOKUP(" => Ablufttemperatur",Legende!$B$3:$E$83,3,FALSE),0))) -> => Ablufttemperatur
B13: =IF(Sprache="Deutsch",VLOOKUP("Primärseite (Luftseite):",Legende!$B$3:$E$83,1,FALSE),IF(Sprache="English",VLOOKUP("Primärseite (Luftseite):",Legende!$B$3:$E$83,2,FALSE),IF(Sprache="Francais",VLOOKUP("Primärseite (Luftseite):",Legende!$B$3:$E$83,3,FALSE),0))) -> Primärseite (Luftseite):
B14: =IF(Sprache="Deutsch",VLOOKUP("Primärdruck",Legende!$B$3:$E$83,1,FALSE),IF(Sprache="English",VLOOKUP("Primärdruck",Legende!$B$3:$E$83,2,FALSE),IF(Sprache="Francais",VLOOKUP("Primärdruck",Legende!$B$3:$E$83,3,FALSE),0))) -> Primärdruck | E14: 100 | I14: =IF(Sprache="Deutsch",VLOOKUP("Bereich:",Legende!$B$3:$E$83,1,FALSE),IF(Sprache="English",VLOOKUP("Bereich:",Legende!$B$3:$E$83,2,FALSE),IF(Sprache="Francais",VLOOKUP("Bereich:",Legende!$B$3:$E$83,3,FALSE),0))) -> Bereich: | K14: 50 - 150 Pa
B15: =IF(Sprache="Deutsch",VLOOKUP("Primärlufttemperatur",Legende!$B$3:$E$83,1,FALSE),IF(Sprache="English",VLOOKUP("Primärlufttemperatur",Legende!$B$3:$E$83,2,FALSE),IF(Sprache="Francais",VLOOKUP("Primärlufttemperatur",Legende!$B$3:$E$83,3,FALSE),0))) -> Primärlufttemperatur | E15: 18 | I15: =IF(Sprache="Deutsch",VLOOKUP("Bereich:",Legende!$B$3:$E$83,1,FALSE),IF(Sprache="English",VLOOKUP("Bereich:",Legende!$B$3:$E$83,2,FALSE),IF(Sprache="Francais",VLOOKUP("Bereich:",Legende!$B$3:$E$83,3,FALSE),0))) -> Bereich: | K15: 18 - 30 °C
B17: =IF(Sprache="Deutsch",VLOOKUP("Sekundärseite (Wasserseite):",Legende!$B$3:$E$83,1,FALSE),IF(Sprache="English",VLOOKUP("Sekundärseite (Wasserseite):",Legende!$B$3:$E$83,2,FALSE),IF(Sprache="Francais",VLOOKUP("Sekundärseite (Wasserseite):",Legende!$B$3:$E$83,3,FALSE),0))) -> Sekundärseite (Wasserseite):
B18: =IF(Sprache="Deutsch",VLOOKUP("Wasservorlauftemperatur",Legende!$B$3:$E$83,1,FALSE),IF(Sprache="English",VLOOKUP("Wasservorlauftemperatur",Legende!$B$3:$E$83,2,FALSE),IF(Sprache="Francais",VLOOKUP("Wasservorlauftemperatur",Legende!$B$3:$E$83,3,FALSE),0))) -> Wasservorlauftemperatur | E18: 55 | I18: =IF(Sprache="Deutsch",VLOOKUP("Bereich:",Legende!$B$3:$E$83,1,FALSE),IF(Sprache="English",VLOOKUP("Bereich:",Legende!$B$3:$E$83,2,FALSE),IF(Sprache="Francais",VLOOKUP("Bereich:",Legende!$B$3:$E$83,3,FALSE),0))) -> Bereich: | K18: 30 - 60 °C
B19: =IF(Sprache="Deutsch",VLOOKUP("Wassermassenstrom",Legende!$B$3:$E$83,1,FALSE),IF(Sprache="English",VLOOKUP("Wassermassenstrom",Legende!$B$3:$E$83,2,FALSE),IF(Sprache="Francais",VLOOKUP("Wassermassenstrom",Legende!$B$3:$E$83,3,FALSE),0))) -> Wassermassenstrom | E19: 100 | I19: =IF(Sprache="Deutsch",VLOOKUP("Bereich:",Legende!$B$3:$E$83,1,FALSE),IF(Sprache="English",VLOOKUP("Bereich:",Legende!$B$3:$E$83,2,FALSE),IF(Sprache="Francais",VLOOKUP("Bereich:",Legende!$B$3:$E$83,3,FALSE),0))) -> Bereich: | K19: 10 - 160 kg/h
B21: =IF(Sprache="Deutsch",VLOOKUP("Geräte Baugröße",Legende!$B$3:$E$83,1,FALSE),IF(Sprache="English",VLOOKUP("Geräte Baugröße",Legende!$B$3:$E$83,2,FALSE),IF(Sprache="Francais",VLOOKUP("Geräte Baugröße",Legende!$B$3:$E$83,3,FALSE),0))) -> Geräte Baugröße | E21: 630 | N21: 800 | W21: 1000
B22: =IF(Sprache="Deutsch",VLOOKUP("Einstellung Düsenklappe",Legende!$B$3:$E$83,1,FALSE),IF(Sprache="English",VLOOKUP("Einstellung Düsenklappe",Legende!$B$3:$E$83,2,FALSE),IF(Sprache="Francais",VLOOKUP("Einstellung Düsenklappe",Legende!$B$3:$E$83,3,FALSE),0))) -> Einstellung Düsenklappe | E22: V0 | F22: V1 | G22: V2 | H22: V3 | I22: V4 | J22: V5 | K22: V6 | N22: V0 | O22: V1 | P22: V2 | Q22: V3 | R22: V4 | S22: V5 | T22: V6 | W22: V0 | X22: V1 | Y22: V2 | Z22: V3 | AA22: V4 | AB22: V5 | AC22: V6
B24: =IF(Sprache="Deutsch",VLOOKUP("Primärvolumenstrom - Vp",Legende!$B$3:$E$83,1,FALSE),IF(Sprache="English",VLOOKUP("Primärvolumenstrom - Vp",Legende!$B$3:$E$83,2,FALSE),IF(Sprache="Francais",VLOOKUP("Primärvolumenstrom - Vp",Legende!$B$3:$E$83,3,FALSE),0))) -> Primärvolumenstrom - Vp | E24: ='Hinterlegte Gleichungen'!AB55 -> 4.592435366 | F24: ='Hinterlegte Gleichungen'!AB56 -> 12.42246037 | G24: ='Hinterlegte Gleichungen'!AB57 -> 20.15887529 | H24: ='Hinterlegte Gleichungen'!AB59 -> 36.60726 | I24: ='Hinterlegte Gleichungen'!AB60 -> 52.38374312 | J24: ='Hinterlegte Gleichungen'!AB61 -> 58.40905732 | K24: ='Hinterlegte Gleichungen'!AB62 -> 64.29257317 | L24: m³/h | N24: ='Hinterlegte Gleichungen'!G55 -> 7.531594 | O24: ='Hinterlegte Gleichungen'!G56 -> 20.372835 | P24: ='Hinterlegte Gleichungen'!G57 -> 32.564337 | Q24: ='Hinterlegte Gleichungen'!G59 -> 58.571616 | R24: ='Hinterlegte Gleichungen'!G60 -> 83.813989 | S24: ='Hinterlegte Gleichungen'!G61 -> 95.790854 | T24: ='Hinterlegte Gleichungen'!G62 -> 105.43982 | U24: m³/h | W24: ='Hinterlegte Gleichungen'!AW55 -> 9.368568146 | X24: ='Hinterlegte Gleichungen'!AW56 -> 25.34181915 | Y24: ='Hinterlegte Gleichungen'!AW57 -> 40.31775057 | Z24: ='Hinterlegte Gleichungen'!AW59 -> 72.2993385 | AA24: ='Hinterlegte Gleichungen'!AW60 -> 103.4578927 | AB24: ='Hinterlegte Gleichungen'!AW61 -> 119.1544769 | AC24: ='Hinterlegte Gleichungen'!AW62 -> 131.1568493 | AD24: m³/h
B25: =IF(Sprache="Deutsch",VLOOKUP("Primärleistung - Qp",Legende!$B$3:$E$83,1,FALSE),IF(Sprache="English",VLOOKUP("Primärleistung - Qp",Legende!$B$3:$E$83,2,FALSE),IF(Sprache="Francais",VLOOKUP("Primärleistung - Qp",Legende!$B$3:$E$83,3,FALSE),0))) -> Primärleistung - Qp | E25: ='Hinterlegte Gleichungen'!AE55 -> -6.123247154 | F25: ='Hinterlegte Gleichungen'!AE56 -> -16.56328049 | G25: ='Hinterlegte Gleichungen'!AE57 -> -26.87850038 | H25: ='Hinterlegte Gleichungen'!AE59 -> -48.80968 | I25: ='Hinterlegte Gleichungen'!AE60 -> -69.84499083 | J25: ='Hinterlegte Gleichungen'!AE61 -> -77.87874309 | K25: ='Hinterlegte Gleichungen'!AE62 -> -85.72343089 | L25: W | N25: ='Hinterlegte Gleichungen'!J55 -> -10.04212533 | O25: ='Hinterlegte Gleichungen'!J56 -> -27.16378 | P25: ='Hinterlegte Gleichungen'!J57 -> -43.419116 | Q25: ='Hinterlegte Gleichungen'!J59 -> -78.095488 | R25: ='Hinterlegte Gleichungen'!J60 -> -111.7519853 | S25: ='Hinterlegte Gleichungen'!J61 -> -127.7211387 | T25: ='Hinterlegte Gleichungen'!J62 -> -140.5864267 | U25: W | W25: ='Hinterlegte Gleichungen'!AZ55 -> -12.4914242 | X25: ='Hinterlegte Gleichungen'!AZ56 -> -33.7890922 | Y25: ='Hinterlegte Gleichungen'!AZ57 -> -53.75700076 | Z25: ='Hinterlegte Gleichungen'!AZ59 -> -96.399118 | AA25: ='Hinterlegte Gleichungen'!AZ60 -> -137.9438569 | AB25: ='Hinterlegte Gleichungen'!AZ61 -> -158.8726359 | AC25: ='Hinterlegte Gleichungen'!AZ62 -> -174.875799 | AD25: W
B27: =IF(Sprache="Deutsch",VLOOKUP("Sekundärleistung - Qh",Legende!$B$3:$E$83,1,FALSE),IF(Sprache="English",VLOOKUP("Sekundärleistung - Qh",Legende!$B$3:$E$83,2,FALSE),IF(Sprache="Francais",VLOOKUP("Sekundärleistung - Qh",Legende!$B$3:$E$83,3,FALSE),0))) -> Sekundärleistung - Qh | E27: ='Hinterlegte Gleichungen'!AI55 -> 150.1556211 | F27: ='Hinterlegte Gleichungen'!AI56 -> 411.6298848 | G27: ='Hinterlegte Gleichungen'!AI57 -> 541.398114 | H27: ='Hinterlegte Gleichungen'!AI59 -> 541.398114 | I27: ='Hinterlegte Gleichungen'!AI60 -> 541.398114 | J27: ='Hinterlegte Gleichungen'!AI61 -> 607.2323995 | K27: ='Hinterlegte Gleichungen'!AI62 -> 644.2478963 | L27: W | N27: ='Hinterlegte Gleichungen'!N55 -> 228.0407004 | O27: ='Hinterlegte Gleichungen'!N56 -> 625.140548 | P27: ='Hinterlegte Gleichungen'!N57 -> 822.2190035 | Q27: ='Hinterlegte Gleichungen'!N59 -> 822.2190035 | R27: ='Hinterlegte Gleichungen'!N60 -> 822.2190035 | S27: ='Hinterlegte Gleichungen'!N61 -> 922.2012517 | T27: ='Hinterlegte Gleichungen'!N62 -> 978.4165286 | U27: W | W27: ='Hinterlegte Gleichungen'!BD55 -> 281.2590669 | X27: ='Hinterlegte Gleichungen'!BD56 -> 771.030991 | Y27: ='Hinterlegte Gleichungen'!BD57 -> 1014.102085 | Z27: ='Hinterlegte Gleichungen'!BD59 -> 1014.102085 | AA27: ='Hinterlegte Gleichungen'!BD60 -> 1014.102085 | AB27: ='Hinterlegte Gleichungen'!BD61 -> 1137.417413 | AC27: ='Hinterlegte Gleichungen'!BD62 -> 1206.751775 | AD27: W
B28: =IF(Sprache="Deutsch",VLOOKUP("Wasserrücklauftemperatur",Legende!$B$3:$E$83,1,FALSE),IF(Sprache="English",VLOOKUP("Wasserrücklauftemperatur",Legende!$B$3:$E$83,2,FALSE),IF(Sprache="Francais",VLOOKUP("Wasserrücklauftemperatur",Legende!$B$3:$E$83,3,FALSE),0))) -> Wasserrücklauftemperatur | E28: ='Hinterlegte Gleichungen'!AL55 -> 53.70988011 | F28: ='Hinterlegte Gleichungen'!AL56 -> 51.46332319 | G28: ='Hinterlegte Gleichungen'!AL57 -> 50.34836943 | H28: ='Hinterlegte Gleichungen'!AL59 -> 50.34836943 | I28: ='Hinterlegte Gleichungen'!AL60 -> 50.34836943 | J28: ='Hinterlegte Gleichungen'!AL61 -> 49.78272879 | K28: ='Hinterlegte Gleichungen'!AL62 -> 49.46469588 | L28: K | N28: ='Hinterlegte Gleichungen'!Q55 -> 53.04070043 | O28: ='Hinterlegte Gleichungen'!Q56 -> 49.62886403 | P28: ='Hinterlegte Gleichungen'!Q57 -> 47.93558851 | Q28: ='Hinterlegte Gleichungen'!Q59 -> 47.93558851 | R28: ='Hinterlegte Gleichungen'!Q60 -> 47.93558851 | S28: ='Hinterlegte Gleichungen'!Q61 -> 47.07655249 | T28: ='Hinterlegte Gleichungen'!Q62 -> 46.59355727 | U28: K | W28: ='Hinterlegte Gleichungen'!BG55 -> 52.58345432 | X28: ='Hinterlegte Gleichungen'!BG56 -> 48.37539005 | Y28: ='Hinterlegte Gleichungen'!BG57 -> 46.28695106 | Z28: ='Hinterlegte Gleichungen'!BG59 -> 46.28695106 | AA28: ='Hinterlegte Gleichungen'!BG60 -> 46.28695106 | AB28: ='Hinterlegte Gleichungen'!BG61 -> 45.22743989 | AC28: ='Hinterlegte Gleichungen'!BG62 -> 44.631727 | AD28: K
B29: =IF(Sprache="Deutsch",VLOOKUP("Wasserseitiger Druckverlust",Legende!$B$3:$E$83,1,FALSE),IF(Sprache="English",VLOOKUP("Wasserseitiger Druckverlust",Legende!$B$3:$E$83,2,FALSE),IF(Sprache="Francais",VLOOKUP("Wasserseitiger Druckverlust",Legende!$B$3:$E$83,3,FALSE),0))) -> Wasserseitiger Druckverlust | E29: =0.00012417*E19*E19 + 0.0039185*E19 -> 1.63355 | N29: =0.0001602529*E19*E19 + 0.0058849388*E19 - 0 -> 2.19102288 | W29: =0.00000002*E19*E19*E19 + 0.00018904*E19*E19 + 0.00726447*E19 -> 2.636847
B31: =IF(Sprache="Deutsch",VLOOKUP("Gesamt Heizleistung - Q",Legende!$B$3:$E$83,1,FALSE),IF(Sprache="English",VLOOKUP("Gesamt Heizleistung - Q",Legende!$B$3:$E$83,2,FALSE),IF(Sprache="Francais",VLOOKUP("Gesamt Heizleistung - Q",Legende!$B$3:$E$83,3,FALSE),0))) -> Gesamt Heizleistung - Q | E31: ='Hinterlegte Gleichungen'!AJ55 -> 144.0323739 | F31: ='Hinterlegte Gleichungen'!AJ56 -> 395.0666043 | G31: ='Hinterlegte Gleichungen'!AJ57 -> 514.5196136 | H31: ='Hinterlegte Gleichungen'!AJ59 -> 492.588434 | I31: ='Hinterlegte Gleichungen'!AJ60 -> 471.5531231 | J31: ='Hinterlegte Gleichungen'!AJ61 -> 529.3536564 | K31: ='Hinterlegte Gleichungen'!AJ62 -> 558.5244654 | L31: W | N31: ='Hinterlegte Gleichungen'!O55 -> 217.9985751 | O31: ='Hinterlegte Gleichungen'!O56 -> 597.976768 | P31: ='Hinterlegte Gleichungen'!O57 -> 778.7998875 | Q31: ='Hinterlegte Gleichungen'!O59 -> 744.1235155 | R31: ='Hinterlegte Gleichungen'!O60 -> 710.4670182 | S31: ='Hinterlegte Gleichungen'!O61 -> 794.480113 | T31: ='Hinterlegte Gleichungen'!O62 -> 837.830102 | U31: W | W31: ='Hinterlegte Gleichungen'!BE55 -> 268.7676427 | X31: ='Hinterlegte Gleichungen'!BE56 -> 737.2418988 | Y31: ='Hinterlegte Gleichungen'!BE57 -> 960.3450841 | Z31: ='Hinterlegte Gleichungen'!BE59 -> 917.7029668 | AA31: ='Hinterlegte Gleichungen'!BE60 -> 876.1582279 | AB31: ='Hinterlegte Gleichungen'!BE61 -> 978.5447772 | AC31: ='Hinterlegte Gleichungen'!BE62 -> 1031.875976 | AD31: W
B32: =IF(Sprache="Deutsch",VLOOKUP("Schallleistungspegel - MQ Gerät",Legende!$B$3:$E$83,1,FALSE),IF(Sprache="English",VLOOKUP("Schallleistungspegel - MQ Gerät",Legende!$B$3:$E$83,2,FALSE),IF(Sprache="Francais",VLOOKUP("Schallleistungspegel - MQ Gerät",Legende!$B$3:$E$83,3,FALSE),0))) -> Schallleistungspegel - MQ Gerät | E32: =IF('Hinterlegte Gleichungen'!AC68>28,('Hinterlegte Gleichungen'!AC68),IF('Hinterlegte Gleichungen'!AC68<28,"< 28")) -> < 28 | F32: =IF('Hinterlegte Gleichungen'!AD68>28,('Hinterlegte Gleichungen'!AD68),IF('Hinterlegte Gleichungen'!AD68<28,"< 28")) -> < 28 | G32: =IF('Hinterlegte Gleichungen'!AE68>28,('Hinterlegte Gleichungen'!AE68),IF('Hinterlegte Gleichungen'!AE68<28,"< 28")) -> < 28 | H32: =IF('Hinterlegte Gleichungen'!AF68>28,('Hinterlegte Gleichungen'!AF68),IF('Hinterlegte Gleichungen'!AF68<28,"< 28")) -> 28.90629653 | I32: =IF('Hinterlegte Gleichungen'!AG68>28,('Hinterlegte Gleichungen'!AG68),IF('Hinterlegte Gleichungen'!AG68<28,"< 28")) -> 31.35863893 | J32: =IF('Hinterlegte Gleichungen'!AH68>28,('Hinterlegte Gleichungen'!AH68),IF('Hinterlegte Gleichungen'!AH68<28,"< 28")) -> 31.32777642 | K32: =IF('Hinterlegte Gleichungen'!AI68>28,('Hinterlegte Gleichungen'!AI68),IF('Hinterlegte Gleichungen'!AI68<28,"< 28")) -> 31.09413095 | L32: dB(A) | N32: =IF('Hinterlegte Gleichungen'!H68>28,('Hinterlegte Gleichungen'!H68),IF('Hinterlegte Gleichungen'!H68<28,"< 28")) -> 29.12528343 | O32: =IF('Hinterlegte Gleichungen'!I68>28,('Hinterlegte Gleichungen'!I68),IF('Hinterlegte Gleichungen'!I68<28,"< 28")) -> 28.34103992 | P32: =IF('Hinterlegte Gleichungen'!J68>28,('Hinterlegte Gleichungen'!J68),IF('Hinterlegte Gleichungen'!J68<28,"< 28")) -> 28.34390291 | Q32: =IF('Hinterlegte Gleichungen'!K68>28,('Hinterlegte Gleichungen'!K68),IF('Hinterlegte Gleichungen'!K68<28,"< 28")) -> 30.94749635 | R32: =IF('Hinterlegte Gleichungen'!L68>28,('Hinterlegte Gleichungen'!L68),IF('Hinterlegte Gleichungen'!L68<28,"< 28")) -> 33.39983875 | S32: =IF('Hinterlegte Gleichungen'!M68>28,('Hinterlegte Gleichungen'!M68),IF('Hinterlegte Gleichungen'!M68<28,"< 28")) -> 33.4762149 | T32: =IF('Hinterlegte Gleichungen'!N68>28,('Hinterlegte Gleichungen'!N68),IF('Hinterlegte Gleichungen'!N68<28,"< 28")) -> 33.24256944 | U32: dB(A) | W32: =IF('Hinterlegte Gleichungen'!AX68>28,('Hinterlegte Gleichungen'!AX68),IF('Hinterlegte Gleichungen'!AX68<28,"< 28")) -> 30.07314662 | X32: =IF('Hinterlegte Gleichungen'!AY68>28,('Hinterlegte Gleichungen'!AY68),IF('Hinterlegte Gleichungen'!AY68<28,"< 28")) -> 29.26858045 | Y32: =IF('Hinterlegte Gleichungen'!AZ68>28,('Hinterlegte Gleichungen'!AZ68),IF('Hinterlegte Gleichungen'!AZ68<28,"< 28")) -> 29.27144344 | Z32: =IF('Hinterlegte Gleichungen'!BA68>28,('Hinterlegte Gleichungen'!BA68),IF('Hinterlegte Gleichungen'!BA68<28,"< 28")) -> 31.86196753 | AA32: =IF('Hinterlegte Gleichungen'!BB68>28,('Hinterlegte Gleichungen'!BB68),IF('Hinterlegte Gleichungen'!BB68<28,"< 28")) -> 34.31430993 | AB32: =IF('Hinterlegte Gleichungen'!BC68>28,('Hinterlegte Gleichungen'!BC68),IF('Hinterlegte Gleichungen'!BC68<28,"< 28")) -> 34.4240781 | AC32: =IF('Hinterlegte Gleichungen'!BD68>28,('Hinterlegte Gleichungen'!BD68),IF('Hinterlegte Gleichungen'!BD68<28,"< 28")) -> 34.19043263 | AD32: dB(A)
B33: =IF(Sprache="Deutsch",VLOOKUP("Schallleistungspegel - MQQ Gerät",Legende!$B$3:$E$83,1,FALSE),IF(Sprache="English",VLOOKUP("Schallleistungspegel - MQQ Gerät",Legende!$B$3:$E$83,2,FALSE),IF(Sprache="Francais",VLOOKUP("Schallleistungspegel - MQQ Gerät",Legende!$B$3:$E$83,3,FALSE),0))) -> Schallleistungspegel - MQQ Gerät | E33: =IF('Hinterlegte Gleichungen'!AC69>28,('Hinterlegte Gleichungen'!AC69),IF('Hinterlegte Gleichungen'!AC69,"< 28")) -> < 28 | F33: =IF('Hinterlegte Gleichungen'!AD69>28,('Hinterlegte Gleichungen'!AD69),IF('Hinterlegte Gleichungen'!AD69,"< 28")) -> < 28 | G33: =IF('Hinterlegte Gleichungen'!AE69>28,('Hinterlegte Gleichungen'!AE69),IF('Hinterlegte Gleichungen'!AE69,"< 28")) -> < 28 | H33: =IF('Hinterlegte Gleichungen'!AF69>28,('Hinterlegte Gleichungen'!AF69),IF('Hinterlegte Gleichungen'!AF69,"< 28")) -> 29.33960097 | I33: =IF('Hinterlegte Gleichungen'!AG69>28,('Hinterlegte Gleichungen'!AG69),IF('Hinterlegte Gleichungen'!AG69,"< 28")) -> 33.53194611 | J33: =IF('Hinterlegte Gleichungen'!AH69>28,('Hinterlegte Gleichungen'!AH69),IF('Hinterlegte Gleichungen'!AH69,"< 28")) -> 32.47155802 | K33: =IF('Hinterlegte Gleichungen'!AI69>28,('Hinterlegte Gleichungen'!AI69),IF('Hinterlegte Gleichungen'!AI69,"< 28")) -> 32.10799099 | L33: dB(A) | N33: =IF('Hinterlegte Gleichungen'!H69>28,('Hinterlegte Gleichungen'!H69),IF('Hinterlegte Gleichungen'!H69<28,"< 28")) -> 29.12528343 | O33: =IF('Hinterlegte Gleichungen'!I69>28,('Hinterlegte Gleichungen'!I69),IF('Hinterlegte Gleichungen'!I69<28,"< 28")) -> 28.34103992 | P33: =IF('Hinterlegte Gleichungen'!J69>28,('Hinterlegte Gleichungen'!J69),IF('Hinterlegte Gleichungen'!J69<28,"< 28")) -> 28.34390291 | Q33: =IF('Hinterlegte Gleichungen'!K69>28,('Hinterlegte Gleichungen'!K69),IF('Hinterlegte Gleichungen'!K69<28,"< 28")) -> 31.38080079 | R33: =IF('Hinterlegte Gleichungen'!L69>28,('Hinterlegte Gleichungen'!L69),IF('Hinterlegte Gleichungen'!L69<28,"< 28")) -> 35.57314594 | S33: =IF('Hinterlegte Gleichungen'!M69>28,('Hinterlegte Gleichungen'!M69),IF('Hinterlegte Gleichungen'!M69<28,"< 28")) -> 34.6199965 | T33: =IF('Hinterlegte Gleichungen'!N69>28,('Hinterlegte Gleichungen'!N69),IF('Hinterlegte Gleichungen'!N69<28,"< 28")) -> 34.25642947 | U33: dB(A) | W33: =IF('Hinterlegte Gleichungen'!AX69>28,('Hinterlegte Gleichungen'!AX69),IF('Hinterlegte Gleichungen'!AX69<28,"< 28")) -> 30.07314662 | X33: =IF('Hinterlegte Gleichungen'!AY69>28,('Hinterlegte Gleichungen'!AY69),IF('Hinterlegte Gleichungen'!AY69<28,"< 28")) -> 29.26858045 | Y33: =IF('Hinterlegte Gleichungen'!AZ69>28,('Hinterlegte Gleichungen'!AZ69),IF('Hinterlegte Gleichungen'!AZ69<28,"< 28")) -> 29.27144344 | Z33: =IF('Hinterlegte Gleichungen'!BA69>28,('Hinterlegte Gleichungen'!BA69),IF('Hinterlegte Gleichungen'!BA69<28,"< 28")) -> 32.29527197 | AA33: =IF('Hinterlegte Gleichungen'!BB69>28,('Hinterlegte Gleichungen'!BB69),IF('Hinterlegte Gleichungen'!BB69<28,"< 28")) -> 36.48761711 | AB33: =IF('Hinterlegte Gleichungen'!BC69>28,('Hinterlegte Gleichungen'!BC69),IF('Hinterlegte Gleichungen'!BC69<28,"< 28")) -> 35.56785969 | AC33: =IF('Hinterlegte Gleichungen'!BD69>28,('Hinterlegte Gleichungen'!BD69),IF('Hinterlegte Gleichungen'!BD69<28,"< 28")) -> 35.20429267 | AD33: dB(A)
K34: =IF(Sprache="Deutsch",VLOOKUP("Toleranz +/- 3 dB",Legende!$B$3:$E$83,1,FALSE),IF(Sprache="English",VLOOKUP("Toleranz +/- 3 dB",Legende!$B$3:$E$83,2,FALSE),IF(Sprache="Francais",VLOOKUP("Toleranz +/- 3 dB",Legende!$B$3:$E$83,3,FALSE),0))) -> Toleranz +/- 3 dB | T34: =IF(Sprache="Deutsch",VLOOKUP("Toleranz +/- 3 dB",Legende!$B$3:$E$83,1,FALSE),IF(Sprache="English",VLOOKUP("Toleranz +/- 3 dB",Legende!$B$3:$E$83,2,FALSE),IF(Sprache="Francais",VLOOKUP("Toleranz +/- 3 dB",Legende!$B$3:$E$83,3,FALSE),0))) -> Toleranz +/- 3 dB | AC34: =IF(Sprache="Deutsch",VLOOKUP("Toleranz +/- 3 dB",Legende!$B$3:$E$83,1,FALSE),IF(Sprache="English",VLOOKUP("Toleranz +/- 3 dB",Legende!$B$3:$E$83,2,FALSE),IF(Sprache="Francais",VLOOKUP("Toleranz +/- 3 dB",Legende!$B$3:$E$83,3,FALSE),0))) -> Toleranz +/- 3 dB
B36: =IF(Sprache="Deutsch",VLOOKUP("Regelbereich",Legende!$B$3:$E$83,1,FALSE),IF(Sprache="English",VLOOKUP("Regelbereich",Legende!$B$3:$E$83,2,FALSE),IF(Sprache="Francais",VLOOKUP("Regelbereich",Legende!$B$3:$E$83,3,FALSE),0))) -> Regelbereich
C38: =IF(Sprache="Deutsch",VLOOKUP("Leistung [W]",Legende!$B$3:$E$83,1,FALSE),IF(Sprache="English",VLOOKUP("Leistung [W]",Legende!$B$3:$E$83,2,FALSE),IF(Sprache="Francais",VLOOKUP("Leistung [W]",Legende!$B$3:$E$83,3,FALSE),0))) -> Leistung [W] | AD38: =IF(Sprache="Deutsch",VLOOKUP("Schallleistungspegel [dB(A)]",Legende!$B$3:$E$83,1,FALSE),IF(Sprache="English",VLOOKUP("Schallleistungspegel [dB(A)]",Legende!$B$3:$E$83,2,FALSE),IF(Sprache="Francais",VLOOKUP("Schallleistungspegel [dB(A)]",Legende!$B$3:$E$83,3,FALSE),0))) -> Schallleistungspegel [dB(A)]
F48: =IF(Sprache="Deutsch",VLOOKUP("Primärvolumenstrom - Vp [m³/h]",Legende!$B$3:$E$83,1,FALSE),IF(Sprache="English",VLOOKUP("Primärvolumenstrom - Vp [m³/h]",Legende!$B$3:$E$83,2,FALSE),IF(Sprache="Francais",VLOOKUP("Primärvolumenstrom - Vp [m³/h]",Legende!$B$3:$E$83,3,FALSE),0))) -> Primärvolumenstrom - Vp [m³/h] | O48: =IF(Sprache="Deutsch",VLOOKUP("Primärvolumenstrom - Vp [m³/h]",Legende!$B$3:$E$83,1,FALSE),IF(Sprache="English",VLOOKUP("Primärvolumenstrom - Vp [m³/h]",Legende!$B$3:$E$83,2,FALSE),IF(Sprache="Francais",VLOOKUP("Primärvolumenstrom - Vp [m³/h]",Legende!$B$3:$E$83,3,FALSE),0))) -> Primärvolumenstrom - Vp [m³/h] | X48: =IF(Sprache="Deutsch",VLOOKUP("Primärvolumenstrom - Vp [m³/h]",Legende!$B$3:$E$83,1,FALSE),IF(Sprache="English",VLOOKUP("Primärvolumenstrom - Vp [m³/h]",Legende!$B$3:$E$83,2,FALSE),IF(Sprache="Francais",VLOOKUP("Primärvolumenstrom - Vp [m³/h]",Legende!$B$3:$E$83,3,FALSE),0))) -> Primärvolumenstrom - Vp [m³/h]
G50: =IF(Sprache="Deutsch",VLOOKUP("Primärleistung",Legende!$B$3:$E$83,1,FALSE),IF(Sprache="English",VLOOKUP("Primärleistung",Legende!$B$3:$E$83,2,FALSE),IF(Sprache="Francais",VLOOKUP("Primärleistung",Legende!$B$3:$E$83,3,FALSE),0))) -> Primärleistung | P50: =IF(Sprache="Deutsch",VLOOKUP("Primärleistung",Legende!$B$3:$E$83,1,FALSE),IF(Sprache="English",VLOOKUP("Primärleistung",Legende!$B$3:$E$83,2,FALSE),IF(Sprache="Francais",VLOOKUP("Primärleistung",Legende!$B$3:$E$83,3,FALSE),0))) -> Primärleistung | Y50: =IF(Sprache="Deutsch",VLOOKUP("Primärleistung",Legende!$B$3:$E$83,1,FALSE),IF(Sprache="English",VLOOKUP("Primärleistung",Legende!$B$3:$E$83,2,FALSE),IF(Sprache="Francais",VLOOKUP("Primärleistung",Legende!$B$3:$E$83,3,FALSE),0))) -> Primärleistung
G51: =IF(Sprache="Deutsch",VLOOKUP("Sekundärleistung",Legende!$B$3:$E$83,1,FALSE),IF(Sprache="English",VLOOKUP("Sekundärleistung",Legende!$B$3:$E$83,2,FALSE),IF(Sprache="Francais",VLOOKUP("Sekundärleistung",Legende!$B$3:$E$83,3,FALSE),0))) -> Sekundärleistung | P51: =IF(Sprache="Deutsch",VLOOKUP("Sekundärleistung",Legende!$B$3:$E$83,1,FALSE),IF(Sprache="English",VLOOKUP("Sekundärleistung",Legende!$B$3:$E$83,2,FALSE),IF(Sprache="Francais",VLOOKUP("Sekundärleistung",Legende!$B$3:$E$83,3,FALSE),0))) -> Sekundärleistung | Y51: =IF(Sprache="Deutsch",VLOOKUP("Sekundärleistung",Legende!$B$3:$E$83,1,FALSE),IF(Sprache="English",VLOOKUP("Sekundärleistung",Legende!$B$3:$E$83,2,FALSE),IF(Sprache="Francais",VLOOKUP("Sekundärleistung",Legende!$B$3:$E$83,3,FALSE),0))) -> Sekundärleistung
G52: =IF(Sprache="Deutsch",VLOOKUP("Gesamt Heizleistung",Legende!$B$3:$E$83,1,FALSE),IF(Sprache="English",VLOOKUP("Gesamt Heizleistung",Legende!$B$3:$E$83,2,FALSE),IF(Sprache="Francais",VLOOKUP("Gesamt Heizleistung",Legende!$B$3:$E$83,3,FALSE),0))) -> Gesamt Heizleistung | P52: =IF(Sprache="Deutsch",VLOOKUP("Gesamt Heizleistung",Legende!$B$3:$E$83,1,FALSE),IF(Sprache="English",VLOOKUP("Gesamt Heizleistung",Legende!$B$3:$E$83,2,FALSE),IF(Sprache="Francais",VLOOKUP("Gesamt Heizleistung",Legende!$B$3:$E$83,3,FALSE),0))) -> Gesamt Heizleistung | Y52: =IF(Sprache="Deutsch",VLOOKUP("Gesamt Heizleistung",Legende!$B$3:$E$83,1,FALSE),IF(Sprache="English",VLOOKUP("Gesamt Heizleistung",Legende!$B$3:$E$83,2,FALSE),IF(Sprache="Francais",VLOOKUP("Gesamt Heizleistung",Legende!$B$3:$E$83,3,FALSE),0))) -> Gesamt Heizleistung
B55: =IF(Sprache="Deutsch",VLOOKUP("© LTG Aktiengesellschaft - Letzte Änderung: 13.03.2012",Legende!$B$3:$E$83,1,FALSE),IF(Sprache="English",VLOOKUP("© LTG Aktiengesellschaft - Letzte Änderung: 13.03.2012",Legende!$B$3:$E$83,2,FALSE),IF(Sprache="Francais",VLOOKUP("© LTG Aktiengesellschaft - Letzte Änderung: 13.03.2012",Legende!$B$3:$E$83,3,FALSE),0))) -> © LTG Aktiengesellschaft - Letzte Änderung: 13.03.2012
B56: =IF(Sprache="Deutsch",VLOOKUP("Angaben zu Toleranzen sowie weitere Spezifikationen sind der aktuellen LTG Bauteilmappe zu entnehmen.",Legende!$B$3:$E$83,1,FALSE),IF(Sprache="English",VLOOKUP("Angaben zu Toleranzen sowie weitere Spezifikationen sind der aktuellen LTG Bauteilmappe zu entnehmen.",Legende!$B$3:$E$83,2,FALSE),IF(Sprache="Francais",VLOOKUP("Angaben zu Toleranzen sowie weitere Spezifikationen sind der aktuellen LTG Bauteilmappe zu entnehmen.",Legende!$B$3:$E$83,3,FALSE),0))) -> Angaben zu Toleranzen sowie weitere Spezifikationen sind der aktuellen LTG Bauteilmappe zu entnehmen.
B57: =IF(Sprache="Deutsch",VLOOKUP("Eine Fehlerfreiheit des Programms kann nicht zugesichert werden. Im Zweifel gelten die technischen Daten der aktuellen LTG Bauteilmappe.",Legende!$B$3:$E$83,1,FALSE),IF(Sprache="English",VLOOKUP("Eine Fehlerfreiheit des Programms kann nicht zugesichert werden. Im Zweifel gelten die technischen Daten der aktuellen LTG Bauteilmappe.",Legende!$B$3:$E$83,2,FALSE),IF(Sprache="Francais",VLOOKUP("Eine Fehlerfreiheit des Programms kann nicht zugesichert werden. Im Zweifel gelten die technischen Daten der aktuellen LTG Bauteilmappe.",Legende!$B$3:$E$83,3,FALSE),0))) -> Eine Fehlerfreiheit des Programms kann nicht zugesichert werden. Im Zweifel gelten die technischen Daten der aktuellen LTG Bauteilmappe.
B58: =IF(Sprache="Deutsch",VLOOKUP("Aus Programmierfehlern entstandener Schaden geht nicht zu Lasten der LTG. Technische Änderungen im Rahmen der Weiterentwicklung vorbehalten.",Legende!$B$3:$E$83,1,FALSE),IF(Sprache="English",VLOOKUP("Aus Programmierfehlern entstandener Schaden geht nicht zu Lasten der LTG. Technische Änderungen im Rahmen der Weiterentwicklung vorbehalten.",Legende!$B$3:$E$83,2,FALSE),IF(Sprache="Francais",VLOOKUP("Aus Programmierfehlern entstandener Schaden geht nicht zu Lasten der LTG. Technische Änderungen im Rahmen der Weiterentwicklung vorbehalten.",Legende!$B$3:$E$83,3,FALSE),0))) -> Aus Programmierfehlern entstandener Schaden geht nicht zu Lasten der LTG. Technische Änderungen im Rahmen der Weiterentwicklung vorbehalten.

Sheet Hinterlegte Gleichungen (hidden)
A1: Auslegeprogramm und Technische Daten HFVsf 4 / BG 630, 800 und 1000 / M2 / MQ oder MQQ
A2: CER/ND - Stand 02-2012
B4: Kühlen | E4: Einstellbereich: | L4: Heizen | O4: Einstellbereich:
B5: Primärdruck | C5: ='HFVsf-_-4 - Kühlen'!E18 -> 100 | D5: Pa | E5: 50...150 | L5: Primärdruck | M5: ='HFVsf-_-4 - Heizen'!E14 -> 100 | N5: Pa | O5: 50...150
A6: ='HFVsf-_-4 - Kühlen'!E23*100/120 -> 100 | B6: wk | C6: ='HFVsf-_-4 - Kühlen'!E23 -> 120 | D6: kg/h | E6: 30...300 | K6: ='HFVsf-_-4 - Heizen'!E19*100/100 -> 100 | L6: wh | M6: ='HFVsf-_-4 - Heizen'!E19 -> 100 | N6: kg/h | O6: 10...160
B7: T_VL | C7: ='HFVsf-_-4 - Kühlen'!E22 -> 16 | D7: °C | E7: ? | F7: Achtung! Die Primärlufttemperatur soll nicht 18°C unterschreiten | L7: T_VL | M7: ='HFVsf-_-4 - Heizen'!E18 -> 55 | N7: °C | O7: 30...60 | P7: Achtung! die Primärlufttemperatur soll nicht 18°C unterschreiten
B8: T_Raum | C8: ='HFVsf-_-4 - Kühlen'!E11 -> 26 | D8: °C | E8: ? | K8: ='HFVsf-_-4 - Heizen'!E18-'HFVsf-_-4 - Heizen'!E11 -> 33 | L8: T_Raum | M8: ='HFVsf-_-4 - Heizen'!E11 -> 22 | N8: °C | O8: ?
B9: T_Primärluft | C9: ='HFVsf-_-4 - Kühlen'!E19 -> 19 | D9: °C | E9: 18...30 | L9: T_Primärluft | M9: ='HFVsf-_-4 - Heizen'!E15 -> 18 | N9: °C | O9: 18...30
B38: BG800 - Kühlen | W38: BG630 - Kühlen | AR38: BG1000 - Kühlen
F39: Dp | G39: VP | H39: LwA | I39: LwA | J39: Qp | K39: QP/DtP | L39: Qk/Dt_Nenn | M39: Qk/Dt | N39: Qk | O39: Qk Gesamt | Q39: TRL | R39: DT_Wasser | AA39: Dp | AB39: VP | AC39: LwA | AD39: LwA | AE39: Qp | AF39: QP/DtP | AH39: Qk/Dt | AI39: Qk | AJ39: Qk Gesamt | AL39: TRL | AM39: DT_Wasser | AV39: Dp | AW39: VP | AX39: LwA | AY39: LwA | AZ39: Qp | BA39: QP/DtP | BC39: Qk/Dt | BD39: Qk | BE39: Qk Gesamt | BG39: TRL | BH39: DT_Wasser
B40: Dp W. | C40: =0.00064443*'HFVsf-_-4 - Kühlen'!E23*'HFVsf-_-4 - Kühlen'!E23 + 0.00352314*'HFVsf-_-4 - Kühlen'!E23 -> 9.7025688 | D40: kPa | F40: Pa | G40: m³/h | H40: MQ | I40: MQQ | J40: W | K40: W/K | L40: W/K | M40: W/K | N40: W | O40: W | Q40: °C | R40: K | W40: Dp W. | X40: =0.00000011*'HFVsf-_-4 - Kühlen'!$E$23*'HFVsf-_-4 - Kühlen'!$E$23*'HFVsf-_-4 - Kühlen'!$E$23 + 0.00052479*'HFVsf-_-4 - Kühlen'!$E$23*'HFVsf-_-4 - Kühlen'!$E$23 + 0.0035756*'HFVsf-_-4 - Kühlen'!$E$23 -> 8.176128 | Y40: kPa | AA40: Pa | AB40: m³/h | AC40: MQ | AD40: MQQ | AE40: W | AF40: W/K | AH40: W/K | AI40: W | AJ40: W | AL40: °C | AM40: K | AR40: Dp W. | AS40: =-0.00000004*'HFVsf-_-4 - Kühlen'!$E$23*'HFVsf-_-4 - Kühlen'!$E$23*'HFVsf-_-4 - Kühlen'!$E$23 + 0.00072215*'HFVsf-_-4 - Kühlen'!$E$23*'HFVsf-_-4 - Kühlen'!$E$23 + 0.00628999*'HFVsf-_-4 - Kühlen'!$E$23 -> 11.0846388 | AT40: kPa | AV40: Pa | AW40: m³/h | AX40: MQ | AY40: MQQ | AZ40: W | BA40: W/K | BC40: W/K | BD40: W | BE40: W | BG40: °C | BH40: K
B41: Düsenreihen: | F41: ='HFVsf-_-4 - Kühlen'!$E$18 -> 100 | L41: 120 L/h | T41: ! ? ! | W41: Düsenreihen: | AA41: ='HFVsf-_-4 - Kühlen'!$E$18 -> 100 | AO41: ! ? ! | AR41: Düsenreihen: | AV41: ='HFVsf-_-4 - Kühlen'!$E$18 -> 100 | BJ41: ! ? !
A42: V0 | B42: geschlossen | G42: =0.0000012*'HFVsf-_-4 - Kühlen'!E18*'HFVsf-_-4 - Kühlen'!E18*'HFVsf-_-4 - Kühlen'!E18 - 0.00056156*'HFVsf-_-4 - Kühlen'!E18*'HFVsf-_-4 - Kühlen'!E18 + 0.11947194*'HFVsf-_-4 - Kühlen'!E18 -> 7.531594 | H42: =-0.09683515*G42*G42*G42 + 2.82937202*G42*G42 - 25.31985844*G42 + 100.69909147 -> 29.12528343 | I42: =-0.09683515*G42*G42*G42 + 2.82937202*G42*G42 - 25.31985844*G42 + 100.69909147 -> 29.12528343 | J42: =(G42*('HFVsf-_-4 - Kühlen'!$E$19-'HFVsf-_-4 - Kühlen'!$E$11)/3)*-1 -> 17.57371933 | K42: =J42/('HFVsf-_-4 - Kühlen'!$E$11-'HFVsf-_-4 - Kühlen'!$E$19) -> 2.510531333 | L42: 0 | M42: =(-0.00000005*$A$6*$A$6*$A$6*$A$6 + 0.00003436*$A$6*$A$6*$A$6 - 0.00954651*$A$6*$A$6 + 1.23090664*$A$6 + 42.5961506)*(L42/100) -> 0 | N42: =M42*('HFVsf-_-4 - Kühlen'!$E$22-'HFVsf-_-4 - Kühlen'!$E$11) -> 0 | O42: =N42+J42 -> 17.57371933 | Q42: =((N42*3.6)+('HFVsf-_-4 - Kühlen'!$E$23*4.19*'HFVsf-_-4 - Kühlen'!$E$22))/('HFVsf-_-4 - Kühlen'!$E$23*4.19) -> 16 | R42: =Q42-'HFVsf-_-4 - Kühlen'!$E$22 -> 0 | T42: =G42/0.8 -> 9.4144925 | U42: =IF(T42>75,$T$41,$U$41) -> 0 | V42: V0 | W42: geschlossen | AB42: =G42/$AL$84*$AM$84 -> 4.592435366 | AC42: =H42+(10*LOG($AM$84/$AL$84)) -> 26.97684495 | AD42: =I42+(10*LOG($AM$84/$AL$84)) -> 26.97684495 | AE42: =(AB42*('HFVsf-_-4 - Kühlen'!$E$19-'HFVsf-_-4 - Kühlen'!$E$11)/3)*-1 -> 10.71568252 | AF42: =AE42/('HFVsf-_-4 - Kühlen'!$E$11-'HFVsf-_-4 - Kühlen'!$E$19) -> 1.530811789 | AH42: =(M42/$AL$86*$AM$86)*0.9 -> 0 | AI42: =AH42*('HFVsf-_-4 - Kühlen'!$E$22-'HFVsf-_-4 - Kühlen'!$E$11) -> 0 | AJ42: =AI42+AE42 -> 10.71568252 | AL42: =((AI42*3.6)+('HFVsf-_-4 - Kühlen'!$E$23*4.19*'HFVsf-_-4 - Kühlen'!$E$22))/('HFVsf-_-4 - Kühlen'!$E$23*4.19) -> 16 | AM42: =AL42-'HFVsf-_-4 - Kühlen'!$E$22 -> 0 | AO42: =AB42/0.63 -> 7.289579946 | AP42: =IF(AO42>75,$T$41,$U$41) -> 0 | AQ42: V0 | AR42: geschlossen | AW42: =G42/$AL$84*$AN$84 -> 9.368568146 | AX42: =H42+(10*LOG($AN$84/$AL$84)) -> 30.07314662 | AY42: =I42+(10*LOG($AN$84/$AL$84)) -> 30.07314662 | AZ42: =(AW42*('HFVsf-_-4 - Kühlen'!$E$19-'HFVsf-_-4 - Kühlen'!$E$11)/3)*-1 -> 21.85999234 | BA42: =AZ42/('HFVsf-_-4 - Kühlen'!$E$11-'HFVsf-_-4 - Kühlen'!$E$19) -> 3.122856049 | BC42: =(M42/$AL$86*$AN$86) -> 0 | BD42: =BC42*('HFVsf-_-4 - Kühlen'!$E$22-'HFVsf-_-4 - Kühlen'!$E$11) -> 0 | BE42: =BD42+AZ42 -> 21.85999234 | BG42: =((BD42*3.6)+('HFVsf-_-4 - Kühlen'!$E$23*4.19*'HFVsf-_-4 - Kühlen'!$E$22))/('HFVsf-_-4 - Kühlen'!$E$23*4.19) -> 16 | BH42: =BG42-'HFVsf-_-4 - Kühlen'!$E$22 -> 0 | BJ42: =AW42/1 -> 9.368568146 | BK42: =IF(BJ42>75,$T$41,$U$41) -> 0
A43: V1 | B43: Reihe 1 - halb offen | G43: =0.0000037*'HFVsf-_-4 - Kühlen'!E18*'HFVsf-_-4 - Kühlen'!E18*'HFVsf-_-4 - Kühlen'!E18 - 0.00170264*'HFVsf-_-4 - Kühlen'!E18*'HFVsf-_-4 - Kühlen'!E18 + 0.33699235*'HFVsf-_-4 - Kühlen'!E18 -> 20.372835 | H43: =0.00318987*G43*G43*G43 - 0.20009878*G43*G43 + 4.44969236*G43 - 6.23321246 -> 28.34103992 | I43: =0.00318987*G43*G43*G43 - 0.20009878*G43*G43 + 4.44969236*G43 - 6.23321246 -> 28.34103992 | J43: =(G43*('HFVsf-_-4 - Kühlen'!$E$19-'HFVsf-_-4 - Kühlen'!$E$11)/3)*-1 -> 47.536615 | K43: =J43/('HFVsf-_-4 - Kühlen'!$E$11-'HFVsf-_-4 - Kühlen'!$E$19) -> 6.790945 | L43: =-0.00016284*'HFVsf-_-4 - Kühlen'!E18*'HFVsf-_-4 - Kühlen'!E18 + 0.13240544*'HFVsf-_-4 - Kühlen'!E18 + 8.7971089 -> 20.4092529 | M43: =(-0.00000005*$A$6*$A$6*$A$6*$A$6 + 0.00003436*$A$6*$A$6*$A$6 - 0.00954651*$A$6*$A$6 + 1.23090664*$A$6 + 42.5961506)*(L43/100) -> 20.32388397 | N43: =M43*('HFVsf-_-4 - Kühlen'!$E$11-'HFVsf-_-4 - Kühlen'!$E$22) -> 203.2388397 | O43: =N43+J43 -> 250.7754547 | Q43: =((N43*3.6)+('HFVsf-_-4 - Kühlen'!$E$23*4.19*'HFVsf-_-4 - Kühlen'!$E$22))/('HFVsf-_-4 - Kühlen'!$E$23*4.19) -> 17.45517069 | R43: =Q43-'HFVsf-_-4 - Kühlen'!$E$22 -> 1.45517069 | T43: =G43/0.8 -> 25.46604375 | U43: =IF(T43>75,$T$41,$U$41) -> 0 | V43: V1 | W43: Reihe 1 - halb offen | AB43: =G43/$AL$84*$AM$84 -> 12.42246037 | AC43: =H43+(10*LOG($AM$77/$AL$77)) -> 26.25828049 | AD43: =I43+(10*LOG($AM$77/$AL$77)) -> 26.25828049 | AE43: =(AB43*('HFVsf-_-4 - Kühlen'!$E$19-'HFVsf-_-4 - Kühlen'!$E$11)/3)*-1 -> 28.98574085 | AF43: =AE43/('HFVsf-_-4 - Kühlen'!$E$11-'HFVsf-_-4 - Kühlen'!$E$19) -> 4.140820122 | AH43: =(M43/$AL$86*$AM$86)*0.9 -> 13.38245942 | AI43: =AH43*('HFVsf-_-4 - Kühlen'!$E$11-'HFVsf-_-4 - Kühlen'!$E$22) -> 133.8245942 | AJ43: =AI43+AE43 -> 162.8103351 | AL43: =((AI43*3.6)+('HFVsf-_-4 - Kühlen'!$E$23*4.19*'HFVsf-_-4 - Kühlen'!$E$22))/('HFVsf-_-4 - Kühlen'!$E$23*4.19) -> 16.95817132 | AM43: =AL43-'HFVsf-_-4 - Kühlen'!$E$22 -> 0.9581713192 | AO43: =AB43/0.63 -> 19.71819106 | AP43: =IF(AO43>75,$T$41,$U$41) -> 0 | AQ43: V1 | AR43: Reihe 1 - halb offen | AW43: =G43/$AL$84*$AN$84 -> 25.34181915 | AX43: =H43+(10*LOG($AN$77/$AL$77)) -> 29.26858045 | AY43: =I43+(10*LOG($AN$77/$AL$77)) -> 29.26858045 | AZ43: =(AW43*('HFVsf-_-4 - Kühlen'!$E$19-'HFVsf-_-4 - Kühlen'!$E$11)/3)*-1 -> 59.13091134 | BA43: =AZ43/('HFVsf-_-4 - Kühlen'!$E$11-'HFVsf-_-4 - Kühlen'!$E$19) -> 8.447273049 | BC43: 25.06691407 | BD43: =BC43*('HFVsf-_-4 - Kühlen'!$E$11-'HFVsf-_-4 - Kühlen'!$E$22) -> 250.6691407 | BE43: 309.8000521 | BG43: =((BD43*3.6)+('HFVsf-_-4 - Kühlen'!$E$23*4.19*'HFVsf-_-4 - Kühlen'!$E$22))/('HFVsf-_-4 - Kühlen'!$E$23*4.19) -> 17.79476712 | BH43: =BG43-'HFVsf-_-4 - Kühlen'!$E$22 -> 1.794767117 | BJ43: =AW43/1 -> 25.34181915 | BK43: =IF(BJ43>75,$T$41,$U$41) -> 0
A44: V2 | B44: Reihe 1 - offen | G44: =0.00000518*'HFVsf-_-4 - Kühlen'!E18*'HFVsf-_-4 - Kühlen'!E18*'HFVsf-_-4 - Kühlen'!E18- 0.00258029*'HFVsf-_-4 - Kühlen'!E18*'HFVsf-_-4 - Kühlen'!E18 + 0.53187237*'HFVsf-_-4 - Kühlen'!E18 -> 32.564337 | H44: =0.00079259*G44*G44*G44 - 0.06598958*G44*G44 + 1.90619065*G44 + 8.87776506 -> 28.34390291 | I44: =0.00079259*G44*G44*G44 - 0.06598958*G44*G44 + 1.90619065*G44 + 8.87776506 -> 28.34390291 | J44: =(G44*('HFVsf-_-4 - Kühlen'!$E$19-'HFVsf-_-4 - Kühlen'!$E$11)/3)*-1 -> 75.983453 | K44: =J44/('HFVsf-_-4 - Kühlen'!$E$11-'HFVsf-_-4 - Kühlen'!$E$19) -> 10.854779 | L44: =-0.0006401*'HFVsf-_-4 - Kühlen'!E18*'HFVsf-_-4 - Kühlen'!E18 + 0.28808731*'HFVsf-_-4 - Kühlen'!E18 + 7.85269878 -> 30.26042978 | M44: 30.13385482 | N44: =M44*('HFVsf-_-4 - Kühlen'!$E$11-'HFVsf-_-4 - Kühlen'!$E$22) -> 301.3385482 | O44: 377.3220012 | Q44: =((N44*3.6)+('HFVsf-_-4 - Kühlen'!$E$23*4.19*'HFVsf-_-4 - Kühlen'!$E$22))/('HFVsf-_-4 - Kühlen'!$E$23*4.19) -> 18.15755524 | R44: =Q44-'HFVsf-_-4 - Kühlen'!$E$22 -> 2.157555238 | T44: 40.70542125 | U44: 0 | V44: V2 | W44: Reihe 1 - offen | AB44: =G44/$AL$77*$AM$77 -> 20.15887529 | AC44: =H44+(10*LOG($AM$77/$AL$77)) -> 26.26114348 | AD44: =I44+(10*LOG($AM$77/$AL$77)) -> 26.26114348 | AE44: =(AB44*('HFVsf-_-4 - Kühlen'!$E$19-'HFVsf-_-4 - Kühlen'!$E$11)/3)*-1 -> 47.03737567 | AF44: =AE44/('HFVsf-_-4 - Kühlen'!$E$11-'HFVsf-_-4 - Kühlen'!$E$19) -> 6.719625095 | AH44: 19.84193031 | AI44: =AH44*('HFVsf-_-4 - Kühlen'!$E$11-'HFVsf-_-4 - Kühlen'!$E$22) -> 198.4193031 | AJ44: 245.4566788 | AL44: =((AI44*3.6)+('HFVsf-_-4 - Kühlen'!$E$23*4.19*'HFVsf-_-4 - Kühlen'!$E$22))/('HFVsf-_-4 - Kühlen'!$E$23*4.19) -> 17.42066327 | AM44: =AL44-'HFVsf-_-4 - Kühlen'!$E$22 -> 1.420663268 | AO44: 31.99821474 | AP44: 0 | AQ44: V2 | AR44: Reihe 1 - offen | AW44: =G44/$AL$77*$AN$77 -> 40.31775057 | AX44: =H44+(10*LOG($AN$77/$AL$77)) -> 29.27144344 | AY44: =I44+(10*LOG($AN$77/$AL$77)) -> 29.27144344 | AZ44: =(AW44*('HFVsf-_-4 - Kühlen'!$E$19-'HFVsf-_-4 - Kühlen'!$E$11)/3)*-1 -> 94.07475133 | BA44: =AZ44/('HFVsf-_-4 - Kühlen'!$E$11-'HFVsf-_-4 - Kühlen'!$E$19) -> 13.43925019 | BC44: 37.16625968 | BD44: =BC44*('HFVsf-_-4 - Kühlen'!$E$11-'HFVsf-_-4 - Kühlen'!$E$22) -> 371.6625968 | BE44: 465.7373481 | BG44: =((BD44*3.6)+('HFVsf-_-4 - Kühlen'!$E$23*4.19*'HFVsf-_-4 - Kühlen'!$E$22))/('HFVsf-_-4 - Kühlen'!$E$23*4.19) -> 18.66106871 | BH44: =BG44-'HFVsf-_-4 - Kühlen'!$E$22 -> 2.661068712 | BJ44: 40.31775057 | BK44: 0
A45: - | B45: Reihe 1 - offen / Reihe 3+4 - 1/3 offen | G45: =0.00001155*'HFVsf-_-4 - Kühlen'!E18*'HFVsf-_-4 - Kühlen'!E18*'HFVsf-_-4 - Kühlen'!E18 - 0.00512238*'HFVsf-_-4 - Kühlen'!E18*'HFVsf-_-4 - Kühlen'!E18 + 0.91013502*'HFVsf-_-4 - Kühlen'!E18 -> 51.339702 | H45: =0.01223661*G45*G45 - 1.10949158*G45 + 53.49366493 +1.5 -> 30.28552622 | I45: =0.00940726*G45*G45- 0.71447208*G45 + 40.76970681 -> 28.8842498 | J45: =(G45*('HFVsf-_-4 - Kühlen'!$E$19-'HFVsf-_-4 - Kühlen'!$E$11)/3)*-1 -> 119.792638 | K45: =J45/('HFVsf-_-4 - Kühlen'!$E$11-'HFVsf-_-4 - Kühlen'!$E$19) -> 17.113234 | L45: =L44 -> 30.26042978 | M45: 30.13385482 | N45: =M45*('HFVsf-_-4 - Kühlen'!$E$11-'HFVsf-_-4 - Kühlen'!$E$22) -> 301.3385482 | O45: 421.1311862 | Q45: =((N45*3.6)+('HFVsf-_-4 - Kühlen'!$E$23*4.19*'HFVsf-_-4 - Kühlen'!$E$22))/('HFVsf-_-4 - Kühlen'!$E$23*4.19) -> 18.15755524 | R45: =Q45-'HFVsf-_-4 - Kühlen'!$E$22 -> 2.157555238 | T45: 64.1746275 | U45: 0 | V45: - | W45: Reihe 1 - offen / Reihe 3+4 - 1/3 offen | AB45: =G45/$AL$82*$AM$82 -> 32.08731375 | AC45: =H45+(10*LOG(($AM$77+$AM$78+$AM$79)/($AL$77+$AL$78+$AL$79))) -> 28.24432639 | AD45: 26.84304998 | AE45: =(AB45*('HFVsf-_-4 - Kühlen'!$E$19-'HFVsf-_-4 - Kühlen'!$E$11)/3)*-1 -> 74.87039875 | AF45: =AE45/('HFVsf-_-4 - Kühlen'!$E$11-'HFVsf-_-4 - Kühlen'!$E$19) -> 10.69577125 | AH45: 19.84193031 | AI45: =AH45*('HFVsf-_-4 - Kühlen'!$E$11-'HFVsf-_-4 - Kühlen'!$E$22) -> 198.4193031 | AJ45: 273.2897018 | AL45: =((AI45*3.6)+('HFVsf-_-4 - Kühlen'!$E$23*4.19*'HFVsf-_-4 - Kühlen'!$E$22))/('HFVsf-_-4 - Kühlen'!$E$23*4.19) -> 17.42066327 | AM45: =AL45-'HFVsf-_-4 - Kühlen'!$E$22 -> 1.420663268 | AO45: 50.93224405 | AP45: 0 | AQ45: - | AR45: Reihe 1 - offen / Reihe 3+4 - 1/3 offen | AW45: =G45/$AL$82*$AN$82 -> 63.37244466 | AX45: =H45+(10*LOG(($AN$77+$AN$78+$AN$79)/($AL$77+$AL$78+$AL$79))) -> 31.19999739 | AY45: 29.79872098 | AZ45: =(AW45*('HFVsf-_-4 - Kühlen'!$E$19-'HFVsf-_-4 - Kühlen'!$E$11)/3)*-1 -> 147.8690375 | BA45: =AZ45/('HFVsf-_-4 - Kühlen'!$E$11-'HFVsf-_-4 - Kühlen'!$E$19) -> 21.12414822 | BC45: 37.16625968 | BD45: =BC45*('HFVsf-_-4 - Kühlen'!$E$11-'HFVsf-_-4 - Kühlen'!$E$22) -> 371.6625968 | BE45: 519.5316343 | BG45: =((BD45*3.6)+('HFVsf-_-4 - Kühlen'!$E$23*4.19*'HFVsf-_-4 - Kühlen'!$E$22))/('HFVsf-_-4 - Kühlen'!$E$23*4.19) -> 18.66106871 | BH45: =BG45-'HFVsf-_-4 - Kühlen'!$E$22 -> 2.661068712 | BJ45: 63.37244466 | BK45: 0
A46: V3 | B46: Reihe 1 - offen / Reihe 3+4 - halb offen | G46: =0.00001121*'HFVsf-_-4 - Kühlen'!E18*'HFVsf-_-4 - Kühlen'!E18*'HFVsf-_-4 - Kühlen'!E18 - 0.00515743*'HFVsf-_-4 - Kühlen'!E18*'HFVsf-_-4 - Kühlen'!E18 + 0.98935916*'HFVsf-_-4 - Kühlen'!E18 -> 58.571616 | H46: =-0.00016693*G46*G46*G46 + 0.03676497*G46*G46 - 2.36419998*G46 + 75.33789138+1.5 -> 30.94749635 | I46: =-0.00014494*G46*G46*G46 + 0.03027476*G46*G46 - 1.70837942*G46 + 56.70564023 -> 31.38080079 | J46: =(G46*('HFVsf-_-4 - Kühlen'!$E$19-'HFVsf-_-4 - Kühlen'!$E$11)/3)*-1 -> 136.667104 | K46: =J46/('HFVsf-_-4 - Kühlen'!$E$11-'HFVsf-_-4 - Kühlen'!$E$19) -> 19.523872 | L46: =L44 -> 30.26042978 | M46: 30.13385482 | N46: =M46*('HFVsf-_-4 - Kühlen'!$E$11-'HFVsf-_-4 - Kühlen'!$E$22) -> 301.3385482 | O46: 438.0056522 | Q46: =((N46*3.6)+('HFVsf-_-4 - Kühlen'!$E$23*4.19*'HFVsf-_-4 - Kühlen'!$E$22))/('HFVsf-_-4 - Kühlen'!$E$23*4.19) -> 18.15755524 | R46: =Q46-'HFVsf-_-4 - Kühlen'!$E$22 -> 2.157555238 | T46: 73.21452 | U46: 0 | V46: V3 | W46: Reihe 1 - offen / Reihe 3+4 - halb offen | AB46: =G46/$AL$82*$AM$82 -> 36.60726 | AC46: 28.90629653 | AD46: 29.33960097 | AE46: =(AB46*('HFVsf-_-4 - Kühlen'!$E$19-'HFVsf-_-4 - Kühlen'!$E$11)/3)*-1 -> 85.41694 | AF46: =AE46/('HFVsf-_-4 - Kühlen'!$E$11-'HFVsf-_-4 - Kühlen'!$E$19) -> 12.20242 | AH46: 19.84193031 | AI46: =AH46*('HFVsf-_-4 - Kühlen'!$E$11-'HFVsf-_-4 - Kühlen'!$E$22) -> 198.4193031 | AJ46: 283.8362431 | AL46: =((AI46*3.6)+('HFVsf-_-4 - Kühlen'!$E$23*4.19*'HFVsf-_-4 - Kühlen'!$E$22))/('HFVsf-_-4 - Kühlen'!$E$23*4.19) -> 17.42066327 | AM46: =AL46-'HFVsf-_-4 - Kühlen'!$E$22 -> 1.420663268 | AO46: 58.1067619 | AP46: 0 | AQ46: V3 | AR46: Reihe 1 - offen / Reihe 3+4 - halb offen | AW46: =G46/$AL$82*$AN$82 -> 72.2993385 | AX46: 31.86196753 | AY46: 32.29527197 | AZ46: =(AW46*('HFVsf-_-4 - Kühlen'!$E$19-'HFVsf-_-4 - Kühlen'!$E$11)/3)*-1 -> 168.6984565 | BA46: =AZ46/('HFVsf-_-4 - Kühlen'!$E$11-'HFVsf-_-4 - Kühlen'!$E$19) -> 24.0997795 | BC46: 37.16625968 | BD46: =BC46*('HFVsf-_-4 - Kühlen'!$E$11-'HFVsf-_-4 - Kühlen'!$E$22) -> 371.6625968 | BE46: 540.3610533 | BG46: =((BD46*3.6)+('HFVsf-_-4 - Kühlen'!$E$23*4.19*'HFVsf-_-4 - Kühlen'!$E$22))/('HFVsf-_-4 - Kühlen'!$E$23*4.19) -> 18.66106871 | BH46: =BG46-'HFVsf-_-4 - Kühlen'!$E$22 -> 2.661068712 | BJ46: 72.2993385 | BK46: 0
A47: V4 | B47: Reihe 1 - offen / Reihe 3+4 - offen | G47: =0.00001114*'HFVsf-_-4 - Kühlen'!E18*'HFVsf-_-4 - Kühlen'!E18*'HFVsf-_-4 - Kühlen'!E18 - 0.00569142*'HFVsf-_-4 - Kühlen'!E18*'HFVsf-_-4 - Kühlen'!E18 + 1.29588189*'HFVsf-_-4 - Kühlen'!E18 -> 83.813989 | H47: =0.00002138*G47*G47*G47 - 0.00552666*G47*G47 + 0.65145656*G47 + 3.53424824+1.5 -> 33.39983875 | I47: =0.00001549*G47*G47*G47 - 0.00475234*G47*G47 + 0.74577555*G47 - 2.66924058 -> 35.57314594 | J47: =(G47*('HFVsf-_-4 - Kühlen'!$E$19-'HFVsf-_-4 - Kühlen'!$E$11)/3)*-1 -> 195.5659743 | K47: =J47/('HFVsf-_-4 - Kühlen'!$E$11-'HFVsf-_-4 - Kühlen'!$E$19) -> 27.93799633 | L47: =L46 -> 30.26042978 | M47: 30.13385482 | N47: =M47*('HFVsf-_-4 - Kühlen'!$E$11-'HFVsf-_-4 - Kühlen'!$E$22) -> 301.3385482 | O47: 496.9045225 | Q47: =((N47*3.6)+('HFVsf-_-4 - Kühlen'!$E$23*4.19*'HFVsf-_-4 - Kühlen'!$E$22))/('HFVsf-_-4 - Kühlen'!$E$23*4.19) -> 18.15755524 | R47: =Q47-'HFVsf-_-4 - Kühlen'!$E$22 -> 2.157555238 | T47: 104.7674862 | U47: ! ? ! | V47: V4 | W47: Reihe 1 - offen / Reihe 3+4 - offen | AB47: =G47/$AL$82*$AM$82 -> 52.38374312 | AC47: 31.35863893 | AD47: 33.53194611 | AE47: =(AB47*('HFVsf-_-4 - Kühlen'!$E$19-'HFVsf-_-4 - Kühlen'!$E$11)/3)*-1 -> 122.228734 | AF47: =AE47/('HFVsf-_-4 - Kühlen'!$E$11-'HFVsf-_-4 - Kühlen'!$E$19) -> 17.46124771 | AH47: 19.84193031 | AI47: =AH47*('HFVsf-_-4 - Kühlen'!$E$11-'HFVsf-_-4 - Kühlen'!$E$22) -> 198.4193031 | AJ47: 320.6480371 | AL47: =((AI47*3.6)+('HFVsf-_-4 - Kühlen'!$E$23*4.19*'HFVsf-_-4 - Kühlen'!$E$22))/('HFVsf-_-4 - Kühlen'!$E$23*4.19) -> 17.42066327 | AM47: =AL47-'HFVsf-_-4 - Kühlen'!$E$22 -> 1.420663268 | AO47: 83.14879861 | AP47: ! ? ! | AQ47: V4 | AR47: Reihe 1 - offen / Reihe 3+4 - offen | AW47: =G47/$AL$82*$AN$82 -> 103.4578927 | AX47: 34.31430993 | AY47: 36.48761711 | AZ47: =(AW47*('HFVsf-_-4 - Kühlen'!$E$19-'HFVsf-_-4 - Kühlen'!$E$11)/3)*-1 -> 241.4017496 | BA47: =AZ47/('HFVsf-_-4 - Kühlen'!$E$11-'HFVsf-_-4 - Kühlen'!$E$19) -> 34.48596422 | BC47: 37.16625968 | BD47: =BC47*('HFVsf-_-4 - Kühlen'!$E$11-'HFVsf-_-4 - Kühlen'!$E$22) -> 371.6625968 | BE47: 613.0643464 | BG47: =((BD47*3.6)+('HFVsf-_-4 - Kühlen'!$E$23*4.19*'HFVsf-_-4 - Kühlen'!$E$22))/('HFVsf-_-4 - Kühlen'!$E$23*4.19) -> 18.66106871 | BH47: =BG47-'HFVsf-_-4 - Kühlen'!$E$22 -> 2.661068712 | BJ47: 103.4578927 | BK47: ! ? !
A48: V5 | B48: Reihe 1 - offen / Reihe 3+4 - offen / Reihe 2 - halb offen | G48: =0.00001643*'HFVsf-_-4 - Kühlen'!E18*'HFVsf-_-4 - Kühlen'!E18*'HFVsf-_-4 - Kühlen'!E18 - 0.00778044*'HFVsf-_-4 - Kühlen'!E18*'HFVsf-_-4 - Kühlen'!E18 + 1.57165254*'HFVsf-_-4 - Kühlen'!E18 -> 95.790854 | H48: =0.00001677*G48*G48*G48 - 0.00520804*G48*G48 + 0.72331681*G48 - 3.76279164+1 -> 33.4762149 | I48: =0.000005*G48*G48*G48 - 0.00228525*G48*G48 + 0.58129671*G48 - 4.48854499 -> 34.6199965 | J48: =(G48*('HFVsf-_-4 - Kühlen'!$E$19-'HFVsf-_-4 - Kühlen'!$E$11)/3)*-1 -> 223.5119927 | K48: =J48/('HFVsf-_-4 - Kühlen'!$E$11-'HFVsf-_-4 - Kühlen'!$E$19) -> 31.93028467 | L48: =0.00000724*G48*G48*G48 - 0.00507231*G48*G48 + 1.16582334*G48 - 36.10721949 -> 35.38876158 | M48: =(-0.00000006*A6*A6*A6*A6 + 0.0000435*A6*A6*A6 - 0.01202881*A6*A6 + 1.5521255*A6 + 27.25688021)*(L48/100) -> 35.27598829 | N48: =M48*('HFVsf-_-4 - Kühlen'!$E$11-'HFVsf-_-4 - Kühlen'!$E$22) -> 352.7598829 | O48: 576.2718755 | Q48: =((N48*3.6)+('HFVsf-_-4 - Kühlen'!$E$23*4.19*'HFVsf-_-4 - Kühlen'!$E$22))/('HFVsf-_-4 - Kühlen'!$E$23*4.19) -> 18.52572709 | R48: =Q48-'HFVsf-_-4 - Kühlen'!$E$22 -> 2.525727085 | T48: 119.7385675 | U48: ! ? ! | V48: V5 | W48: Reihe 1 - offen / Reihe 3+4 - offen / Reihe 2 - halb offen | AB48: =G48/$AL$84*$AM$84 -> 58.40905732 | AC48: =H48+(10*LOG(($AM$84)/($AL$84))) -> 31.32777642 | AD48: =I48+(10*LOG(($AM$84)/($AL$84))) -> 32.47155802 | AE48: =(AB48*('HFVsf-_-4 - Kühlen'!$E$19-'HFVsf-_-4 - Kühlen'!$E$11)/3)*-1 -> 136.2878004 | AF48: =AE48/('HFVsf-_-4 - Kühlen'!$E$11-'HFVsf-_-4 - Kühlen'!$E$19) -> 19.46968577 | AH48: 23.22781819 | AI48: =AH48*('HFVsf-_-4 - Kühlen'!$E$11-'HFVsf-_-4 - Kühlen'!$E$22) -> 232.2781819 | AJ48: 368.5659823 | AL48: =((AI48*3.6)+('HFVsf-_-4 - Kühlen'!$E$23*4.19*'HFVsf-_-4 - Kühlen'!$E$22))/('HFVsf-_-4 - Kühlen'!$E$23*4.19) -> 17.66308961 | AM48: =AL48-'HFVsf-_-4 - Kühlen'!$E$22 -> 1.663089608 | AO48: 92.71278939 | AP48: ! ? ! | AQ48: V5 | AR48: Reihe 1 - offen / Reihe 3+4 - offen / Reihe 2 - halb offen | AW48: =G48/$AL$84*$AN$84 -> 119.1544769 | AX48: =H48+(10*LOG(($AN$84)/($AL$84))) -> 34.4240781 | AY48: =I48+(10*LOG(($AN$84)/($AL$84))) -> 35.56785969 | AZ48: =(AW48*('HFVsf-_-4 - Kühlen'!$E$19-'HFVsf-_-4 - Kühlen'!$E$11)/3)*-1 -> 278.0271128 | BA48: =AZ48/('HFVsf-_-4 - Kühlen'!$E$11-'HFVsf-_-4 - Kühlen'!$E$19) -> 39.71815898 | BC48: 43.50842429 | BD48: =BC48*('HFVsf-_-4 - Kühlen'!$E$11-'HFVsf-_-4 - Kühlen'!$E$22) -> 435.0842429 | BE48: 713.1113558 | BG48: =((BD48*3.6)+('HFVsf-_-4 - Kühlen'!$E$23*4.19*'HFVsf-_-4 - Kühlen'!$E$22))/('HFVsf-_-4 - Kühlen'!$E$23*4.19) -> 19.11516164 | BH48: =BG48-'HFVsf-_-4 - Kühlen'!$E$22 -> 3.115161644 | BJ48: 119.1544769 | BK48: ! ? !
A49: V6 | B49: alles offen - Boost | G49: =0.00001944*'HFVsf-_-4 - Kühlen'!E18*'HFVsf-_-4 - Kühlen'!E18*'HFVsf-_-4 - Kühlen'!E18 - 0.00899448*'HFVsf-_-4 - Kühlen'!E18*'HFVsf-_-4 - Kühlen'!E18 + 1.7594462*'HFVsf-_-4 - Kühlen'!E18 -> 105.43982 | H49: =-0.000015*G49*G49*G49 + 0.00599418*G49*G49 - 0.59801586*G49 + 46.24012038+1 -> 33.24256944 | I49: =-0.00003432*G49*G49*G49 + 0.01224967*G49*G49 - 1.18836976*G49 + 63.60257406 -> 34.25642947 | J49: =(G49*('HFVsf-_-4 - Kühlen'!$E$19-'HFVsf-_-4 - Kühlen'!$E$11)/3)*-1 -> 246.0262467 | K49: =J49/('HFVsf-_-4 - Kühlen'!$E$11-'HFVsf-_-4 - Kühlen'!$E$19) -> 35.14660667 | L49: =0.00000418*'HFVsf-_-4 - Kühlen'!E18*'HFVsf-_-4 - Kühlen'!E18*'HFVsf-_-4 - Kühlen'!E18 - 0.00252654*'HFVsf-_-4 - Kühlen'!E18*'HFVsf-_-4 - Kühlen'!E18 + 0.56349124*'HFVsf-_-4 - Kühlen'!E18 + 3.31123587 -> 38.57495987 | M49: =(-0.00000006*A6*A6*A6*A6 + 0.0000435*A6*A6*A6 - 0.01202881*A6*A6 + 1.5521255*A6 + 27.25688021)*(L49/100) -> 38.45203313 | N49: =M49*('HFVsf-_-4 - Kühlen'!$E$11-'HFVsf-_-4 - Kühlen'!$E$22) -> 384.5203313 | O49: 630.5465779 | Q49: =((N49*3.6)+('HFVsf-_-4 - Kühlen'!$E$23*4.19*'HFVsf-_-4 - Kühlen'!$E$22))/('HFVsf-_-4 - Kühlen'!$E$23*4.19) -> 18.75312886 | R49: =Q49-'HFVsf-_-4 - Kühlen'!$E$22 -> 2.753128863 | T49: 131.799775 | U49: ! ? ! | V49: V6 | W49: alles offen - Boost | AB49: =G49/$AL$84*$AM$84 -> 64.29257317 | AC49: =H49+(10*LOG(($AM$84)/($AL$84))) -> 31.09413095 | AD49: =I49+(10*LOG(($AM$84)/($AL$84))) -> 32.10799099 | AE49: =(AB49*('HFVsf-_-4 - Kühlen'!$E$19-'HFVsf-_-4 - Kühlen'!$E$11)/3)*-1 -> 150.0160041 | AF49: =AE49/('HFVsf-_-4 - Kühlen'!$E$11-'HFVsf-_-4 - Kühlen'!$E$19) -> 21.43085772 | AH49: 25.31911586 | AI49: =AH49*('HFVsf-_-4 - Kühlen'!$E$11-'HFVsf-_-4 - Kühlen'!$E$22) -> 253.1911586 | AJ49: 403.2071627 | AL49: =((AI49*3.6)+('HFVsf-_-4 - Kühlen'!$E$23*4.19*'HFVsf-_-4 - Kühlen'!$E$22))/('HFVsf-_-4 - Kühlen'!$E$23*4.19) -> 17.81282452 | AM49: =AL49-'HFVsf-_-4 - Kühlen'!$E$22 -> 1.812824525 | AO49: 102.0517034 | AP49: ! ? ! | AQ49: V6 | AR49: alles offen - Boost | AW49: =G49/$AL$84*$AN$84 -> 131.1568493 | AX49: =H49+(10*LOG(($AN$84)/($AL$84))) -> 34.19043263 | AY49: =I49+(10*LOG(($AN$84)/($AL$84))) -> 35.20429267 | AZ49: =(AW49*('HFVsf-_-4 - Kühlen'!$E$19-'HFVsf-_-4 - Kühlen'!$E$11)/3)*-1 -> 306.0326483 | BA49: =AZ49/('HFVsf-_-4 - Kühlen'!$E$11-'HFVsf-_-4 - Kühlen'!$E$19) -> 43.71894976 | BC49: 47.4256698 | BD49: =BC49*('HFVsf-_-4 - Kühlen'!$E$11-'HFVsf-_-4 - Kühlen'!$E$22) -> 474.256698 | BE49: 780.2893462 | BG49: =((BD49*3.6)+('HFVsf-_-4 - Kühlen'!$E$23*4.19*'HFVsf-_-4 - Kühlen'!$E$22))/('HFVsf-_-4 - Kühlen'!$E$23*4.19) -> 19.39563268 | BH49: =BG49-'HFVsf-_-4 - Kühlen'!$E$22 -> 3.395632682 | BJ49: 131.1568493 | BK49: ! ? !
B51: BG800 - Heizen | W51: BG630 - Heizen | AR51: BG1000 - Heizen
F52: Dp | G52: VP | H52: LwA | I52: LwA | J52: Qp | K52: QP/DtP | L52: Qh/Dt_Nenn | M52: Qh/Dt | N52: Qh | O52: Qh Gesamt | Q52: TRL | R52: DT_Wasser | AA52: Dp | AB52: VP | AC52: LwA | AD52: LwA | AE52: Qp | AF52: QP/DtP | AH52: Qh/Dt | AI52: Qh | AJ52: Qh Gesamt | AL52: TRL | AM52: DT_Wasser | AV52: Dp | AW52: VP | AX52: LwA | AY52: LwA | AZ52: Qp | BA52: QP/DtP | BC52: Qh/Dt | BD52: Qh | BE52: Qh Gesamt | BG52: TRL | BH52: DT_Wasser
B53: Dp W. | C53: =0.00032265*'HFVsf-_-4 - Heizen'!E19*'HFVsf-_-4 - Heizen'!E19 + 0.00130927*'HFVsf-_-4 - Heizen'!E19 -> 3.357427 | D53: kPa | F53: Pa | G53: m³/h | H53: MQ | I53: MQQ | J53: W | K53: W/K | L53: W/K | M53: W/K | N53: W | O53: W | Q53: °C | R53: K | W53: Dp W. | X53: =-0.00000004*'HFVsf-_-4 - Heizen'!$E$19*'HFVsf-_-4 - Heizen'!$E$19*'HFVsf-_-4 - Heizen'!$E$19 + 0.00029456*'HFVsf-_-4 - Heizen'!$E$19*'HFVsf-_-4 - Heizen'!$E$19 - 0.00106109*'HFVsf-_-4 - Heizen'!$E$19 -> 2.799491 | Y53: kPa | AA53: Pa | AB53: m³/h | AC53: MQ | AD53: MQQ | AE53: W | AF53: W/K | AH53: W/K | AI53: W | AJ53: W | AL53: °C | AM53: K | AR53: Dp W. | AS53: =-0.00000001*'HFVsf-_-4 - Heizen'!$E$19*'HFVsf-_-4 - Heizen'!$E$19*'HFVsf-_-4 - Heizen'!$E$19*'HFVsf-_-4 - Heizen'!$E$19 + 0.00000446*'HFVsf-_-4 - Heizen'!$E$19*'HFVsf-_-4 - Heizen'!$E$19*'HFVsf-_-4 - Heizen'!$E$19 - 0.00008954*'HFVsf-_-4 - Heizen'!$E$19*'HFVsf-_-4 - Heizen'!$E$19 + 0.01623801*'HFVsf-_-4 - Heizen'!$E$19 -> 4.188401 | AT53: kPa | AV53: Pa | AW53: m³/h | AX53: MQ | AY53: MQQ | AZ53: W | BA53: W/K | BC53: W/K | BD53: W | BE53: W | BG53: °C | BH53: K
B54: Düsenreihen: | F54: ='HFVsf-_-4 - Heizen'!$E$14 -> 100 | L54: 100L/h | T54: ! ? ! | W54: Düsenreihen: | AA54: ='HFVsf-_-4 - Heizen'!$E$14 -> 100 | AO54: ! ? ! | AR54: Düsenreihen: | AV54: ='HFVsf-_-4 - Heizen'!$E$14 -> 100 | BJ54: ! ? !
A55: V0 | B55: geschlossen | G55: =0.0000012*'HFVsf-_-4 - Heizen'!E14*'HFVsf-_-4 - Heizen'!E14*'HFVsf-_-4 - Heizen'!E14 - 0.00056156*'HFVsf-_-4 - Heizen'!E14*'HFVsf-_-4 - Heizen'!E14 + 0.11947194*'HFVsf-_-4 - Heizen'!E14 -> 7.531594 | H55: =-0.09683515*G55*G55*G55 + 2.82937202*G55*G55 - 25.31985844*G55 + 100.69909147 -> 29.12528343 | I55: =-0.09683515*G55*G55*G55 + 2.82937202*G55*G55 - 25.31985844*G55 + 100.69909147 -> 29.12528343 | J55: =(G55*('HFVsf-_-4 - Heizen'!$E$15-'HFVsf-_-4 - Heizen'!$E$11)/3) -> -10.04212533 | K55: =J55/('HFVsf-_-4 - Heizen'!$E$11-'HFVsf-_-4 - Heizen'!$E$15) -> -2.510531333 | L55: =(-0.00044271*K8*K8*K8 + 0.08535026*K8*K8 + 4.57471629*K8)/('HFVsf-_-4 - Heizen'!E18-'HFVsf-_-4 - Heizen'!E11) -> 6.90916368 | M55: =(0.00002283*$K$6*$K$6*$K$6 - 0.00884453*$K$6*$K$6 + 1.25881688*$K$6 + 39.75040963)*(L55/100) -> 6.910324256 | N55: =M55*('HFVsf-_-4 - Heizen'!$E$18-'HFVsf-_-4 - Heizen'!$E$11) -> 228.0407004 | O55: =N55+J55 -> 217.9985751 | Q55: =(((N55*3.6)-('HFVsf-_-4 - Heizen'!$E$19*4.19*'HFVsf-_-4 - Heizen'!$E$18))/('HFVsf-_-4 - Heizen'!$E$19*4.19))*-1 -> 53.04070043 | R55: ='HFVsf-_-4 - Heizen'!$E$18-Q55 -> 1.959299574 | T55: =G55/0.8 -> 9.4144925 | U55: =IF(T55>75,$T$41,$U$41) -> 0 | V55: V0 | W55: geschlossen | AB55: =G55/$AL$84*$AM$84 -> 4.592435366 | AC55: =H55+(10*LOG($AM$84/$AL$84)) -> 26.97684495 | AD55: =I55+(10*LOG($AM$84/$AL$84)) -> 26.97684495 | AE55: =(AB55*('HFVsf-_-4 - Heizen'!$E$15-'HFVsf-_-4 - Heizen'!$E$11)/3) -> -6.123247154 | AF55: =AE55/('HFVsf-_-4 - Heizen'!$E$11-'HFVsf-_-4 - Heizen'!$E$15) -> -1.530811789 | AH55: =(M55/$AL$86*$AM$86)*0.9 -> 4.550170335 | AI55: =AH55*('HFVsf-_-4 - Heizen'!$E$18-'HFVsf-_-4 - Heizen'!$E$11) -> 150.1556211 | AJ55: =AI55+AE55 -> 144.0323739 | AL55: =(((AI55*3.6)-('HFVsf-_-4 - Heizen'!$E$19*4.19*'HFVsf-_-4 - Heizen'!$E$18))/('HFVsf-_-4 - Heizen'!$E$19*4.19))*-1 -> 53.70988011 | AM55: ='HFVsf-_-4 - Heizen'!$E$18-AL55 -> 1.290119895 | AO55: =AB55/0.63 -> 7.289579946 | AP55: =IF(AO55>75,$T$41,$U$41) -> 0 | AQ55: V0 | AR55: geschlossen | AW55: =G55/$AL$84*$AN$84 -> 9.368568146 | AX55: =H55+(10*LOG($AN$84/$AL$84)) -> 30.07314662 | AY55: =I55+(10*LOG($AN$84/$AL$84)) -> 30.07314662 | AZ55: =(AW55*('HFVsf-_-4 - Heizen'!$E$15-'HFVsf-_-4 - Heizen'!$E$11)/3) -> -12.4914242 | BA55: =AZ55/('HFVsf-_-4 - Heizen'!$E$11-'HFVsf-_-4 - Heizen'!$E$15) -> -3.122856049 | BC55: =(M55/$AL$86*$AN$86) -> 8.523002028 | BD55: =BC55*('HFVsf-_-4 - Heizen'!$E$18-'HFVsf-_-4 - Heizen'!$E$11) -> 281.2590669 | BE55: =BD55+AZ55 -> 268.7676427 | BG55: =(((BD55*3.6)-('HFVsf-_-4 - Heizen'!$E$19*4.19*'HFVsf-_-4 - Heizen'!$E$18))/('HFVsf-_-4 - Heizen'!$E$19*4.19))*-1 -> 52.58345432 | BH55: ='HFVsf-_-4 - Heizen'!$E$18-BG55 -> 2.416545683 | BJ55: =AW55/1 -> 9.368568146 | BK55: =IF(BJ55>75,$T$41,$U$41) -> 0
A56: V1 | B56: Reihe 1 - halb offen | G56: =0.0000037*'HFVsf-_-4 - Heizen'!E14*'HFVsf-_-4 - Heizen'!E14*'HFVsf-_-4 - Heizen'!E14 - 0.00170264*'HFVsf-_-4 - Heizen'!E14*'HFVsf-_-4 - Heizen'!E14 + 0.33699235*'HFVsf-_-4 - Heizen'!E14 -> 20.372835 | H56: =0.00318987*G56*G56*G56 - 0.20009878*G56*G56 + 4.44969236*G56 - 6.23321246 -> 28.34103992 | I56: =0.00318987*G56*G56*G56 - 0.20009878*G56*G56 + 4.44969236*G56 - 6.23321246 -> 28.34103992 | J56: =(G56*('HFVsf-_-4 - Heizen'!$E$15-'HFVsf-_-4 - Heizen'!$E$11)/3) -> -27.16378 | K56: =J56/('HFVsf-_-4 - Heizen'!$E$11-'HFVsf-_-4 - Heizen'!$E$15) -> -6.790945 | L56: =-0.00010264*'HFVsf-_-4 - Heizen'!E14*'HFVsf-_-4 - Heizen'!E14 + 0.08917651*'HFVsf-_-4 - Heizen'!E14 + 11.04922042 -> 18.94047142 | M56: 18.94365297 | N56: =M56*('HFVsf-_-4 - Heizen'!$E$18-'HFVsf-_-4 - Heizen'!$E$11) -> 625.140548 | O56: =N56+J56 -> 597.976768 | Q56: =(((N56*3.6)-('HFVsf-_-4 - Heizen'!$E$19*4.19*'HFVsf-_-4 - Heizen'!$E$18))/('HFVsf-_-4 - Heizen'!$E$19*4.19))*-1 -> 49.62886403 | R56: ='HFVsf-_-4 - Heizen'!$E$18-Q56 -> 5.371135973 | T56: =G56/0.8 -> 25.46604375 | U56: =IF(T56>75,$T$41,$U$41) -> 0 | V56: V1 | W56: Reihe 1 - halb offen | AB56: =G56/$AL$84*$AM$84 -> 12.42246037 | AC56: =H56+(10*LOG($AM$77/$AL$77)) -> 26.25828049 | AD56: =I56+(10*LOG($AM$77/$AL$77)) -> 26.25828049 | AE56: =(AB56*('HFVsf-_-4 - Heizen'!$E$15-'HFVsf-_-4 - Heizen'!$E$11)/3) -> -16.56328049 | AF56: =AE56/('HFVsf-_-4 - Heizen'!$E$11-'HFVsf-_-4 - Heizen'!$E$15) -> -4.140820122 | AH56: =(M56/$AL$86*$AM$86)*0.9 -> 12.47363287 | AI56: =AH56*('HFVsf-_-4 - Heizen'!$E$18-'HFVsf-_-4 - Heizen'!$E$11) -> 411.6298848 | AJ56: =AI56+AE56 -> 395.0666043 | AL56: =(((AI56*3.6)-('HFVsf-_-4 - Heizen'!$E$19*4.19*'HFVsf-_-4 - Heizen'!$E$18))/('HFVsf-_-4 - Heizen'!$E$19*4.19))*-1 -> 51.46332319 | AM56: ='HFVsf-_-4 - Heizen'!$E$18-AL56 -> 3.536676814 | AO56: =AB56/0.63 -> 19.71819106 | AP56: =IF(AO56>75,$T$41,$U$41) -> 0 | AQ56: V1 | AR56: Reihe 1 - halb offen | AW56: =G56/$AL$84*$AN$84 -> 25.34181915 | AX56: =H56+(10*LOG($AN$77/$AL$77)) -> 29.26858045 | AY56: =I56+(10*LOG($AN$77/$AL$77)) -> 29.26858045 | AZ56: =(AW56*('HFVsf-_-4 - Heizen'!$E$15-'HFVsf-_-4 - Heizen'!$E$11)/3) -> -33.7890922 | BA56: =AZ56/('HFVsf-_-4 - Heizen'!$E$11-'HFVsf-_-4 - Heizen'!$E$15) -> -8.447273049 | BC56: 23.36457548 | BD56: =BC56*('HFVsf-_-4 - Heizen'!$E$18-'HFVsf-_-4 - Heizen'!$E$11) -> 771.030991 | BE56: 737.2418988 | BG56: =(((BD56*3.6)-('HFVsf-_-4 - Heizen'!$E$19*4.19*'HFVsf-_-4 - Heizen'!$E$18))/('HFVsf-_-4 - Heizen'!$E$19*4.19))*-1 -> 48.37539005 | BH56: ='HFVsf-_-4 - Heizen'!$E$18-BG56 -> 6.624609946 | BJ56: =AW56/1 -> 25.34181915 | BK56: =IF(BJ56>75,$T$41,$U$41) -> 0
A57: V2 | B57: Reihe 1 - offen | G57: =0.00000518*'HFVsf-_-4 - Heizen'!E14*'HFVsf-_-4 - Heizen'!E14*'HFVsf-_-4 - Heizen'!E14- 0.00258029*'HFVsf-_-4 - Heizen'!E14*'HFVsf-_-4 - Heizen'!E14 + 0.53187237*'HFVsf-_-4 - Heizen'!E14 -> 32.564337 | H57: =0.00079259*G57*G57*G57 - 0.06598958*G57*G57 + 1.90619065*G57 + 8.87776506 -> 28.34390291 | I57: =0.00079259*G57*G57*G57 - 0.06598958*G57*G57 + 1.90619065*G57 + 8.87776506 -> 28.34390291 | J57: =(G57*('HFVsf-_-4 - Heizen'!$E$15-'HFVsf-_-4 - Heizen'!$E$11)/3) -> -43.419116 | K57: =J57/('HFVsf-_-4 - Heizen'!$E$11-'HFVsf-_-4 - Heizen'!$E$15) -> -10.854779 | L57: =-0.00024663*'HFVsf-_-4 - Heizen'!E14*'HFVsf-_-4 - Heizen'!E14 + 0.14055954*'HFVsf-_-4 - Heizen'!E14 + 13.32188883 -> 24.91154283 | M57: 24.91572738 | N57: =M57*('HFVsf-_-4 - Heizen'!$E$18-'HFVsf-_-4 - Heizen'!$E$11) -> 822.2190035 | O57: 778.7998875 | Q57: =(((N57*3.6)-('HFVsf-_-4 - Heizen'!$E$19*4.19*'HFVsf-_-4 - Heizen'!$E$18))/('HFVsf-_-4 - Heizen'!$E$19*4.19))*-1 -> 47.93558851 | R57: ='HFVsf-_-4 - Heizen'!$E$18-Q57 -> 7.064411486 | T57: 40.70542125 | U57: 0 | V57: V2 | W57: Reihe 1 - offen | AB57: =G57/$AL$77*$AM$77 -> 20.15887529 | AC57: =H57+(10*LOG($AM$77/$AL$77)) -> 26.26114348 | AD57: =I57+(10*LOG($AM$77/$AL$77)) -> 26.26114348 | AE57: =(AB57*('HFVsf-_-4 - Heizen'!$E$15-'HFVsf-_-4 - Heizen'!$E$11)/3) -> -26.87850038 | AF57: =AE57/('HFVsf-_-4 - Heizen'!$E$11-'HFVsf-_-4 - Heizen'!$E$15) -> -6.719625095 | AH57: 16.40600345 | AI57: =AH57*('HFVsf-_-4 - Heizen'!$E$18-'HFVsf-_-4 - Heizen'!$E$11) -> 541.398114 | AJ57: 514.5196136 | AL57: =(((AI57*3.6)-('HFVsf-_-4 - Heizen'!$E$19*4.19*'HFVsf-_-4 - Heizen'!$E$18))/('HFVsf-_-4 - Heizen'!$E$19*4.19))*-1 -> 50.34836943 | AM57: ='HFVsf-_-4 - Heizen'!$E$18-AL57 -> 4.651630574 | AO57: 31.99821474 | AP57: 0 | AQ57: V2 | AR57: Reihe 1 - offen | AW57: =G57/$AL$77*$AN$77 -> 40.31775057 | AX57: =H57+(10*LOG($AN$77/$AL$77)) -> 29.27144344 | AY57: =I57+(10*LOG($AN$77/$AL$77)) -> 29.27144344 | AZ57: =(AW57*('HFVsf-_-4 - Heizen'!$E$15-'HFVsf-_-4 - Heizen'!$E$11)/3) -> -53.75700076 | BA57: =AZ57/('HFVsf-_-4 - Heizen'!$E$11-'HFVsf-_-4 - Heizen'!$E$15) -> -13.43925019 | BC57: 30.73036621 | BD57: =BC57*('HFVsf-_-4 - Heizen'!$E$18-'HFVsf-_-4 - Heizen'!$E$11) -> 1014.102085 | BE57: 960.3450841 | BG57: =(((BD57*3.6)-('HFVsf-_-4 - Heizen'!$E$19*4.19*'HFVsf-_-4 - Heizen'!$E$18))/('HFVsf-_-4 - Heizen'!$E$19*4.19))*-1 -> 46.28695106 | BH57: ='HFVsf-_-4 - Heizen'!$E$18-BG57 -> 8.713048939 | BJ57: 40.31775057 | BK57: 0
A58: - | B58: Reihe 1 - offen / Reihe 3+4 - 1/3 offen | G58: =0.00001155*'HFVsf-_-4 - Heizen'!E14*'HFVsf-_-4 - Heizen'!E14*'HFVsf-_-4 - Heizen'!E14 - 0.00512238*'HFVsf-_-4 - Heizen'!E14*'HFVsf-_-4 - Heizen'!E14 + 0.91013502*'HFVsf-_-4 - Heizen'!E14 -> 51.339702 | H58: =0.01223661*G58*G58 - 1.10949158*G58 + 53.49366493 +1.5 -> 30.28552622 | I58: =0.00940726*G58*G58- 0.71447208*G58 + 40.76970681 -> 28.8842498 | J58: =(G58*('HFVsf-_-4 - Heizen'!$E$15-'HFVsf-_-4 - Heizen'!$E$11)/3) -> -68.452936 | K58: =J58/('HFVsf-_-4 - Heizen'!$E$11-'HFVsf-_-4 - Heizen'!$E$15) -> -17.113234 | L58: =L57 -> 24.91154283 | M58: 24.91572738 | N58: =M58*('HFVsf-_-4 - Heizen'!$E$18-'HFVsf-_-4 - Heizen'!$E$11) -> 822.2190035 | O58: 753.7660675 | Q58: =(((N58*3.6)-('HFVsf-_-4 - Heizen'!$E$19*4.19*'HFVsf-_-4 - Heizen'!$E$18))/('HFVsf-_-4 - Heizen'!$E$19*4.19))*-1 -> 47.93558851 | R58: ='HFVsf-_-4 - Heizen'!$E$18-Q58 -> 7.064411486 | T58: 64.1746275 | U58: 0 | V58: - | W58: Reihe 1 - offen / Reihe 3+4 - 1/3 offen | AB58: =G58/$AL$82*$AM$82 -> 32.08731375 | AC58: =H58+(10*LOG(($AM$77+$AM$78+$AM$79)/($AL$77+$AL$78+$AL$79))) -> 28.24432639 | AD58: 26.84304998 | AE58: =(AB58*('HFVsf-_-4 - Heizen'!$E$15-'HFVsf-_-4 - Heizen'!$E$11)/3) -> -42.783085 | AF58: =AE58/('HFVsf-_-4 - Heizen'!$E$11-'HFVsf-_-4 - Heizen'!$E$15) -> -10.69577125 | AH58: 16.40600345 | AI58: =AH58*('HFVsf-_-4 - Heizen'!$E$18-'HFVsf-_-4 - Heizen'!$E$11) -> 541.398114 | AJ58: 498.615029 | AL58: =(((AI58*3.6)-('HFVsf-_-4 - Heizen'!$E$19*4.19*'HFVsf-_-4 - Heizen'!$E$18))/('HFVsf-_-4 - Heizen'!$E$19*4.19))*-1 -> 50.34836943 | AM58: ='HFVsf-_-4 - Heizen'!$E$18-AL58 -> 4.651630574 | AO58: 50.93224405 | AP58: 0 | AQ58: - | AR58: Reihe 1 - offen / Reihe 3+4 - 1/3 offen | AW58: =G58/$AL$82*$AN$82 -> 63.37244466 | AX58: =H58+(10*LOG(($AN$77+$AN$78+$AN$79)/($AL$77+$AL$78+$AL$79))) -> 31.19999739 | AY58: 29.79872098 | AZ58: =(AW58*('HFVsf-_-4 - Heizen'!$E$15-'HFVsf-_-4 - Heizen'!$E$11)/3) -> -84.49659288 | BA58: =AZ58/('HFVsf-_-4 - Heizen'!$E$11-'HFVsf-_-4 - Heizen'!$E$15) -> -21.12414822 | BC58: 30.73036621 | BD58: =BC58*('HFVsf-_-4 - Heizen'!$E$18-'HFVsf-_-4 - Heizen'!$E$11) -> 1014.102085 | BE58: 929.605492 | BG58: =(((BD58*3.6)-('HFVsf-_-4 - Heizen'!$E$19*4.19*'HFVsf-_-4 - Heizen'!$E$18))/('HFVsf-_-4 - Heizen'!$E$19*4.19))*-1 -> 46.28695106 | BH58: ='HFVsf-_-4 - Heizen'!$E$18-BG58 -> 8.713048939 | BJ58: 63.37244466 | BK58: 0
A59: V3 | B59: Reihe 1 - offen / Reihe 3+4 - halb offen | G59: =0.00001121*'HFVsf-_-4 - Heizen'!E14*'HFVsf-_-4 - Heizen'!E14*'HFVsf-_-4 - Heizen'!E14 - 0.00515743*'HFVsf-_-4 - Heizen'!E14*'HFVsf-_-4 - Heizen'!E14 + 0.98935916*'HFVsf-_-4 - Heizen'!E14 -> 58.571616 | H59: =-0.00016693*G59*G59*G59 + 0.03676497*G59*G59 - 2.36419998*G59 + 75.33789138+1.5 -> 30.94749635 | I59: =-0.00014494*G59*G59*G59 + 0.03027476*G59*G59 - 1.70837942*G59 + 56.70564023 -> 31.38080079 | J59: =(G59*('HFVsf-_-4 - Heizen'!$E$15-'HFVsf-_-4 - Heizen'!$E$11)/3) -> -78.095488 | K59: =J59/('HFVsf-_-4 - Heizen'!$E$11-'HFVsf-_-4 - Heizen'!$E$15) -> -19.523872 | L59: =L57 -> 24.91154283 | M59: 24.91572738 | N59: =M59*('HFVsf-_-4 - Heizen'!$E$18-'HFVsf-_-4 - Heizen'!$E$11) -> 822.2190035 | O59: 744.1235155 | Q59: =(((N59*3.6)-('HFVsf-_-4 - Heizen'!$E$19*4.19*'HFVsf-_-4 - Heizen'!$E$18))/('HFVsf-_-4 - Heizen'!$E$19*4.19))*-1 -> 47.93558851 | R59: ='HFVsf-_-4 - Heizen'!$E$18-Q59 -> 7.064411486 | T59: 73.21452 | U59: 0 | V59: V3 | W59: Reihe 1 - offen / Reihe 3+4 - halb offen | AB59: =G59/$AL$82*$AM$82 -> 36.60726 | AC59: 28.90629653 | AD59: 29.33960097 | AE59: =(AB59*('HFVsf-_-4 - Heizen'!$E$15-'HFVsf-_-4 - Heizen'!$E$11)/3) -> -48.80968 | AF59: =AE59/('HFVsf-_-4 - Heizen'!$E$11-'HFVsf-_-4 - Heizen'!$E$15) -> -12.20242 | AH59: 16.40600345 | AI59: =AH59*('HFVsf-_-4 - Heizen'!$E$18-'HFVsf-_-4 - Heizen'!$E$11) -> 541.398114 | AJ59: 492.588434 | AL59: =(((AI59*3.6)-('HFVsf-_-4 - Heizen'!$E$19*4.19*'HFVsf-_-4 - Heizen'!$E$18))/('HFVsf-_-4 - Heizen'!$E$19*4.19))*-1 -> 50.34836943 | AM59: ='HFVsf-_-4 - Heizen'!$E$18-AL59 -> 4.651630574 | AO59: 58.1067619 | AP59: 0 | AQ59: V3 | AR59: Reihe 1 - offen / Reihe 3+4 - halb offen | AW59: =G59/$AL$82*$AN$82 -> 72.2993385 | AX59: 31.86196753 | AY59: 32.29527197 | AZ59: =(AW59*('HFVsf-_-4 - Heizen'!$E$15-'HFVsf-_-4 - Heizen'!$E$11)/3) -> -96.399118 | BA59: =AZ59/('HFVsf-_-4 - Heizen'!$E$11-'HFVsf-_-4 - Heizen'!$E$15) -> -24.0997795 | BC59: 30.73036621 | BD59: =BC59*('HFVsf-_-4 - Heizen'!$E$18-'HFVsf-_-4 - Heizen'!$E$11) -> 1014.102085 | BE59: 917.7029668 | BG59: =(((BD59*3.6)-('HFVsf-_-4 - Heizen'!$E$19*4.19*'HFVsf-_-4 - Heizen'!$E$18))/('HFVsf-_-4 - Heizen'!$E$19*4.19))*-1 -> 46.28695106 | BH59: ='HFVsf-_-4 - Heizen'!$E$18-BG59 -> 8.713048939 | BJ59: 72.2993385 | BK59: 0
A60: V4 | B60: Reihe 1 - offen / Reihe 3+4 - offen | G60: =0.00001114*'HFVsf-_-4 - Heizen'!E14*'HFVsf-_-4 - Heizen'!E14*'HFVsf-_-4 - Heizen'!E14 - 0.00569142*'HFVsf-_-4 - Heizen'!E14*'HFVsf-_-4 - Heizen'!E14 + 1.29588189*'HFVsf-_-4 - Heizen'!E14 -> 83.813989 | H60: =0.00002138*G60*G60*G60 - 0.00552666*G60*G60 + 0.65145656*G60 + 3.53424824+1.5 -> 33.39983875 | I60: =0.00001549*G60*G60*G60 - 0.00475234*G60*G60 + 0.74577555*G60 - 2.66924058 -> 35.57314594 | J60: =(G60*('HFVsf-_-4 - Heizen'!$E$15-'HFVsf-_-4 - Heizen'!$E$11)/3) -> -111.7519853 | K60: =J60/('HFVsf-_-4 - Heizen'!$E$11-'HFVsf-_-4 - Heizen'!$E$15) -> -27.93799633 | L60: =L59 -> 24.91154283 | M60: 24.91572738 | N60: =M60*('HFVsf-_-4 - Heizen'!$E$18-'HFVsf-_-4 - Heizen'!$E$11) -> 822.2190035 | O60: 710.4670182 | Q60: =(((N60*3.6)-('HFVsf-_-4 - Heizen'!$E$19*4.19*'HFVsf-_-4 - Heizen'!$E$18))/('HFVsf-_-4 - Heizen'!$E$19*4.19))*-1 -> 47.93558851 | R60: ='HFVsf-_-4 - Heizen'!$E$18-Q60 -> 7.064411486 | T60: 104.7674862 | U60: ! ? ! | V60: V4 | W60: Reihe 1 - offen / Reihe 3+4 - offen | AB60: =G60/$AL$82*$AM$82 -> 52.38374312 | AC60: 31.35863893 | AD60: 33.53194611 | AE60: =(AB60*('HFVsf-_-4 - Heizen'!$E$15-'HFVsf-_-4 - Heizen'!$E$11)/3) -> -69.84499083 | AF60: =AE60/('HFVsf-_-4 - Heizen'!$E$11-'HFVsf-_-4 - Heizen'!$E$15) -> -17.46124771 | AH60: 16.40600345 | AI60: =AH60*('HFVsf-_-4 - Heizen'!$E$18-'HFVsf-_-4 - Heizen'!$E$11) -> 541.398114 | AJ60: 471.5531231 | AL60: =(((AI60*3.6)-('HFVsf-_-4 - Heizen'!$E$19*4.19*'HFVsf-_-4 - Heizen'!$E$18))/('HFVsf-_-4 - Heizen'!$E$19*4.19))*-1 -> 50.34836943 | AM60: ='HFVsf-_-4 - Heizen'!$E$18-AL60 -> 4.651630574 | AO60: 83.14879861 | AP60: ! ? ! | AQ60: V4 | AR60: Reihe 1 - offen / Reihe 3+4 - offen | AW60: =G60/$AL$82*$AN$82 -> 103.4578927 | AX60: 34.31430993 | AY60: 36.48761711 | AZ60: =(AW60*('HFVsf-_-4 - Heizen'!$E$15-'HFVsf-_-4 - Heizen'!$E$11)/3) -> -137.9438569 | BA60: =AZ60/('HFVsf-_-4 - Heizen'!$E$11-'HFVsf-_-4 - Heizen'!$E$15) -> -34.48596422 | BC60: 30.73036621 | BD60: =BC60*('HFVsf-_-4 - Heizen'!$E$18-'HFVsf-_-4 - Heizen'!$E$11) -> 1014.102085 | BE60: 876.1582279 | BG60: =(((BD60*3.6)-('HFVsf-_-4 - Heizen'!$E$19*4.19*'HFVsf-_-4 - Heizen'!$E$18))/('HFVsf-_-4 - Heizen'!$E$19*4.19))*-1 -> 46.28695106 | BH60: ='HFVsf-_-4 - Heizen'!$E$18-BG60 -> 8.713048939 | BJ60: 103.4578927 | BK60: ! ? !
A61: V5 | B61: Reihe 1 - offen / Reihe 3+4 - offen / Reihe 2 - halb offen | G61: =0.00001643*'HFVsf-_-4 - Heizen'!E14*'HFVsf-_-4 - Heizen'!E14*'HFVsf-_-4 - Heizen'!E14 - 0.00778044*'HFVsf-_-4 - Heizen'!E14*'HFVsf-_-4 - Heizen'!E14 + 1.57165254*'HFVsf-_-4 - Heizen'!E14 -> 95.790854 | H61: =0.00001677*G61*G61*G61 - 0.00520804*G61*G61 + 0.72331681*G61 - 3.76279164+1 -> 33.4762149 | I61: =0.000005*G61*G61*G61 - 0.00228525*G61*G61 + 0.58129671*G61 - 4.48854499 -> 34.6199965 | J61: =(G61*('HFVsf-_-4 - Heizen'!$E$15-'HFVsf-_-4 - Heizen'!$E$11)/3) -> -127.7211387 | K61: =J61/('HFVsf-_-4 - Heizen'!$E$11-'HFVsf-_-4 - Heizen'!$E$15) -> -31.93028467 | L61: =-0.00063357*G61*G61 + 0.3306984*G61 + 2.08120134 -> 27.94551632 | M61: =(-0.00364427*$K$6*$K$6 + 0.92168068*$K$6 + 44.27454669)*(L61/100) -> 27.94549248 | N61: =M61*('HFVsf-_-4 - Heizen'!$E$18-'HFVsf-_-4 - Heizen'!$E$11) -> 922.2012517 | O61: 794.480113 | Q61: =(((N61*3.6)-('HFVsf-_-4 - Heizen'!$E$19*4.19*'HFVsf-_-4 - Heizen'!$E$18))/('HFVsf-_-4 - Heizen'!$E$19*4.19))*-1 -> 47.07655249 | R61: ='HFVsf-_-4 - Heizen'!$E$18-Q61 -> 7.923447509 | T61: 119.7385675 | U61: ! ? ! | V61: V5 | W61: Reihe 1 - offen / Reihe 3+4 - offen / Reihe 2 - halb offen | AB61: =G61/$AL$84*$AM$84 -> 58.40905732 | AC61: =H61+(10*LOG(($AM$84)/($AL$84))) -> 31.32777642 | AD61: =I61+(10*LOG(($AM$84)/($AL$84))) -> 32.47155802 | AE61: =(AB61*('HFVsf-_-4 - Heizen'!$E$15-'HFVsf-_-4 - Heizen'!$E$11)/3) -> -77.87874309 | AF61: =AE61/('HFVsf-_-4 - Heizen'!$E$11-'HFVsf-_-4 - Heizen'!$E$15) -> -19.46968577 | AH61: 18.4009818 | AI61: =AH61*('HFVsf-_-4 - Heizen'!$E$18-'HFVsf-_-4 - Heizen'!$E$11) -> 607.2323995 | AJ61: 529.3536564 | AL61: =(((AI61*3.6)-('HFVsf-_-4 - Heizen'!$E$19*4.19*'HFVsf-_-4 - Heizen'!$E$18))/('HFVsf-_-4 - Heizen'!$E$19*4.19))*-1 -> 49.78272879 | AM61: ='HFVsf-_-4 - Heizen'!$E$18-AL61 -> 5.217271212 | AO61: 92.71278939 | AP61: ! ? ! | AQ61: V5 | AR61: Reihe 1 - offen / Reihe 3+4 - offen / Reihe 2 - halb offen | AW61: =G61/$AL$84*$AN$84 -> 119.1544769 | AX61: =H61+(10*LOG(($AN$84)/($AL$84))) -> 34.4240781 | AY61: =I61+(10*LOG(($AN$84)/($AL$84))) -> 35.56785969 | AZ61: =(AW61*('HFVsf-_-4 - Heizen'!$E$15-'HFVsf-_-4 - Heizen'!$E$11)/3) -> -158.8726359 | BA61: =AZ61/('HFVsf-_-4 - Heizen'!$E$11-'HFVsf-_-4 - Heizen'!$E$15) -> -39.71815898 | BC61: 34.46719434 | BD61: =BC61*('HFVsf-_-4 - Heizen'!$E$18-'HFVsf-_-4 - Heizen'!$E$11) -> 1137.417413 | BE61: 978.5447772 | BG61: =(((BD61*3.6)-('HFVsf-_-4 - Heizen'!$E$19*4.19*'HFVsf-_-4 - Heizen'!$E$18))/('HFVsf-_-4 - Heizen'!$E$19*4.19))*-1 -> 45.22743989 | BH61: ='HFVsf-_-4 - Heizen'!$E$18-BG61 -> 9.772560113 | BJ61: 119.1544769 | BK61: ! ? !
A62: V6 | B62: alles offen - Boost | G62: =0.00001944*'HFVsf-_-4 - Heizen'!E14*'HFVsf-_-4 - Heizen'!E14*'HFVsf-_-4 - Heizen'!E14 - 0.00899448*'HFVsf-_-4 - Heizen'!E14*'HFVsf-_-4 - Heizen'!E14 + 1.7594462*'HFVsf-_-4 - Heizen'!E14 -> 105.43982 | H62: =-0.000015*G62*G62*G62 + 0.00599418*G62*G62 - 0.59801586*G62 + 46.24012038+1 -> 33.24256944 | I62: =-0.00003432*G62*G62*G62 + 0.01224967*G62*G62 - 1.18836976*G62 + 63.60257406 -> 34.25642947 | J62: =(G62*('HFVsf-_-4 - Heizen'!$E$15-'HFVsf-_-4 - Heizen'!$E$11)/3) -> -140.5864267 | K62: =J62/('HFVsf-_-4 - Heizen'!$E$11-'HFVsf-_-4 - Heizen'!$E$15) -> -35.14660667 | L62: =-0.00033599*'HFVsf-_-4 - Heizen'!E14*'HFVsf-_-4 - Heizen'!E14 + 0.1700803*'HFVsf-_-4 - Heizen'!E14 + 16.00088101 -> 29.64901101 | M62: =(-0.00364427*$K$6*$K$6 + 0.92168068*$K$6 + 44.27454669)*(L62/100) -> 29.64898572 | N62: =M62*('HFVsf-_-4 - Heizen'!$E$18-'HFVsf-_-4 - Heizen'!$E$11) -> 978.4165286 | O62: 837.830102 | Q62: =(((N62*3.6)-('HFVsf-_-4 - Heizen'!$E$19*4.19*'HFVsf-_-4 - Heizen'!$E$18))/('HFVsf-_-4 - Heizen'!$E$19*4.19))*-1 -> 46.59355727 | R62: ='HFVsf-_-4 - Heizen'!$E$18-Q62 -> 8.406442728 | T62: 131.799775 | U62: ! ? ! | V62: V6 | W62: alles offen - Boost | AB62: =G62/$AL$84*$AM$84 -> 64.29257317 | AC62: =H62+(10*LOG(($AM$84)/($AL$84))) -> 31.09413095 | AD62: =I62+(10*LOG(($AM$84)/($AL$84))) -> 32.10799099 | AE62: =(AB62*('HFVsf-_-4 - Heizen'!$E$15-'HFVsf-_-4 - Heizen'!$E$11)/3) -> -85.72343089 | AF62: =AE62/('HFVsf-_-4 - Heizen'!$E$11-'HFVsf-_-4 - Heizen'!$E$15) -> -21.43085772 | AH62: 19.52266352 | AI62: =AH62*('HFVsf-_-4 - Heizen'!$E$18-'HFVsf-_-4 - Heizen'!$E$11) -> 644.2478963 | AJ62: 558.5244654 | AL62: =(((AI62*3.6)-('HFVsf-_-4 - Heizen'!$E$19*4.19*'HFVsf-_-4 - Heizen'!$E$18))/('HFVsf-_-4 - Heizen'!$E$19*4.19))*-1 -> 49.46469588 | AM62: ='HFVsf-_-4 - Heizen'!$E$18-AL62 -> 5.535304121 | AO62: 102.0517034 | AP62: ! ? ! | AQ62: V6 | AR62: alles offen - Boost | AW62: =G62/$AL$84*$AN$84 -> 131.1568493 | AX62: =H62+(10*LOG(($AN$84)/($AL$84))) -> 34.19043263 | AY62: =I62+(10*LOG(($AN$84)/($AL$84))) -> 35.20429267 | AZ62: =(AW62*('HFVsf-_-4 - Heizen'!$E$15-'HFVsf-_-4 - Heizen'!$E$11)/3) -> -174.875799 | BA62: =AZ62/('HFVsf-_-4 - Heizen'!$E$11-'HFVsf-_-4 - Heizen'!$E$15) -> -43.71894976 | BC62: 36.56823559 | BD62: =BC62*('HFVsf-_-4 - Heizen'!$E$18-'HFVsf-_-4 - Heizen'!$E$11) -> 1206.751775 | BE62: 1031.875976 | BG62: =(((BD62*3.6)-('HFVsf-_-4 - Heizen'!$E$19*4.19*'HFVsf-_-4 - Heizen'!$E$18))/('HFVsf-_-4 - Heizen'!$E$19*4.19))*-1 -> 44.631727 | BH62: ='HFVsf-_-4 - Heizen'!$E$18-BG62 -> 10.368273 | BJ62: 131.1568493 | BK62: ! ? !
H65: =H42 -> 29.12528343 | I65: =H43 -> 28.34103992 | J65: =H44 -> 28.34390291 | K65: =H46 -> 30.94749635 | L65: =H47 -> 33.39983875 | M65: =H48 -> 33.4762149 | N65: =H49 -> 33.24256944 | AC65: =AC42 -> 26.97684495 | AD65: =AC43 -> 26.25828049 | AE65: =AC44 -> 26.26114348 | AF65: =AC46 -> 28.90629653 | AG65: =AC47 -> 31.35863893 | AH65: =AC48 -> 31.32777642 | AI65: =AC49 -> 31.09413095 | AX65: =AX42 -> 30.07314662 | AY65: =AX43 -> 29.26858045 | AZ65: =AX44 -> 29.27144344 | BA65: =AX46 -> 31.86196753 | BB65: =AX47 -> 34.31430993 | BC65: =AX48 -> 34.4240781 | BD65: =AX49 -> 34.19043263
H66: =I42 -> 29.12528343 | I66: =I43 -> 28.34103992 | J66: =I44 -> 28.34390291 | K66: =I46 -> 31.38080079 | L66: =I47 -> 35.57314594 | M66: =I48 -> 34.6199965 | N66: =I49 -> 34.25642947 | AC66: =AD42 -> 26.97684495 | AD66: =AD43 -> 26.25828049 | AE66: =AD44 -> 26.26114348 | AF66: =AD46 -> 29.33960097 | AG66: =AD47 -> 33.53194611 | AH66: =AD48 -> 32.47155802 | AI66: =AD49 -> 32.10799099 | AX66: =AY42 -> 30.07314662 | AY66: =AY43 -> 29.26858045 | AZ66: =AY44 -> 29.27144344 | BA66: =AY46 -> 32.29527197 | BB66: =AY47 -> 36.48761711 | BC66: =AY48 -> 35.56785969 | BD66: =AY49 -> 35.20429267
H68: =H55 -> 29.12528343 | I68: =H56 -> 28.34103992 | J68: =H57 -> 28.34390291 | K68: =H59 -> 30.94749635 | L68: =H60 -> 33.39983875 | M68: =H61 -> 33.4762149 | N68: =H62 -> 33.24256944 | AC68: =AC55 -> 26.97684495 | AD68: =AC56 -> 26.25828049 | AE68: =AC57 -> 26.26114348 | AF68: =AC59 -> 28.90629653 | AG68: =AC60 -> 31.35863893 | AH68: =AC61 -> 31.32777642 | AI68: =AC62 -> 31.09413095 | AX68: =AX55 -> 30.07314662 | AY68: =AX56 -> 29.26858045 | AZ68: =AX57 -> 29.27144344 | BA68: =AX59 -> 31.86196753 | BB68: =AX60 -> 34.31430993 | BC68: =AX61 -> 34.4240781 | BD68: =AX62 -> 34.19043263
H69: =I55 -> 29.12528343 | I69: =I56 -> 28.34103992 | J69: =I57 -> 28.34390291 | K69: =I59 -> 31.38080079 | L69: =I60 -> 35.57314594 | M69: =I61 -> 34.6199965 | N69: =I62 -> 34.25642947 | AC69: =AD55 -> 26.97684495 | AD69: =AD56 -> 26.25828049 | AE69: =AD57 -> 26.26114348 | AF69: =AD59 -> 29.33960097 | AG69: =AD60 -> 33.53194611 | AH69: =AD61 -> 32.47155802 | AI69: =AD62 -> 32.10799099 | AX69: =AY55 -> 30.07314662 | AY69: =AY56 -> 29.26858045 | AZ69: =AY57 -> 29.27144344 | BA69: =AY59 -> 32.29527197 | BB69: =AY60 -> 36.48761711 | BC69: =AY61 -> 35.56785969 | BD69: =AY62 -> 35.20429267
A73: Technische Daten Baugröße 630
A74: Einstellbereich Stufe 1 | AK74: Umrechnung der Düsenanzahl auf anderen Baugrößen
A75: Dp | B75: VP | E75: LwA - MQ System | H75: LwA - MQQ System | K75: QP/DtP | N75: Qk/Dt | Q75: Qh/Dt | U75: QEk = 210 W (T_Wasservorlauf=60°C)
A76: [Pa] | B76: [m3/h] | E76: [dB(A)] | H76: [dB(A)] | K76: [W/K] | N76: [W/K] | Q76: [W/K] | U76: m = -- kg | AK76: BG | AL76: 800 | AM76: 630 | AN76: 1000 | AO76: Neutralen Düsen
B77: V0 | C77: V1 | D77: V2 | E77: V0 | F77: V1 | G77: V2 | H77: V0 | I77: V1 | J77: V2 | K77: V0 | L77: V1 | M77: V2 | N77: V0 | O77: V1 | P77: V2 | Q77: V0 | R77: V1 | S77: V2 | U77: wok / Dpw = 120 / 8 [kg/h] / [kPa] | AK77: Düsen Stufe 1 | AL77: 21 | AM77: 13 | AN77: 26 | AO77: 3
A78: =A105 -> 70 | B78: =B105/$AL$84*$AM$84 -> 3.672555976 | C78: 10.07050518 | D78: =D105/$AL$77*$AM$77 -> 16.3208097 | E78: =E105+(10*LOG($AM$84/$AL$84)) -> 27.53110215 | F78: =F105+(10*LOG($AM$77/$AL$77)) -> 24.96340399 | G78: 25.70697112 | H78: 27.5967812 | I78: 24.96340399 | J78: 25.70697112 | K78: =B78/3 -> 1.224185325 | L78: 3.356835061 | M78: 5.4402699 | N78: 0 | O78: =(O105/$AL$86*$AM$86)*0.9 -> 11.32244309 | P78: 16.31547445 | Q78: 4.550170335 | R78: 11.05650058 | S78: 14.45731144 | U78: woh / Dpw = 100 / 2 [kg/h] / [kPa] | AK78: Düsen Stufe 2a | AL78: 22 | AM78: 14 | AN78: 26 | AO78: 2
A79: =A106 -> 100 | B79: 4.592435366 | C79: 12.42246037 | D79: =D106/$AL$77*$AM$77 -> 20.15887529 | E79: =E106+(10*LOG($AM$84/$AL$84)) -> 26.97684495 | F79: 26.25828049 | G79: 26.26114348 | H79: 27.042524 | I79: 26.25828049 | J79: 26.26114348 | K79: 1.530811789 | L79: 4.140820122 | M79: 6.719625095 | N79: 0 | O79: 13.38245942 | P79: 19.84193031 | Q79: 4.550170335 | R79: 12.47363287 | S79: 16.40600345 | AK79: Düsen Stufe 2b | AL79: 21 | AM79: 13 | AN79: 27 | AO79: 3
A80: =A107 -> 150 | B80: 5.692494512 | C80: 15.07741006 | D80: =D107/$AL$77*$AM$77 -> 24.27089507 | E80: =E107+(10*LOG($AM$84/$AL$84)) -> 29.97631238 | F80: 27.59291902 | G80: 27.86077088 | H80: 30.04199144 | I80: 27.59291902 | J80: 27.86077088 | K80: 1.897498171 | L80: 5.025803354 | M80: 8.090298357 | N80: 0 | O80: 16.38871965 | P80: 24.04048837 | Q80: 4.550170335 | R80: 14.56513738 | S80: 19.00413065 | U80: Legende | AK80: Düsen Boost | AL80: 18 | AM80: 10 | AN80: 23 | AO80: 4
U81: Dp | V81: - Statischer Druck am Primärluftstutzen
A82: Einstellbereich Stufe 2 | U82: VP | V82: - Primärluftvolumenstrom (±10 %) | AK82: Reihe 1+2a+2b | AL82: =AL77+AL78+AL79 -> 64 | AM82: =AM77+AM78+AM79 -> 40 | AN82: =AN77+AN78+AN79 -> 79
A83: Dp | B83: VP | E83: LwA - MQ System | H83: LwA - MQQ System | K83: QP/DtP | N83: Qk/Dt | Q83: Qh/Dt | U83: LwA | V83: - Schallleistungspegel (±3 dB)
A84: [Pa] | B84: [m3/h] | E84: [dB(A)] | H84: [dB(A)] | K84: [W/K] | N84: [W/K] | Q84: [W/K] | U84: QP | V84: - Kühlleistung primär (Frischluftanteil) (±5 %) | AK84: Gesamt Düsenanzahl | AL84: =AL77+AL78+AL79+AL80 -> 82 | AM84: =AM77+AM78+AM79+AM80 -> 50 | AN84: =AN77+AN78+AN79+AN80 -> 102
B85: V2 | C85: V3 | D85: V4 | E85: V2 | F85: V3 | G85: V4 | H85: V2 | I85: V3 | J85: V4 | K85: V2 | L85: V3 | M85: V4 | U85: Qk | V85: - Kühlleistung sekundär (über Wärmet.) (±5 %)
A86: =A113 -> 70 | B86: =D78 -> 16.3208097 | C86: =C113/$AL$82*$AM$82 -> 29.89297762 | D86: 41.65299644 | E86: =G78 -> 25.70697112 | F86: =F113+(10*LOG(($AM$77+$AM$78+$AM$79)/($AL$77+$AL$78+$AL$79))) -> 27.55887985 | G86: 28.19100013 | H86: =J78 -> 25.70697112 | I86: =I113+(10*LOG(($AM$77+$AM$78+$AM$79)/($AL$77+$AL$78+$AL$79))) -> 26.35275554 | J86: 28.46907739 | K86: =B86/3 -> 5.4402699 | L86: 9.964325875 | M86: 13.88433215 | N86: =P78 -> 16.31547445 | Q86: =S78 -> 14.45731144 | U86: Qh | V86: - Heizleistung sekundär (±5 %) | AK86: Länge des Wärmeübertragers | AL86: 857 | AM86: 627 | AN86: 1057 | AO86: mm
A87: =A114 -> 100 | B87: =D79 -> 20.15887529 | C87: 36.60726 | D87: 52.38374312 | E87: =G79 -> 26.26114348 | F87: 28.90629653 | G87: 31.35863893 | H87: =J79 -> 26.26114348 | I87: 29.33960097 | J87: 33.53194611 | K87: 6.719625095 | L87: 12.20242 | M87: 17.46124771 | N87: =P79 -> 19.84193031 | Q87: =S79 -> 16.40600345 | U87: QEk | V87: - Heizleistung Eigenkonvektion | AK87: Länge des Kastens | AL87: =48.8+44+(699.2+30) -> 822 | AM87: =AM86-(AL86-AL87) -> 592 | AN87: =AN86-(AM86-AM87) -> 1022 | AO87: mm
A88: =A115 -> 150 | B88: =D80 -> 24.27089507 | C88: 43.87215562 | D88: 64.95177094 | E88: =G80 -> 27.86077088 | F88: 32.25842759 | G88: 35.00267763 | H88: =J80 -> 27.86077088 | I88: 33.78785352 | J88: 38.85299497 | K88: 8.090298357 | L88: 14.62405187 | M88: 21.65059031 | N88: =P80 -> 24.04048837 | Q88: =S80 -> 19.00413065 | U88: m | V88: - Gewicht | AK88: Hub (Abstand zwischen Düsen) | AL88: 31.7 | AM88: 31.7 | AN88: 31.7 | AO88: mm
U89: wok | V89: - Nennwassermenge bei Kühlleistung
A90: Einstellbereich Booststufe | U90: woh | V90: - Nennwassermenge bei Heizleistung | AK90: Booststufe
A91: Dp | B91: VP | E91: LwA - MQ System | H91: LwA - MQQ System | K91: QP/DtP | N91: Qk/Dt | Q91: Qh/Dt | U91: Dt | V91: - Temperaturdifferenz zwischen Ansaugtemperatur vor Wärmetauscher und Wasservorlauf | AK91: 75 Pa | AL91: 89.565765 | AM91: =$AM$84*AL95 -> 54.61327134 | AN91: =$AN$84*AL95 -> 111.4110735 | AO91: m³/h
A92: [Pa] | B92: [m3/h] | E92: [dB(A)] | H92: [dB(A)] | K92: [W/K] | N92: [W/K] | Q92: [W/K] | U92: DtP | V92: - Temperaturdifferenz zwischen Raum- und Primärluft | AK92: 100 Pa | AL92: 105.43982 | AM92: =$AM$84*AL96 -> 64.29257317 | AN92: =$AN$84*AL96 -> 131.1568493 | AO92: m³/h
B93: V4 | C93: V5 | D93: V6 | E93: V4 | F93: V5 | G93: V6 | H93: V4 | I93: V5 | J93: V6 | K93: V4 | L93: V5 | M93: V6 | N93: V4 | O93: V5 | P93: V6 | Q93: V4 | R93: V5 | S93: V6 | U93: Dpw | V93: - Wasserseitiger Druckverlust | AK93: 150 Pa | AL93: 127.15113 | AM93: =$AM$84*AL97 -> 77.53117683 | AN93: =$AN$84*AL97 -> 158.1636007 | AO93: m³/h
A94: =A121 -> 70 | B94: =D86 -> 41.65299644 | C94: =C121/$AL$84*$AM$84 -> 47.27256817 | D94: 52.29036707 | E94: =G86 -> 28.19100013 | F94: =F121+(10*LOG(($AM$84)/($AL$84))) -> 27.67709961 | G94: 28.43014013 | H94: =J86 -> 28.46907739 | I94: =I121+(10*LOG(($AM$84)/($AL$84))) -> 27.02371731 | J94: 27.9853598 | K94: =B94/3 -> 13.88433215 | L94: 15.75752272 | M94: 17.43012236 | N94: =(N121/$AL$86*$AM$86)*0.9 -> 16.31547445 | O94: 17.82835814 | P94: 20.87840861 | Q94: 14.45731144 | R94: 15.74456708 | S94: 17.29123754 | AK94: Vp / Düse
A95: =A122 -> 100 | B95: =D87 -> 52.38374312 | C95: 58.40905732 | D95: 64.29257317 | E95: =G87 -> 31.35863893 | F95: 31.32777642 | G95: 31.09413095 | H95: =J87 -> 33.53194611 | I95: 32.47155802 | J95: 32.10799099 | K95: 17.46124771 | L95: 19.46968577 | M95: 21.43085772 | N95: 19.84193031 | O95: 23.22781819 | P95: 25.31911586 | Q95: 16.40600345 | R95: 18.4009818 | S95: 19.52266352 | AK95: 75 Pa | AL95: =AL91/$AL$84 -> 1.092265427 | AM95: =AM91/$AM$84 -> 1.092265427 | AN95: =AN91/$AN$84 -> 1.092265427
A96: =A123 -> 150 | B96: =D88 -> 64.95177094 | C96: 70.81660427 | D96: 77.53117683 | E96: =G88 -> 35.00267763 | F96: 35.11710728 | G96: 35.12808789 | H96: =J88 -> 38.85299497 | I96: 37.88280003 | J96: 37.84523714 | K96: 21.65059031 | L96: 23.60553476 | M96: 25.84372561 | N96: 24.04048837 | O96: 27.70848781 | P96: 29.59879718 | Q96: 19.00413065 | R96: 21.0328085 | S96: 22.35676403 | AK96: 100 Pa | AL96: =AL92/$AL$84 -> 1.285851463 | AM96: =AM92/$AM$84 -> 1.285851463 | AN96: =AN92/$AN$84 -> 1.285851463
AK97: 150 Pa | AL97: =AL93/$AL$84 -> 1.550623537 | AM97: =AM93/$AM$84 -> 1.550623537 | AN97: =AN93/$AN$84 -> 1.550623537
A100: Technische Daten Baugröße 800
A101: Einstellbereich Stufe 1
A102: Dp | B102: VP | E102: LwA - MQ System | H102: LwA - MQQ System | K102: QP/DtP | N102: Qk/Dt | Q102: Qh/Dt | U102: QEk = 290 W (T_Wasservorlauf=60°C)
A103: [Pa] | B103: [m3/h] | E103: [dB(A)] | H103: [dB(A)] | K103: [W/K] | N103: [W/K] | Q103: [W/K] | U103: m = -- kg | X103: =X104*100/120 -> 100
B104: V0 | C104: V1 | D104: V2 | E104: V0 | F104: V1 | G104: V2 | H104: V0 | I104: V1 | J104: V2 | K104: V0 | L104: V1 | M104: V2 | N104: V0 | O104: V1 | P104: V2 | Q104: V0 | R104: V1 | S104: V2 | U104: wok / Dpw = 120 /10 [kg/h] / [kPa] | X104: 120 | Y104: Kg/h
A105: 70 | B105: =0.0000012*A105*A105*A105 - 0.00056156*A105*A105 + 0.11947194*A105 -> 6.0229918 | C105: =0.0000037*A105*A105*A105 - 0.00170264*A105*A105 + 0.33699235*A105 -> 16.5156285 | D105: =0.00000518*A105*A105*A105 - 0.00258029*A105*A105 + 0.53187237*A105 -> 26.3643849 | E105: =-0.09683515*B105*B105*B105 + 2.82937202*B105*B105 - 25.31985844*B105+ 100.69909147 -> 29.67954063 | F105: =0.00318987*C105*C105*C105 - 0.20009878*C105*C105 + 4.44969236*C105 - 6.23321246 -> 27.04616342 | G105: =0.00079259*D105*D105*D105 - 0.06598958*D105*D105 + 1.90619065*D105 + 8.87776506 -> 27.78973054 | H105: =-0.09683515*B105*B105*B105 + 2.82937202*B105*B105 - 25.31985844*B105 + 100.69909147 -> 29.67954063 | I105: =0.00318987*C105*C105*C105 - 0.20009878*C105*C105+ 4.44969236*C105 - 6.23321246 -> 27.04616342 | J105: =0.00079259*D105*D105*D105 - 0.06598958*D105*D105 + 1.90619065*D105 + 8.87776506 -> 27.78973054 | K105: =B105/3 -> 2.007663933 | L105: 5.5052095 | M105: 8.7881283 | N105: 0 | O105: =(-0.00000005*$X$103*$X$103*$X$103*$X$103 + 0.00003436*$X$103*$X$103*$X$103 - 0.00954651*$X$103*$X$103 + 1.23090664*$X$103 + 42.5961506)*((-0.00016284*A105*A105 + 0.13240544*A105 + 8.7971089)/100) -> 17.19534596 | P105: =(( -0.0006401*A105*A105 + 0.28808731*A105 + 7.85269878)/100)*(-0.00000005*$X$103*$X$103*$X$103*$X$103 + 0.00003436*$X$103*$X$103*$X$103 - 0.00954651*$X$103*$X$103 + 1.23090664*$X$103 + 42.5961506) -> 24.77824137 | Q105: =((( -0.00044271*$AA$107*$AA$107*$AA$107 + 0.08535026*$AA$107*$AA$107 + 4.57471629*$AA$107)/$AA$107)/100)*(0.00002283*$X$105*$X$105*$X$105 - 0.00884453*$X$105*$X$105 + 1.25881688*$X$105 + 39.75040963) -> 6.910324256 | R105: =((-0.00010264*A105*A105 + 0.08917651*A105 + 11.04922042)/100)*(0.00002283*$X$105*$X$105*$X$105 - 0.00884453*$X$105*$X$105 + 1.25881688*$X$105 + 39.75040963) -> 16.79146021 | S105: =( (-0.00024663*A105*A105 + 0.14055954*A105 + 13.32188883)/100)*(0.00002283*$X$105*$X$105*$X$105 - 0.00884453*$X$105*$X$105+ 1.25881688*$X$105 + 39.75040963) -> 21.95625714 | U105: woh / Dpw = 100 / 3 [kg/h] / [kPa] | X105: 100 | Y105: Kg/h | Z105: TVL | AA105: 55
A106: 100 | B106: =0.0000012*A106*A106*A106 - 0.00056156*A106*A106 + 0.11947194*A106 -> 7.531594 | C106: =0.0000037*A106*A106*A106 - 0.00170264*A106*A106 + 0.33699235*A106 -> 20.372835 | D106: =0.00000518*A106*A106*A106 - 0.00258029*A106*A106 + 0.53187237*A106 -> 32.564337 | E106: =-0.09683515*B106*B106*B106 + 2.82937202*B106*B106 - 25.31985844*B106+ 100.69909147 -> 29.12528343 | F106: =0.00318987*C106*C106*C106 - 0.20009878*C106*C106 + 4.44969236*C106 - 6.23321246 -> 28.34103992 | G106: =0.00079259*D106*D106*D106 - 0.06598958*D106*D106 + 1.90619065*D106 + 8.87776506 -> 28.34390291 | H106: =-0.09683515*B106*B106*B106 + 2.82937202*B106*B106 - 25.31985844*B106 + 100.69909147 -> 29.12528343 | I106: =0.00318987*C106*C106*C106 - 0.20009878*C106*C106+ 4.44969236*C106 - 6.23321246 -> 28.34103992 | J106: =0.00079259*D106*D106*D106 - 0.06598958*D106*D106 + 1.90619065*D106 + 8.87776506 -> 28.34390291 | K106: 2.510531333 | L106: 6.790945 | M106: 10.854779 | N106: 0 | O106: =(-0.00000005*$X$103*$X$103*$X$103*$X$103 + 0.00003436*$X$103*$X$103*$X$103 - 0.00954651*$X$103*$X$103 + 1.23090664*$X$103 + 42.5961506)*((-0.00016284*A106*A106 + 0.13240544*A106 + 8.7971089)/100) -> 20.32388397 | P106: =(( -0.0006401*A106*A106 + 0.28808731*A106 + 7.85269878)/100)*(-0.00000005*$X$103*$X$103*$X$103*$X$103 + 0.00003436*$X$103*$X$103*$X$103 - 0.00954651*$X$103*$X$103 + 1.23090664*$X$103 + 42.5961506) -> 30.13385482 | Q106: =((( -0.00044271*$AA$107*$AA$107*$AA$107 + 0.08535026*$AA$107*$AA$107 + 4.57471629*$AA$107)/$AA$107)/100)*(0.00002283*$X$105*$X$105*$X$105 - 0.00884453*$X$105*$X$105 + 1.25881688*$X$105 + 39.75040963) -> 6.910324256 | R106: =((-0.00010264*A106*A106 + 0.08917651*A106 + 11.04922042)/100)*(0.00002283*$X$105*$X$105*$X$105 - 0.00884453*$X$105*$X$105 + 1.25881688*$X$105 + 39.75040963) -> 18.94365297 | S106: =( (-0.00024663*A106*A106 + 0.14055954*A106 + 13.32188883)/100)*(0.00002283*$X$105*$X$105*$X$105 - 0.00884453*$X$105*$X$105+ 1.25881688*$X$105 + 39.75040963) -> 24.91572738 | Z106: TRaum | AA106: 22
A107: 150 | B107: =0.0000012*A107*A107*A107 - 0.00056156*A107*A107 + 0.11947194*A107 -> 9.335691 | C107: =0.0000037*A107*A107*A107 - 0.00170264*A107*A107 + 0.33699235*A107 -> 24.7269525 | D107: =0.00000518*A107*A107*A107 - 0.00258029*A107*A107 + 0.53187237*A107 -> 39.2068305 | E107: =-0.09683515*B107*B107*B107 + 2.82937202*B107*B107 - 25.31985844*B107+ 100.69909147 -> 32.12475086 | F107: =0.00318987*C107*C107*C107 - 0.20009878*C107*C107 + 4.44969236*C107 - 6.23321246 -> 29.67567845 | G107: =0.00079259*D107*D107*D107 - 0.06598958*D107*D107 + 1.90619065*D107 + 8.87776506 -> 29.9435303 | H107: =-0.09683515*B107*B107*B107 + 2.82937202*B107*B107 - 25.31985844*B107 + 100.69909147 -> 32.12475086 | I107: =0.00318987*C107*C107*C107 - 0.20009878*C107*C107+ 4.44969236*C107 - 6.23321246 -> 29.67567845 | J107: =0.00079259*D107*D107*D107 - 0.06598958*D107*D107 + 1.90619065*D107 + 8.87776506 -> 29.9435303 | K107: 3.111897 | L107: 8.2423175 | M107: 13.0689435 | N107: 0 | O107: =(-0.00000005*$X$103*$X$103*$X$103*$X$103 + 0.00003436*$X$103*$X$103*$X$103 - 0.00954651*$X$103*$X$103 + 1.23090664*$X$103 + 42.5961506)*((-0.00016284*A107*A107 + 0.13240544*A107 + 8.7971089)/100) -> 24.88947854 | P107: =(( -0.0006401*A107*A107 + 0.28808731*A107 + 7.85269878)/100)*(-0.00000005*$X$103*$X$103*$X$103*$X$103 + 0.00003436*$X$103*$X$103*$X$103 - 0.00954651*$X$103*$X$103 + 1.23090664*$X$103 + 42.5961506) -> 36.51018702 | Q107: =((( -0.00044271*$AA$107*$AA$107*$AA$107 + 0.08535026*$AA$107*$AA$107 + 4.57471629*$AA$107)/$AA$107)/100)*(0.00002283*$X$105*$X$105*$X$105 - 0.00884453*$X$105*$X$105 + 1.25881688*$X$105 + 39.75040963) -> 6.910324256 | R107: =((-0.00010264*A107*A107 + 0.08917651*A107 + 11.04922042)/100)*(0.00002283*$X$105*$X$105*$X$105 - 0.00884453*$X$105*$X$105 + 1.25881688*$X$105 + 39.75040963) -> 22.12001193 | S107: =( (-0.00024663*A107*A107 + 0.14055954*A107 + 13.32188883)/100)*(0.00002283*$X$105*$X$105*$X$105 - 0.00884453*$X$105*$X$105+ 1.25881688*$X$105 + 39.75040963) -> 28.86149206 | U107: Legende | AA107: =AA105-AA106 -> 33
U108: Dp | V108: - Statischer Druck am Primärluftstutzen
A109: Einstellbereich Stufe 2 | U109: VP | V109: - Primärluftvolumenstrom (±10 %)
A110: Dp | B110: VP | E110: LwA - MQ System | H110: LwA - MQQ System | K110: QP/DtP | N110: Qk/Dt | Q110: Qh/Dt | U110: LwA | V110: - Schallleistungspegel (±3 dB)
A111: [Pa] | B111: [m3/h] | E111: [dB(A)] | H111: [dB(A)] | K111: [W/K] | N111: [W/K] | Q111: [W/K] | U111: QP | V111: - Kühlleistung primär (Frischluftanteil) (±5 %)
B112: V2 | C112: V3 | D112: V4 | E112: V2 | F112: V3 | G112: V4 | H112: V2 | I112: V3 | J112: V4 | K112: V2 | L112: V3 | M112: V4 | U112: Qk | V112: - Kühlleistung sekundär (über Wärmet.) (±5 %)
A113: 70 | B113: =D105 -> 26.3643849 | C113: =0.00001121*A113*A113*A113 - 0.00515743*A113*A113 + 0.98935916*A113 -> 47.8287642 | D113: =0.00001114*A113*A113*A113 - 0.00569142*A113*A113 + 1.29588189*A113 -> 66.6447943 | E113: =G105 -> 27.78973054 | F113: =-0.00016693*C113*C113*C113 + 0.03676497*C113*C113 - 2.36419998*C113 + 75.33789138+1.5 -> 29.60007968 | G113: =0.00002138*D113*D113*D113 - 0.00552666*D113*D113 + 0.65145656*D113+ 3.53424824+1.5 -> 30.23219996 | H113: =J105 -> 27.78973054 | I113: =-0.00014494*C113*C113*C113+ 0.03027476*C113*C113- 1.70837942*C113 + 56.70564023 -> 28.39395537 | J113: =0.00001549*D113*D113*D113 - 0.00475234*D113*D113 + 0.74577555*D113- 2.66924058 -> 30.51027722 | K113: =B113/3 -> 8.7881283 | L113: 15.9429214 | M113: 22.21493143 | N113: =P105 -> 24.77824137 | Q113: =S105 -> 21.95625714 | U113: Qh | V113: - Heizleistung sekundär (±5 %)
A114: 100 | B114: =D106 -> 32.564337 | C114: =0.00001121*A114*A114*A114 - 0.00515743*A114*A114 + 0.98935916*A114 -> 58.571616 | D114: =0.00001114*A114*A114*A114 - 0.00569142*A114*A114 + 1.29588189*A114 -> 83.813989 | E114: =G106 -> 28.34390291 | F114: =-0.00016693*C114*C114*C114 + 0.03676497*C114*C114 - 2.36419998*C114 + 75.33789138+1.5 -> 30.94749635 | G114: =0.00002138*D114*D114*D114 - 0.00552666*D114*D114 + 0.65145656*D114+ 3.53424824+1.5 -> 33.39983875 | H114: =J106 -> 28.34390291 | I114: =-0.00014494*C114*C114*C114+ 0.03027476*C114*C114- 1.70837942*C114 + 56.70564023 -> 31.38080079 | J114: =0.00001549*D114*D114*D114 - 0.00475234*D114*D114 + 0.74577555*D114- 2.66924058 -> 35.57314594 | K114: 10.854779 | L114: 19.523872 | M114: 27.93799633 | N114: =P106 -> 30.13385482 | Q114: =S106 -> 24.91572738 | U114: QEk | V114: - Heizleistung Eigenkonvektion
A115: 150 | B115: =D107 -> 39.2068305 | C115: =0.00001121*A115*A115*A115 - 0.00515743*A115*A115 + 0.98935916*A115 -> 70.195449 | D115: =0.00001114*A115*A115*A115 - 0.00569142*A115*A115 + 1.29588189*A115 -> 103.9228335 | E115: =G107 -> 29.9435303 | F115: =-0.00016693*C115*C115*C115 + 0.03676497*C115*C115 - 2.36419998*C115 + 75.33789138+1.5 -> 34.29962742 | G115: =0.00002138*D115*D115*D115 - 0.00552666*D115*D115 + 0.65145656*D115+ 3.53424824+1.5 -> 37.04387745 | H115: =J107 -> 29.9435303 | I115: =-0.00014494*C115*C115*C115+ 0.03027476*C115*C115- 1.70837942*C115 + 56.70564023 -> 35.82905335 | J115: =0.00001549*D115*D115*D115 - 0.00475234*D115*D115 + 0.74577555*D115- 2.66924058 -> 40.89419479 | K115: 13.0689435 | L115: 23.398483 | M115: 34.6409445 | N115: =P107 -> 36.51018702 | Q115: =S107 -> 28.86149206 | U115: m | V115: - Gewicht
U116: wok | V116: - Nennwassermenge bei Kühlleistung
A117: Einstellbereich Booststufe | U117: woh | V117: - Nennwassermenge bei Heizleistung
A118: Dp | B118: VP | E118: LwA - MQ System | H118: LwA - MQQ System | K118: QP/DtP | N118: Qk/Dt | Q118: Qh/Dt | U118: Dt | V118: - Temperaturdifferenz zwischen Ansaugtemperatur vor Wärmetauscher und Wasservorlauf
A119: [Pa] | B119: [m3/h] | E119: [dB(A)] | H119: [dB(A)] | K119: [W/K] | N119: [W/K] | Q119: [W/K] | U119: DtP | V119: - Temperaturdifferenz zwischen Raum- und Primärluft
B120: V4 | C120: V5 | D120: V6 | E120: V4 | F120: V5 | G120: V6 | H120: V4 | I120: V5 | J120: V6 | K120: V4 | L120: V5 | M120: V6 | N120: V4 | O120: V5 | P120: V6 | Q120: V4 | R120: V5 | S120: V6 | U120: Dpw | V120: - Wasserseitiger Druckverlust
A121: 70 | B121: =D113 -> 66.6447943 | C121: =0.00001643*A121*A121*A121 - 0.00778044*A121*A121 + 1.57165254*A121 -> 77.5270118 | D121: =0.00001944*A121*A121*A121 - 0.00899448*A121*A121 + 1.7594462*A121 -> 85.756202 | E121: =G113 -> 30.23219996 | F121: =0.00001677*C121*C121*C121 - 0.00520804*C121*C121+ 0.72331681*C121 - 3.76279164+1 -> 29.82553809 | G121: =-0.000015*D121*D121*D121 + 0.00599418*D121*D121 - 0.59801586*D121 + 46.24012038+1 -> 30.57857861 | H121: =J113 -> 30.51027722 | I121: =0.000005*C121*C121*C121 - 0.00228525*C121*C121 + 0.58129671*C121 - 4.48854499 -> 29.17215579 | J121: =-0.00003432*D121*D121*D121 + 0.01224967*D121*D121 - 1.18836976*D121 + 63.60257406 -> 30.13379828 | K121: =B121/3 -> 22.21493143 | L121: 25.84233727 | M121: 28.58540067 | N121: =N113 -> 24.77824137 | O121: =(( 0.00000724*C121*C121*C121 - 0.00507231*C121*C121 + 1.16582334*C121 - 36.10721949)/100)*(-0.00000006*$X$103*$X$103*$X$103*$X$103 + 0.0000435*$X$103*$X$103*$X$103 - 0.01202881*$X$103*$X$103 + 1.5521255*$X$103 + 27.25688021) -> 27.07585137 | P121: =((0.00000418*A121*A121*A121 - 0.00252654*A121*A121 + 0.56349124*A121 + 3.31123587)/100)*(-0.00000006*$X$103*$X$103*$X$103*$X$103 + 0.0000435*$X$103*$X$103*$X$103 - 0.01202881*$X$103*$X$103 + 1.5521255*$X$103 + 27.25688021) -> 31.70794999 | Q121: =Q113 -> 21.95625714 | R121: =( (-0.00063357*C121*C121 + 0.3306984*C121 + 2.08120134)/100)*(-0.00364427*$X$105*$X$105 + 0.92168068*$X$105 + 44.27454669) -> 23.91120678 | S121: =(( -0.00033599*A121*A121 + 0.1700803*A121 + 16.00088101)/100)*(-0.00364427*$X$105*$X$105 + 0.92168068*$X$105 + 44.27454669) -> 26.26012861
A122: 100 | B122: =D114 -> 83.813989 | C122: =0.00001643*A122*A122*A122 - 0.00778044*A122*A122 + 1.57165254*A122 -> 95.790854 | D122: =0.00001944*A122*A122*A122 - 0.00899448*A122*A122 + 1.7594462*A122 -> 105.43982 | E122: =G114 -> 33.39983875 | F122: =0.00001677*C122*C122*C122 - 0.00520804*C122*C122+ 0.72331681*C122 - 3.76279164+1 -> 33.4762149 | G122: =-0.000015*D122*D122*D122 + 0.00599418*D122*D122 - 0.59801586*D122 + 46.24012038+1 -> 33.24256944 | H122: =J114 -> 35.57314594 | I122: =0.000005*C122*C122*C122 - 0.00228525*C122*C122 + 0.58129671*C122 - 4.48854499 -> 34.6199965 | J122: =-0.00003432*D122*D122*D122 + 0.01224967*D122*D122 - 1.18836976*D122 + 63.60257406 -> 34.25642947 | K122: 27.93799633 | L122: 31.93028467 | M122: 35.14660667 | N122: =N114 -> 30.13385482 | O122: =(( 0.00000724*C122*C122*C122 - 0.00507231*C122*C122 + 1.16582334*C122 - 36.10721949)/100)*(-0.00000006*$X$103*$X$103*$X$103*$X$103 + 0.0000435*$X$103*$X$103*$X$103 - 0.01202881*$X$103*$X$103 + 1.5521255*$X$103 + 27.25688021) -> 35.27598829 | P122: =((0.00000418*A122*A122*A122 - 0.00252654*A122*A122 + 0.56349124*A122 + 3.31123587)/100)*(-0.00000006*$X$103*$X$103*$X$103*$X$103 + 0.0000435*$X$103*$X$103*$X$103 - 0.01202881*$X$103*$X$103 + 1.5521255*$X$103 + 27.25688021) -> 38.45203313 | Q122: =Q114 -> 24.91572738 | R122: =( (-0.00063357*C122*C122 + 0.3306984*C122 + 2.08120134)/100)*(-0.00364427*$X$105*$X$105 + 0.92168068*$X$105 + 44.27454669) -> 27.94549248 | S122: =(( -0.00033599*A122*A122 + 0.1700803*A122 + 16.00088101)/100)*(-0.00364427*$X$105*$X$105 + 0.92168068*$X$105 + 44.27454669) -> 29.64898572
A123: 150 | B123: =D115 -> 103.9228335 | C123: =0.00001643*A123*A123*A123 - 0.00778044*A123*A123 + 1.57165254*A123 -> 116.139231 | D123: =0.00001944*A123*A123*A123 - 0.00899448*A123*A123 + 1.7594462*A123 -> 127.15113 | E123: =G115 -> 37.04387745 | F123: =0.00001677*C123*C123*C123 - 0.00520804*C123*C123+ 0.72331681*C123 - 3.76279164+1 -> 37.26554576 | G123: =-0.000015*D123*D123*D123 + 0.00599418*D123*D123 - 0.59801586*D123 + 46.24012038+1 -> 37.27652637 | H123: =J115 -> 40.89419479 | I123: =0.000005*C123*C123*C123 - 0.00228525*C123*C123 + 0.58129671*C123 - 4.48854499 -> 40.03123851 | J123: =-0.00003432*D123*D123*D123 + 0.01224967*D123*D123 - 1.18836976*D123 + 63.60257406 -> 39.99367562 | K123: 34.6409445 | L123: 38.713077 | M123: 42.38371 | N123: =N115 -> 36.51018702 | O123: =(( 0.00000724*C123*C123*C123 - 0.00507231*C123*C123 + 1.16582334*C123 - 36.10721949)/100)*(-0.00000006*$X$103*$X$103*$X$103*$X$103 + 0.0000435*$X$103*$X$103*$X$103 - 0.01202881*$X$103*$X$103 + 1.5521255*$X$103 + 27.25688021) -> 42.0807621 | P123: =((0.00000418*A123*A123*A123 - 0.00252654*A123*A123 + 0.56349124*A123 + 3.31123587)/100)*(-0.00000006*$X$103*$X$103*$X$103*$X$103 + 0.0000435*$X$103*$X$103*$X$103 - 0.01202881*$X$103*$X$103 + 1.5521255*$X$103 + 27.25688021) -> 44.95156686 | Q123: =Q115 -> 28.86149206 | R123: =( (-0.00063357*C123*C123 + 0.3306984*C123 + 2.08120134)/100)*(-0.00364427*$X$105*$X$105 + 0.92168068*$X$105 + 44.27454669) -> 31.94243644 | S123: =(( -0.00033599*A123*A123 + 0.1700803*A123 + 16.00088101)/100)*(-0.00364427*$X$105*$X$105 + 0.92168068*$X$105 + 44.27454669) -> 33.95312204
A127: Technische Daten Baugröße 1000
A128: Einstellbereich Stufe 1
A129: Dp | B129: VP | E129: LwA - MQ System | H129: LwA - MQQ System | K129: QP/DtP | N129: Qk/Dt | Q129: Qh/Dt | U129: QEk = 355 W (T_Wasservorlauf=60°C)
A130: [Pa] | B130: [m3/h] | E130: [dB(A)] | H130: [dB(A)] | K130: [W/K] | N130: [W/K] | Q130: [W/K] | U130: m = -- kg
B131: V0 | C131: V1 | D131: V2 | E131: V0 | F131: V1 | G131: V2 | H131: V0 | I131: V1 | J131: V2 | K131: V0 | L131: V1 | M131: V2 | N131: V0 | O131: V1 | P131: V2 | Q131: V0 | R131: V1 | S131: V2 | U131: wok / Dpw = 120 / 11 [kg/h] / [kPa]
A132: =A105 -> 70 | B132: =B105/$AL$84*$AN$84 -> 7.49201419 | C132: 20.54383057 | D132: =D105/$AL$77*$AN$77 -> 32.6416194 | E132: =E105+(10*LOG($AN$84/$AL$84)) -> 30.62740382 | F132: =F105+(10*LOG($AN$77/$AL$77)) -> 27.97370395 | G132: 28.71727107 | H132: 30.60708116 | I132: 27.97370395 | J132: 28.71727107 | K132: =B132/3 -> 2.497338063 | L132: 6.847943524 | M132: 10.8805398 | N132: 0 | O132: =O105/$AL$86*$AN$86 -> 21.20826217 | P132: 30.56079478 | Q132: 8.523002028 | R132: 20.71012071 | S132: 27.0802378 | U132: woh / Dpw = 100 / 5 [kg/h] / [kPa]
A133: =A106 -> 100 | B133: 9.368568146 | C133: 25.34181915 | D133: =D106/$AL$77*$AN$77 -> 40.31775057 | E133: =E106+(10*LOG($AN$84/$AL$84)) -> 30.07314662 | F133: 29.26858045 | G133: 29.27144344 | H133: 30.05282396 | I133: 29.26858045 | J133: 29.27144344 | K133: 3.122856049 | L133: 8.447273049 | M133: 13.43925019 | N133: 0 | O133: 25.06691407 | P133: 37.16625968 | Q133: 8.523002028 | R133: 23.36457548 | S133: 30.73036621
A134: =A107 -> 150 | B134: 11.6126888 | C134: 30.75791652 | D134: =D107/$AL$77*$AN$77 -> 48.54179014 | E134: =E107+(10*LOG($AN$84/$AL$84)) -> 33.07261406 | F134: 30.60321898 | G134: 30.87107083 | H134: 33.0522914 | I134: 30.60321898 | J134: 30.87107083 | K134: 3.870896268 | L134: 10.25263884 | M134: 16.18059671 | N134: 0 | O134: 30.69799162 | P134: 45.03065074 | Q134: 8.523002028 | R134: 27.28220842 | S134: 35.59696279 | U134: Legende
U135: Dp | V135: - Statischer Druck am Primärluftstutzen
A136: Einstellbereich Stufe 2 | U136: VP | V136: - Primärluftvolumenstrom (±10 %)
A137: Dp | B137: VP | E137: LwA - MQ System | H137: LwA - MQQ System | K137: QP/DtP | N137: Qk/Dt | Q137: Qh/Dt | U137: LwA | V137: - Schallleistungspegel (±3 dB)
A138: [Pa] | B138: [m3/h] | E138: [dB(A)] | H138: [dB(A)] | K138: [W/K] | N138: [W/K] | Q138: [W/K] | U138: QP | V138: - Kühlleistung primär (Frischluftanteil) (±5 %)
B139: V2 | C139: V3 | D139: V4 | E139: V2 | F139: V3 | G139: V4 | H139: V2 | I139: V3 | J139: V4 | K139: V2 | L139: V3 | M139: V4 | U139: Qk | V139: - Kühlleistung sekundär (über Wärmet.) (±5 %)
A140: =A113 -> 70 | B140: =D132 -> 32.6416194 | C140: =C113/$AL$82*$AN$82 -> 59.03863081 | D140: 82.26466796 | E140: =G132 -> 28.71727107 | F140: =F113+(10*LOG(($AN$77+$AN$78+$AN$79)/($AL$77+$AL$78+$AL$79))) -> 30.51455085 | G140: 31.14667113 | H140: =J132 -> 28.71727107 | I140: =I113+(10*LOG(($AN$77+$AN$78+$AN$79)/($AL$77+$AL$78+$AL$79))) -> 29.30842654 | J140: 31.42474839 | K140: =B140/3 -> 10.8805398 | L140: 19.6795436 | M140: 27.42155599 | N140: =P132 -> 30.56079478 | Q140: =S132 -> 27.0802378 | U140: Qh | V140: - Heizleistung sekundär (±5 %)
A141: =A114 -> 100 | B141: =D133 -> 40.31775057 | C141: 72.2993385 | D141: 103.4578927 | E141: =G133 -> 29.27144344 | F141: 31.86196753 | G141: 34.31430993 | H141: =J133 -> 29.27144344 | I141: 32.29527197 | J141: 36.48761711 | K141: 13.43925019 | L141: 24.0997795 | M141: 34.48596422 | N141: =P133 -> 37.16625968 | Q141: =S133 -> 30.73036621 | U141: QEk | V141: - Heizleistung Eigenkonvektion
A142: =A115 -> 150 | B142: =D134 -> 48.54179014 | C142: 86.64750736 | D142: 128.2797476 | E142: =G134 -> 30.87107083 | F142: 35.21409859 | G142: 37.95834863 | H142: =J134 -> 30.87107083 | I142: 36.74352452 | J142: 41.80866597 | K142: 16.18059671 | L142: 28.88250245 | M142: 42.75991587 | N142: =P134 -> 45.03065074 | Q142: =S134 -> 35.59696279 | U142: m | V142: - Gewicht
U143: wok | V143: - Nennwassermenge bei Kühlleistung
A144: Einstellbereich Booststufe | U144: woh | V144: - Nennwassermenge bei Heizleistung
A145: Dp | B145: VP | E145: LwA - MQ System | H145: LwA - MQQ System | K145: QP/DtP | N145: Qk/Dt | Q145: Qh/Dt | U145: Dt | V145: - Temperaturdifferenz zwischen Ansaugtemperatur vor Wärmetauscher und Wasservorlauf
A146: [Pa] | B146: [m3/h] | E146: [dB(A)] | H146: [dB(A)] | K146: [W/K] | N146: [W/K] | Q146: [W/K] | U146: DtP | V146: - Temperaturdifferenz zwischen Raum- und Primärluft
B147: V4 | C147: V5 | D147: V6 | E147: V4 | F147: V5 | G147: V6 | H147: V4 | I147: V5 | J147: V6 | K147: V4 | L147: V5 | M147: V6 | N147: V4 | O147: V5 | P147: V6 | Q147: V4 | R147: V5 | S147: V6 | U147: Dpw | V147: - Wasserseitiger Druckverlust
A148: =A121 -> 70 | B148: =D140 -> 82.26466796 | C148: =C121/$AL$84*$AN$84 -> 96.43603907 | D148: 106.6723488 | E148: =G140 -> 31.14667113 | F148: =F121+(10*LOG(($AN$84)/($AL$84))) -> 30.77340128 | G148: 31.5264418 | H148: =J140 -> 31.42474839 | I148: =I121+(10*LOG(($AN$84)/($AL$84))) -> 30.12001899 | J148: 31.08166148 | K148: =B148/3 -> 27.42155599 | L148: 32.14534636 | M148: 35.55744961 | N148: =N121/$AL$86*$AN$86 -> 30.56079478 | O148: 33.39460315 | P148: 39.10770494 | Q148: 27.0802378 | R148: 29.49141839 | S148: 32.38851335
A149: =A122 -> 100 | B149: =D141 -> 103.4578927 | C149: 119.1544769 | D149: 131.1568493 | E149: =G141 -> 34.31430993 | F149: 34.4240781 | G149: 34.19043263 | H149: =J141 -> 36.48761711 | I149: 35.56785969 | J149: 35.20429267 | K149: 34.48596422 | L149: 39.71815898 | M149: 43.71894976 | N149: 37.16625968 | O149: 43.50842429 | P149: 47.4256698 | Q149: 30.73036621 | R149: 34.46719434 | S149: 36.56823559
A150: =A123 -> 150 | B150: =D142 -> 128.2797476 | C150: 144.4658727 | D150: 158.1636007 | E150: =G142 -> 37.95834863 | F150: 38.21340895 | G150: 38.22438956 | H150: =J142 -> 41.80866597 | I150: 40.9791017 | J150: 40.94153882 | K150: 42.75991587 | L150: 48.1552909 | M150: 52.72120024 | N150: 45.03065074 | O150: 51.90124334 | P150: 55.4420142 | Q150: 35.59696279 | R150: 39.39691402 | S150: 41.87683781

Sheet Legende (hidden)
G1: Tel. +49 (0)711 8201-180 Fax -720
A2: LTG Aktiengesellschaft
V3: Deutsch
B5: Deutsch | C5: English | D5: Francais | E5: Italiano | F5: Portugues | G5: Turkish
B6: Legende für LTG Auslegungstabellen | C6: Legend for LTG Selection Sheets | E6: Legenda per le tabelle prestazioni di LTG
A7: x | B7: Sprache: | C7: Language: | D7: Langue: | E7: Lingua | F7: Idioma: | G7: Lisan
A8: x | B8: Datum: | C8: Date: | D8: Data: | E8: Data | F8: Data: | G8: Tarih
A9: x | B9: Bearbeiter: | C9: Editor: | D9: Responsable: | E9: Responsabile | F9: Responsável: | G9: Hazirlayan
A10: x | B10: Projekt: | C10: Project: | D10: Projet: | E10: Progetto | F10: Projecto: | G10: Proje
A11: x | B11: Variante: | C11: Alternative: | D11: Variante: | E11: Variante | F11: Variante: | G11: Alternatif
B12: LTG Schlitzdurchlässe Typ LDB und LDB System Clean | C12: LTG Linear Diffusers Type LDB and LDB System Clean | D12: LTG Diffuseurs linéaires type LDB et LDB Système CLEAN | E12: Diffusori lineari LTG tipo LDB e LDB System clean | F12: Difusores lineares LTG, LDB e LDB System Clean | G12: LTG Lineer Slot Difüzör Tip LDB ve LDB Temiz Sistem
A13: x | B13: Induktionsgerät HFVsf - System smart flow, 4-Leiter-System | C13: LTG Induction Unit Type HFVsf - System smart flow, 4-pipe system - cooling and heating
A14: x | B14: relative Feuchte | C14: Relative room air humidity | E14: Umiditá relativa dell' area ambiente | F14: Umidade relativa do ar na sala:
A15: x | B15: Auslegunsbedingungen: | C15: Room Conditions: | D15: Donées du Local: | E15: Condizioni: | F15: Condicoes:
A16: x | B16: Taupunkttemperatur Raumluft | C16: Dew point temperatur of room air | E16: Temperature del punto di rugiada area ambiente | F16: Ponto der condensacao
A17: x | B17: Wassergehalt Raumluft | C17: Humidity ration of room air | E17: Umiditá especifica dell' area ambiente | F17: Umidade specífica do ar na sala:
A18: x | B18: => Ablufttemperatur | C18: => Extract air temperature | E18: => Temperature dell' area estratta
A19: x | B19: Bemerkungen: | C19: Notes: | E19: Note:
A20: x | B20: Primärseite (Luftseite): | C20: Primary Side (Air side):
A21: x | B21: Primärdruck | C21: Primary pressure
A22: x | B22: Primärlufttemperatur | C22: Primary air temperatur
A23: x | B23: Sekundärseite (Wasserseite): | C23: Secondary Side (Water Side):
A24: x | B24: Wasservorlauftemperatur | C24: Water inlet temperature
A25: x | B25: Wassermassenstrom | C25: Water flow rate
A26: x | B26: Wasserrücklauftemperatur | C26: Water outlet temperature
A27: x | B27: Wasserseitiger Druckverlust | C27: Differential pressure (water side)
A28: x | B28: Sekundärleistung | C28: Secondary capacity
A29: x | B29: Sekundärleistung - Qk | C29: Secondary capacity - Qk
A30: x | B30: Sekundärleistung - Qh | C30: Secondary capacity - Qh
A31: x | B31: Primärleistung - Qp | C31: Primary capacity - Qp
A32: x | B32: Primärleistung | C32: Primary capacity
A33: x | B33: Bereich: | C33: Range:
A34: x | B34: Betriebszustände (Stellung Düsenklappe) | C34: Operating modes of nozzle slide damper
A35: x | B35: Einstellung Düsenklappe (Primärluftmenge) | C35: Adjustment of nozzle slide damper (primary air flow rate)
A36: x | B36: Geräte Baugröße | C36: Terminal Size
A37: x | B37: Kühlen | C37: Cooling
A38: x | B38: Heizen | C38: Heating
A39: x | B39: Einstellung Düsenklappe | C39: Adjustment of nozzle slide damper
A40: X | B40: Leistung [W] | C40: Capacity [W]
A41: x | B41: Gesamt Kühlleistung - Q | C41: Total cooling capacity - Q
A42: x | B42: Gesamt Heizleistung - Q | C42: Total heating capacity - Q
A43: x | B43: Gesamt Kühlleistung | C43: Total cooling capacity
A44: x | B44: Gesamt Heizleistung | C44: Total heating capacity
A45: x | B45: Primärvolumenstrom - Vp | C45: Primary air volume rate - Vp
A46: x | B46: Schallleistungspegel - MQ Gerät | C46: Sound power level - MQ Unit
A47: x | B47: Schallleistungspegel - MQQ Gerät | C47: Sound power level - MQQ Unit
A48: x | B48: Schallleistungspegel [dB(A)] | C48: Sound power level [dB(A)]
A49: x | B49: Raumströmung | C49: Air flow pattern
A50: x | B50: Regelbereich | C50: Adjustment range
A51: x | B51: V0 - geschlossen | C51: V0 - slide damper closed
A52: x | B52: V1 - geringe Primärluftmenge 1, geringe Induktion | C52: V1 - low primary air flow rate including induced secondary air - level 1
A53: x | B53: V2 - geringe Primärluftmenge 2, mittlere Induktion | C53: V2 - low primary air flow rate including induced secondary air - level 2
A54: x | B54: V3 - mittlere Primärluftmenge 1, mittlere Induktion | C54: V3 - additional primary air flow rate - level 1, including induced secondary air - level 2
A55: x | B55: V4 – mittlere Primärluftmenge 2, mittlere Induktion | C55: V4 - additional primary air flow rate - level 2, including induced secondary air - level 2
A56: x | B56: V5 - Booststufe 1, hohe Induktion | C56: V5 - Boost Level 1 with additional induction
A57: x | B57: V6 - Booststufe 2, hohe Induktion | C57: V6 - Boost Level 2 with additional induction
A58: x | B58: Toleranz +/- 3 dB | C58: Tolerance +/- 3 dB
B59: Primärvolumenstrom - Vp [m³/h] | C59: Primary air volume rate - Vp [m³/h]
A60: x | B60: © LTG Aktiengesellschaft - Letzte Änderung: 13.03.2012 | C60: © LTG Aktiengesellschaft - Last update: 13.03.2012 | D60: LTG Aktiengesellschaft-Version du 30.12.09 | E60: © LTG Aktiengesellschaft - Ultimo aggiornamento : 30.12.2009 | F60: © LTG Aktiengesellschaft - Última actualização: 30.12.2009 | G60: © LTG Aktiengesellschaft - Son Guncelleme: 15.12.2009
A61: x | B61: Angaben zu Toleranzen sowie weitere Spezifikationen sind der aktuellen LTG Bauteilmappe zu entnehmen. | C61: Data for tolerances and other specification are published in LTG technical literature | D61: Voir classeur actuel pour informations complementaires et tolerances des donnés techniques | E61: Dati sulle tolleranze e altre specifiche sono pubblicate sulla documentazione LTG | F61: Os dados técnicos relativos a tolerâncias e outras especificações encontram-se nas publicações técnicas da LTG | G61: LTG Teknik Literaturunde yayinlanmis diger spesifikasyon ve Tolerans degeri.
A62: x | B62: Eine Fehlerfreiheit des Programms kann nicht zugesichert werden. Im Zweifel gelten die technischen Daten der aktuellen LTG Bauteilmappe. | C62: Accuracy of selection software can not be ensured. In case of doubts data of LTG technical literature is valid. | D62: Sous Réserve des erreurs du programme, en cas de doute il faut utiliser les données techniques du prospectus valable | E62: i dati pubblicati sui cataloghi LTG sono validi | F62: Não podemos garantir a total inexistência de erros no programa. Em caso de incerteza a literatura técnica da LTG prevalece. | G62: Secim programinin dogrulugu teyid edilemez. Suphe olusmasi halinde LTG Teknik dokumanlari gecerlidir.
A63: x | B63: Aus Programmierfehlern entstandener Schaden geht nicht zu Lasten der LTG. Technische Änderungen im Rahmen der Weiterentwicklung vorbehalten. | C63: Damage caused by programming errors is not at LTG expenses. Subject to technical specifications. | D63: LTG Aktiengesellschaft refuse la résponsabilite d`erreurs de programmer y compris Dommage eventuel causé par le programme. | E63: Danni per errori nei programmi di selezione non possono essere addebitati a LTG.Soggetti a specifiche tecniche. | F63: Os prejuízos resultantes do uso deste programa não são da responsabilidade da LTG. Sugeito a rectificações técnicas. | G63: Secim nedeni ile olusabilecek kayiplardan dolayi LTG sorumlu tutulamaz.
B64: Raumdaten: | C64: Room data: | D64: Donées du Local | E64: Dati del locale | F64: Dados da sala: | G64: Oda No
B65: Raumbezeichnung | C65: Room name | D65: Designation du Local | E65: Identificazione del locale | F65: Designação da sala: | G65: Oda Ismi
B66: Soll-Gesamtvolumenstrom | C66: Target total air flow rate | D66: Debit d`air demandée | E66: Portata aria di progetto | F66: Caudal total pretendido: | G66: Hedef Toplam Hava Miktari
B67: Raumlufttemperatur | C67: Room air temperature | D67: Temperature ambient | E67: Temperatura nell' ambiente | F67: Temperatura do ar na sala: | G67: Oda Havası Sıcakligi
B68: Zuluftuntertemperatur | C68: Supply air temperature difference | D68: Difference de Temperature de l´air neuf | E68: Differenza di temperatura con aria di mandata | F68: DT na insuflação: | G68: Ufleme Havasi Sicaklik Farki
B69: Raum-Schallabsorption | C69: Room sound absorpion | D69: Attenuation du local | E69: Attenuazione sonora del locale | F69: Capacidade de absorção de som pela sala | G69: Oda Ses Yutumu
B70: LDB Typ | C70: LDB Type | D70: Designation du type LDB | E70: Dati del modello LDB | F70: Referência dos LDB | G70: LDB Tip Spesifikasyonu
B71: Einbauhöhe H=2,80 m | C71: Installation height H=2,80 m | D71: hauteur installation H=2,8 m | E71: Altezza di installazione H = 2,8 m | F71: Altura de instalação H= 2,8 m | G71: Montaj Yuksekligi H=2.80 m
B72: Einbauhöhe H=5,00 m | C72: Installation height H=5,00 m | D72: hauteur installation H=5,0 m | E72: Altezza di installazione H = 5,0 m | F72: Altura de instalação H= 5 m | G72: Montaj Yuksekligi H=5.00 m
B73: Spezifischer Volumenstrom | C73: Specific air flow rate | D73: Debit d`air specifique par 1 m | E73: Portata aria specifica | F73: Caudal de ar por m | G73: Spesifik Hava Debi Degeri
B74: Empfehlung max. | C74: Recommen-dation max. | D74: Recommandation maxi. | E74: Massima raccomandata | F74: Máximo recomendado | G74: Tavsiye Edilen max.
B75: Schlitzlänge Element | C75: Diffuser element length | D75: Longuer diffuseur par element | E75: Lunghezza elemento diffusore | F75: Comprimento dos elementos do difusor | G75: Difuzor Elemani Uzunlugu
B76: Stückzahl | C76: Quantity | D76: Quantité | E76: Quantità | F76: Quantidade | G76: Miktar
B77: Schlitzlänge Gesamt Raum | C77: Diffuser length total room | D77: Longueur diffuseur total par local | E77: Lunghezza totale diffusori nel locale | F77: Comprimento total do difusor na sala | G77: Oda Toplam Difuzor Uzunlugu
B78: Druckverlust | C78: Pressure loss | D78: Perte pression | E78: Caduta di pressione | F78: Perda de carga | G78: Basinc Kayibi
B79: Strahl-Ausbreitung Zuluft | C79: Jet spreading supply air | D79: Penetration du jet de l`air neuf | E79: Lunghezza del getto aria di mandata | F79: Penetração do jacto de ar insuflado | G79: Ufleme Havasi Jet Yayilma
B80: Max. Luft-Geschwind. | C80: Max. air velocity | D80: Velocité maximale | E80: Velocità massima aria | F80: Velocidade máxima do ar | G80: Max. Hava Hizi
B81: Aufentaltszone | C81: Occupied zone | D81: Zone occupé | E81: Zona occupata | F81: Zona ocupada | G81: Yasama Bolgesi
B82: Zugluft-risiko | C82: Draught risk | D82: Risque vitesse trop elevé | E82: Rischio spiffero | F82: Risco de corrente de ar | G82: Cereyan Riski
B83: Kategorie gemäß DIN EN ISO 7730 | C83: Category DIN EN ISO 7730 | D83: Classe sélon DIN EN ISO 7730 | E83: Categoria secondo DIN EN ISO 7730 | F83: Categoria DIN EN ISO 7730 | G83: Kategori DIN EN ISO 7730
B84: Bewertung der thermischen Behaglichkeit | C84: Evaluation of thermal comfort | D84: Variante | E84: Valutazione comfort termico | F84: Avaliação do conforto térmico | G84: Termik Konfor Degerlendirmesi
B85: A-bewerteter Schall-leistungs-pegel pro Element | C85: A-rated sound power level per element | D85: Niveau puissance sonore par element | E85: Potenza sonora per elemento in scala A | F85: Pressão sonora, por elemento, medida na escala A | G85: A-Ses Basinci Seviyesi Element Basina
B86: Ist-Gesamt- volumen- strom | C86: Actual total air flow rate | D86: Debit d´air totale | E86: Portata aria totale | F86: Caudal total | G86: Gercek Toplam Hava Debisi Degeri
B87: Schalldruckpegel im Raum | C87: Sound pressure level in the room | D87: Niveau pression sonore du local | E87: Pressione sonora risultante nel locale | F87: Pressão sonora na sala | G87: Res. Oda Ses Basinci Seviyesi
B88: Strömungsakkustik | C88: Airborne noise | D88: Niveau sonore | E88: Rumorosità portata dall' aria | F88: Nível sonoro na sala | G88: Hava ile Tasinan Ses
B89: Stck | C89: pc. | D89: pc. | E89: pz. | F89: pc. | G89: Miktar
B90: <= Typ Wählen! | C90: <= Select type! | D90: <= Choisir type s.v.p. | E90: <= Modello selezionato | F90: <= Seleccione o modelo! | G90: <=Tip Sec
B94: Aus Programmierfehlern entstandener Schaden geht nicht zu Lasten der LTG. Technische Änderungen im Rahmen der Weiterentwicklung vorbehalten. | C94: Damage caused by programming errors is not at LTG expenses. Subject to technical specifications. | D94: LTG Aktiengesellschaft refuse la résponsabilite d`erreurs de programmer y compris Dommage eventuel causé par le programme. | E94: Danni per errori nei programmi di selezione non possono essere addebitati a LTG.Soggetti a specifiche tecniche. | F94: Os prejuízos resultantes do uso deste programa não são da responsabilidade da LTG. Sugeito a rectificações técnicas. | G94: Secim nedeni ile olusabilecek kayiplardan dolayi LTG sorumlu tutulamaz.
B95: Büro: | C95: Office: | D95: Bureau | E95: Ufficio | F95: Escritório: | G95: Ofis
B96: kleiner Büroraum: | C96: Small office room: | D96: bureau cellulaire | E96: Ufficio piccolo | F96: Pequeno escritório: | G96: Kucuk Ofis
B97: Großraumbüro: | C97: Open-plan office: | D97: bureau vaste | E97: Ufficio spazio aperto | F97: Escritório "Open Space": | G97: Acik Ofis
B98: Besprechungsraum: | C98: Meeting room: | D98: Salle conference | E98: Sala riunioni | F98: Sala de reuniões: | G98: Toplanti Odasi
B99: Wohngebäude: | C99: Residential building: | D99: appartements | E99: Appartamenti | F99: Edifício residêncial: | G99: Rezidans Binasi
B100: Wohn-/Schlafräume: | C100: Living- and sleeping room: | D100: Chambre a choucher | E100: Soggiorno\ Camera da letto | F100: Sala/ Quarto de dormir: | G100: Oturma / Uyku Odasi
B101: Krankenhaus: | C101: Hospital: | D101: Hôpital | E101: Ospedale | F101: Hospital: | G101: Hastane
B102: Bettenzimmer: | C102: Bedroom: | D102: Salle a lits | E102: Camera da letto | F102: Quarto de dormir: | G102: Yatak Odasi
B103: Hallen, Korridore: | C103: Hall, Corridor | D103: Corridor | E103: Ingresso, Corridoio | F103: Hall, corredor: | G103: Hol, Koridor
B104: Untersuchungsräume: | C104: Medical inspection rooms | D104: Salles du recherche | E104: Ambulatorio medico | F104: Consoltório médico: | G104: Arastirma Odasi
B105: OP-Räume: | C105: Operation rooms | D105: Salles operation | E105: Sala operatoria | F105: Sala de cirurgia: | G105: Operasyon Odasi
B106: Sport: | C106: Sport: | D106: Sport | E106: Sport | F106: Desporto: | G106: Spor
B107: Turnhallen: | C107: Sportshalls | D107: Halles du sport | E107: Palestra | F107: Ginásio: | G107: Spor Holu
B108: Schwimmbäder: | C108: Swimming pool: | D108: Piscines | E108: Piscina | F108: Piscina: | G108: Yuzme Havuzu
B109: Versammlungssäle: | C109: Conference rooms | D109: Salles conferences | E109: Sala conferenze | F109: Sala de espectáculos | G109: Toplantı Salonlari
B110: Theater: | C110: Theatre: | D110: Theatres | E110: Teatro | F110: Teatro: | G110: Tiyatro
B111: Opernhaus: | C111: Opera house | D111: Opera | E111: Teatro d' opera | F111: Opera: | G111: Opera Evi
B112: Konzertsaal: | C112: Concert hall | D112: Salles du concerts | E112: Sala concerti | F112: Sala de concertos: | G112: Konser Salonu
B113: Kino, Hörsaal, Lesesaal: | C113: Cinema, auditorium | D113: Salles du cinema | E113: Cinema, Auditorium, Biblioteca | F113: Cinema, Auditório: | G113: Sinema, Oditoryum
B114: Kirche: | C114: Church: | D114: Eglises | E114: Chiesa | F114: Igreja: | G114: Kilise / Cami
B115: Studios: | C115: Studios: | D115: Studios d´enregistrement | E115: Sala di registrazione | F115: Estúdio: | G115: Studyo
B116: Rundfunkstudio: | C116: Radio studio | D116: Studios Radio | E116: Studio Radiofonico | F116: Estúdio de rádio: | G116: Radyo Studyosu
B117: Fernsehstudio: | C117: TV studio | D117: Studios TV | E117: Sudio Televisivo | F117: Estúdio de TV: | G117: TV Studyosu
B118: Sonstige: | C118: Others: | D118: Autres | E118: Altro | F118: Outros: | G118: Diger
B119: Gaststätten: | C119: Restaurants: | D119: Restaurants | E119: Ristorante | F119: Restaurante: | G119: Resturant
B120: Museen: | C120: Museeum: | D120: Musees | E120: Museo | F120: Museu: | G120: Muze
B121: Klassenräume: | C121: Class rooms: | D121: Salles du classes | E121: Aula scolastica | F121: Sala de Aula: | G121: Dershane
B122: Volumenstrom | C122: Air flow rate | D122: Debit d`air | E122: Portata aria | F122: Caudal de ar
B123: A-bewerteter Schallleistungspegel | C123: A-rated sound power level | D123: Niveau puissance sonore | E123: Potenza sonora in scala A | F123: Pressão sonora,medida na escala A | G123: A-Ses Basinci Seviyesi
B124: Kategorie nach DIN EN ISO 7730 | C124: Category DIN EN ISO 7730 | D124: Classe sélon DIN EN ISO 7730 | E124: Categoria secondo DIN EN ISO 7730 | F124: Categoria DIN EN ISO 7730 | G124: Kategori DIN EN ISO 7730
B125: Ermittlung der Raumabsorption im diffusen Schallfeld | C125: Calculation of room sound absorption in the diffuse sound field | D125: Calculation of room sound absorption in the diffuse sound field | E125: Calcolazione di attenuazione sonora del locale | F125: Cálculo da absorção de som pela sala num campo difuso de som | G125: Ses yayilma alani oda ses yutumu hesabi
B126: Raumabmessungen: | C126: Room dimensions: | D126: Room dimensions: | E126: dimensioni ambiente | F126: Dimensões da sala | G126: Oda Boyutlari
B127: Breite: | C127: Width: | D127: Width: | E127: larghezza | F127: Largura: | G127: Genislik
B128: Höhe: | C128: Height: | D128: Height: | E128: altezza | F128: Pé Direito: | G128: Yukseklik
B129: Tiefe: | C129: Depth: | D129: Depth: | E129: profondità | F129: Profundidade: | G129: Derinlik
B130: Gewählte Nachhallzeit: | C130: Selected reverberation period: | D130: Selected reverberation period: | E130: Periodo di riverberazione considerato | F130: Seleccionar o tempo de reverberação: | G130: Secilen yankilanma suresi
B131: Äquivalente Absorptionsfläche: | C131: Equivalent absorption area: | D131: Equivalent absorption area: | E131: Area equivalente di assorbimento | F131: Área de absorção equivalente | G131: Esdeger absorbsiyon alani
B132: Stutzenanzahl [Stck] | C132: No. of spigots [pc] | D132: No. of spigots [pc] | E132: Numero attacchi aria | F132: Nº de golas de ligação | G132: Yaka sayisi (ad)
B133: Stutzendurchmesser [mm] | C133: Spigot diameter [mm] | D133: Spigot diameter [mm] | E133: Diametro in mm | F133: Diâmetro da gola de ligação [mm] | G133: Yaka capi (mm)
B134: Drossel - Typ | C134: Type of throttlling device | D134: Type of throttlling device | E134: Tipo di serranda di taratura | F134: Tipo de registo | G134: Damper tipi
B135: Drossel - Einstellung | C135: Throttling device adjustment | D135: Throttling device adjustment | E135: Taratura della serranda | F135: Regulação do registo | G135: Damper ayari
B136: Max. zulässiger Schalldruckpegel im Raum | C136: Sound pressure level limit in the room | D136: Niveau pression sonore du local maximale | E136: Pressione sonora massima risultante nel locale di progetto | F136: Pressão sonora maxima, total, na sala | G136: Oda ses basinci degeri limiti
B137: Hotel: | C137: Hotel: | D137: Hotel: | E137: Hotel: | F137: Hotel: | G137: Hotel
B138: Zugluftrisiko | C138: Draught risk | D138: Risque vitesse trop elevé | E138: Rischio spiffero | F138: Risco de corrente de ar | G138: Cereyan riski
B139: Zulässige A-bewertete Schalldruckpegel. Standardwerte gemäß EN 13779. | C139: Sound pressure level limits according to EN 13779 (atandard values): | D139: Sound pressure level limits according to EN 13779 (atandard values): | E139: Sound pressure level limits according to EN 13779 (atandard values): | F139: Limites de pressão sonora de acordo com a EN 13779 (valores standard) | G139: EN 13779 (standart degerler) e gore Ses basinci limiti
B140: Bibliotheken: | C140: Library: | D140: Library: | E140: Library: | F140: Biblioteca | G140: Kutuphane
B141: Gerichtssaal: | C141: Courtroom: | D141: Courtroom: | E141: Courtroom: | F141: Sala de audiências | G141: Adliye
B142: Zimmer (Tag): | C142: Room (Day): | D142: Room (Day): | E142: Room (Day): | F142: Quarto (Dia) | G142: Oda (gunduz)
B143: Zimmer (Nacht): | C143: Room (Night): | D143: Room (Night): | E143: Room (Night): | F143: Quarto (Noite) | G143: Oda (gece)
B144: Beispiele üblicher Nachhallzeiten: | C144: Examples for reverberation period values: | D144: Examples for reverberation period values: | E144: Examples for reverberation period values: | F144: Examples for reverberation period values: | G144: Ornek yankilanma suresi degeleri
B145: Kühlleistung: | C145: Cooling capacity: | D145: Cooling capacity: | E145: Cooling capacity: | F145: apacicade de arrefecimento | G145: Sogutma kapasitesi
B146: Gewählten LDB Typ bearbeiten | C146: Edit selected LDB type | F146: Mostrar modelo seleccionado | G146: Secilen LDB tipini duzenle
B147: Berechnungshilfe Raumabsoprtion | C147: Calculation of room sound absorption | F147: Cálculo do nível de ruído na sala | G147: Oda ses yutumu hesabi
B148: Zulässige Schalldruckpegel | C148: Sound pressure level limits | F148: Limites de Pressão Sonora | G148: Ses basinci seviyesi limiti
B149: Zurück | C149: Back | F149: Para trás | G149: Geri
B150: Zurück + Übernehmen | C150: Back + Confirm | F150: Para trás + Confirme | G150: Geri + Teyid
B151: Abbrechen | C151: Cancel | F151: Cancelar | G151: İptal
B152: Drehzahlstufe | C152: Fan Speed Level | E152: Velocità del ventilatore
B153: Drehzahlsteuerungeingangssignal 8V - 24V | C153: Fan Speed Control Input Signal 8V - 24 V | E153: Input velocità ventilatore da 8 a 24 volts
B154: Umluftvolumenstrom pro Gerät | C154: Recirculation Air Flow Rate per Unit | E154: Portata aria ricircolata
B155: Schallleistung (Toleranz +/- 3 dB) - | C155: Sound Power Level (Tolerance +/- 3dB) | E155: Livello potenza sonora tolleranza +/- 3 dB
B156: Schalldruckpegel bei 18 m² Sabine (+/- 3 dB) | C156: Sound Pressure Level (Tolerance +/- 3dB) at 18 m² Sabine Absorption Area | E156: Livello di pressione sonora (toll +/- 3 dB) con una superficie di assorbimento di 18 mq Sabine
B157: sensible Kühlleistung, nichtkondensierender Betrieb (im Kondensatbetrieb sind Abweichungen je nach Luftfeuchtigkeit möglich) | C157: Sensible Cooling Capacity During Non-Condesating Operation (Discrepances During Condensating Operation depending on air humidity) | E157: Resa sensibile raffreddamento (con discrepanze se in deumidificazione a secondo umidità dell'aria)
B158: Heizleistung | C158: Heating Capacity | E158: Resa in riscaldamento
B159: Kaltwasser-Rücklauftemperatur | C159: Cold Water Return Temperature | E159: Temperatura ritorno acqua refrigerata
B160: Warmwasser-Rücklauftemperatur | C160: Hot Water Return Temperature | E160: Temperatura ritorno acqua calda
B161: Wassermenge Kühlen | C161: Cold Water Flow Rate | E161: Portata acqua refrigerata
B162: Wassermenge Heizen | C162: Hot Water Flow Rate | E162: Portata acqua calda
B163: wasserseitiger Druckverlust über Kühlregister | C163: Waterside Pressure Drop over Cooling Coil | E163: Perdita carico acqua batteria fredda
B164: wasserseitiger Druckverlust über Heizregister | C164: Waterside Pressure Drop over Heating Coil | E164: Perdita carico acqua nella batteria calda
B165: Eigenkonvektion bei Warmwasservorlaufttemperatur 70 °C, Raumlufttemperatur 20 °C, Nennwassermenge | C165: Natural Convection at Water Supply Temperatures 70 °C; Room Air Temperature of 20°C and Nominal Hot Water Flow | E165: Resa a convezione naturale in riscaldamento con acqua a 70 °C aria a 20 °C e portata acqua nominale
B166: elektrische Leistungsaufnahme | C166: electrical Power Input | E166: Potenza elettrica assorbita
B167: Kühlfall | C167: Cooling Mode | E167: In raffescamento
B168: Heizfall | C168: Heating Mode | E168: In riscaldamento
B169: Ansaugtemperatur | C169: Intake Air Temperature | E169: Temperatura aria in ingresso
B170: Wasservorlauftemperatur | C170: Water Supply Temperature | E170: Temperatura acqua in ingresso
B171: Baugröße | C171: Size | E171: Taglia
B172: Nennwassermenge | C172: Nominal Water Flow Rate | E172: Portata acqua nominale
B173: Auswahl | C173: Choice | E173: Scelta
B174: Kühlen | C174: Cooling | E174: Raffrescamento
B175: Heizen | C175: Heating | E175: Riscaldamento
B176: projektierte Leistung im Auslegungsfall | C176: Required Capacity For Design Situation | E176: Potenzialità richiesta di progetto
